Workbook

Sheet 2019-2020
BS1: Data | BT1: Sarbatoare
BS2: 2019-11-30 | BT2: Sf Andrei
BS3: 2019-12-01 | BT3: Ziua Nationala
BS4: 2019-12-25 | BT4: Craciun prima zi
BS5: 2019-12-26 | BT5: Craciun a doua zi
BS6: 2020-01-01 | BT6: Anul nou prima zi
BS7: 2020-01-02 | BT7: Anul nou a doua zi
BC8: parteneri adiacenti | BD8: UR | BP8: parteneri adiacenti | BQ8: UR | BS8: 2020-01-24 | BT8: Ziua unirii
A9: EVIDENȚA LIMITĂRILOR ȘI/SAU ÎNTRERUPERILOR PLANIFICATE ȘI NEPLANIFICATE pentru anul gazier 2019 - 2020 / RECORD OF THE PLANNED AND UNPLANNED LIMITATIONS AND/OR INTERRUPTIONS related to the gas year 2019 - 2020 | AR9: Lucrari neprogramate | BB9: NU6 | BC9: =SUBTOTAL(9,AS:AS) -> 48 | BD9: =SUBTOTAL(9,AV:AV) -> 1492 | BF9: Lucrari programate | BO9: NU5 | BP9: =SUBTOTAL(9,BG:BG) -> 15 | BQ9: =SUBTOTAL(9,BJ:BJ) -> 558 | BS9: 2020-04-17 | BT9: Vinerea Mare
AR10: Partener adiacent | AU10: UR | BB10: NUafectati | BC10: =SUBTOTAL(9,AT:AT) -> 48 | BD10: =SUBTOTAL(9,AW:AW) -> 1492 | BF10: Partener adiacent | BI10: UR | BO10: NUafectati | BP10: =SUBTOTAL(9,BH:BH) -> 15 | BQ10: =SUBTOTAL(9,BK:BK) -> 558 | BS10: 2020-04-20 | BT10: Paste
A11: Nr. crt. / Item No. | B11: Tipul limitării/întreruperii / Type of limitation/interruption | D11: Denumire lucrare/motiv limitare și/sau întrerupere / Name of the works/reason for the limitation and/or interruption | E11: Locația limitării/întreruperii / Location of the limitation/interruption | L11: Punct de ieșire/intrare afectat / Affected exit/entry point | T11: Cod punct relevant / Code of the relevant point | U11: Utilizator ST afectat / Affected TS user | W11: Perioada planificată de execuție a lucrării / Planned period for the execution of the works | X11: Data și ora limitării/întreruperii / Date and hour of the limitation/interruption | Z11: Data și ora reluării prestării serviciului / Date and hour the service supply is resumed | AB11: Exploatarea Teritorială / Regional Office | AC11: Observații / Comments | AD11: Justificarea modificării perioadei planificate de execuție a lucrări | AE11: Data și ora efectivă de limitare/întrerupere | AG11: Data și ora efectivă de reluare a prestării serviciului | AI11: Data și ora informării UR | AK11: Data și ora informării partenerului adiacent | AM11: Foaia de manevră | AN11: A fost afectat producătorul (în cazul PM) sau consumatorul final (în cazul SM)? (DA/NU) | AO11: Observatii | AP11: Program bugetat | AR11: Numar de ore de la producerea intreruperii / limitarii pana la anuntarea partenerului adiacent (trebuie sa fie mai mic decat 6) | AS11: NU6 | AT11: NUafectati | AU11: Numar de ore de la producerea intreruperii / limitarii pana la anuntarea UR (trebuie sa fie mai mic decat 6) | AV11: NU6 | AW11: NUafectati | AX11: Durata intreruperii / limitarii [ore] (daca este mai mare de 24, trebuie sa fie completata celula aferenta de pe coloana AZ) | AY11: NU24 | AZ11: Nuafectati | BA11: Partener adiacent informat din 12 in 12 ore, daca durata mai mare de 24h (DA/NU) | BB11: NU6 | BC11: =BC9+BD9 -> 1540 | BD11: IP51 | BF11: Numar de zile lucratoare de anuntare partener adiacent pana la limitare / intrerupere (trebuie sa fie mai mare de 5) | BG11: NU5 | BH11: NUafectati | BI11: Numar de zile de anuntare UR pana la limitare / intrerupere (trebuie sa fie mai mare de 5) | BJ11: NU5 | BK11: NUafectati | BL11: Numar ore intre data anuntata si cea efectiva de reluare (trebuie sa fie mai mic sau egal cu 0) | BM11: NUreluate | BN11: NUafectati | BO11: NU5 | BP11: =BP9+BQ9 -> 573 | BQ11: IP61 | BS11: 2020-05-01 | BT11: Ziua muncii
E12: Siruta / Siruta code | F12: Localitate / Locality | G12: Județ / County | H12: Coordonate GPS început / GPS coordinates-beginning | J12: Coordonate GPS sfârșit / GPS coordinates-end | L12: Puncte de ieșire din SNT / NTS exit points | P12: Puncte de intrare în SNT / NTS entry points | BB12: NUafectati | BC12: =BC10+BD10 -> 1540 | BD12: =IF(BC12=0,1,BC11/BC12) -> 1 | BO12: NUafectati | BP12: =BP10+BQ10 -> 573 | BQ12: =IF(BP12=0,1,BP11/BP12) -> 1 | BS12: 2020-06-01 | BT12: Ziua copilului
B13: Neplanificată / Unplanned | C13: Planificată / Planned | L13: Limitare / Limitation | N13: Întrerupere / Interruption | P13: Limitare / Limitation | R13: Întrerupere / Interruption | X13: Data / Date | Y13: Ora / Hour | Z13: Data / Date | AA13: Ora / Hour | AE13: Data | AF13: Ora | AG13: Data | AH13: Ora | AI13: Data | AJ13: Ora | AK13: Data | AL13: Ora | BB13: NU24 | BC13: =SUBTOTAL(9,AY:AY) -> 0 | BD13: IP52 | BO13: NUreluare | BP13: =SUBTOTAL(9,BM:BM) -> 573 | BQ13: IP62 | BS13: 2020-06-08 | BT13: Rusalii
H14: X1 | I14: Y1 | J14: X2 | K14: Y2 | L14: Cod / Code | M14: Denumire / Name | N14: Cod / Code | O14: Denumire / Name | P14: Cod / Code | Q14: Denumire / Name | R14: Cod / Code | S14: Denumire / Name | U14: Utilizator de rețea / Network User | V14: Partener adiacent / Adjacent Partner | BB14: NUafectati | BC14: =SUBTOTAL(9,AZ:AZ) -> 0 | BD14: =IF(BC14=0,1,BC13/BC14) -> 1 | BO14: NUafectati | BP14: =SUBTOTAL(9,BN:BN) -> 573 | BQ14: =IF(BP14=0,1,BP13/BP14) -> 1 | BS14: 2020-08-15 | BT14: Adormirea Maicii Domnului
A15: 0 | B15: 1 | C15: 2 | D15: 3 | E15: 4 | F15: 5 | G15: 6 | H15: 7 | I15: 8 | J15: 9 | K15: 10 | L15: 11 | M15: 12 | N15: 13 | O15: 14 | P15: 15 | Q15: 16 | R15: 17 | S15: 18 | T15: 19 | V15: 21 | W15: 22 | X15: 23 | Y15: 24 | Z15: 25 | AA15: 26 | AB15: 27 | AC15: 28 | AD15: 29 | AE15: 30 | AF15: 31 | AG15: 32 | AH15: 33 | AI15: 34 | AJ15: 35 | AK15: 36 | AL15: 37 | AM15: 38 | AN15: 39 | AO15: 40 | AP15: 41
A16: 1 | B16: - | C16: X | D16: Dezvoltare SNT - Conducta de transport gaze 20” Craiova - Segarcea - Băilești - Calafat, et.I, tronson Craiova - Segarcea | E16: 72409 | F16: Ghercești | G16: Dolj | H16: 409849.8983 | I16: 314332.0136 | J16: 409849.8983 | K16: 314332.0136 | L16: - | M16: - | N16: SM1194D0 | O16: Ghercești II | P16: - | Q16: - | R16: - | S16: - | T16: SM-SD001 | U16: Energy Distribution, OMV Petrom, Restart Energy, Romgaz | V16: SNGN Romgaz - Distribuție | W16: octombrie - decembrie 2019 februarie - iunie 2020 aprilie - iunie 2020 iulie - septembrie 2020 | AB16: Craiova | AD16: Necesitatea schimbării soluției de foraj prin dispoziție de șantier. Conform Programului de Modernizare, Dezvoltare și Investiții pe anul 2020 - 2022 aprobat. Modificarea traseului conductei prin dispoziție de șantier. | AP16: PMDI 2020_2.1.A.4 | AR16: =IF(B16="X",IF(AN16="","Afectat sau NU?",IF(AN16="DA",IF(((AK16+AL16)-(AE16+AF16))*24<-720,"Neinformat",((AK16+AL16)-(AE16+AF16))*24),"Nu a fost afectat producator/consumator")),"") ->  | AS16: =IF(B16="X",IF(AN16="DA",IF(AR16<6,LEN(TRIM(V16))-LEN(SUBSTITUTE(V16,CHAR(44),""))+1,0),"-"),"") ->  | AT16: =IF(B16="X",IF(AN16="DA",LEN(TRIM(V16))-LEN(SUBSTITUTE(V16,CHAR(44),""))+1,"-"),"") ->  | AU16: =IF(B16="X",IF(AN16="","Afectat sau NU?",IF(AN16="DA",IF(((AI16+AJ16)-(AE16+AF16))*24<-720,"Neinformat",((AI16+AJ16)-(AE16+AF16))*24),"Nu a fost afectat producator/consumator")),"") ->  | AV16: =IF(B16="X",IF(AN16="DA",IF(AU16<6,LEN(TRIM(U16))-LEN(SUBSTITUTE(U16,CHAR(44),""))+1,0),"-"),"") ->  | AW16: =IF(B16="X",IF(AN16="DA",LEN(TRIM(U16))-LEN(SUBSTITUTE(U16,CHAR(44),""))+1,"-"),"") ->  | AX16: =IF(B16="X",IF(AN16="","Afectat sau NU?",IF(AN16="DA",((AG16+AH16)-(AE16+AF16))*24,"Nu a fost afectat producator/consumator")),"") ->  | AY16: =IF(B16="X",IF(AN16="DA",IF(AX16>24,IF(BA16="NU",0,LEN(TRIM(V16))-LEN(SUBSTITUTE(V16,CHAR(44),""))+1),0),"-"),"") ->  | AZ16: =IF(B16="X",IF(AN16="DA",IF(AX16>24,LEN(TRIM(V16))-LEN(SUBSTITUTE(V16,CHAR(44),""))+1,0),"-"),"") ->  | BF16: =IF(C16="X",IF(AN16="","Afectat sau NU?",IF(AN16="DA",IF(AK16="","Neinformat",NETWORKDAYS(AK16+AL16,AE16+AF16,$BS$2:$BS$14)-2),"Nu a fost afectat producator/consumator")),"") -> Afectat sau NU? | BG16: =IF(C16="X",IF(AN16="DA",IF(AND(BF16>=5,AK16<>""),LEN(TRIM(V16))-LEN(SUBSTITUTE(V16,CHAR(44),""))+1,0),"-"),"") -> - | BH16: =IF(C16="X",IF(AN16="DA",LEN(TRIM(V16))-LEN(SUBSTITUTE(V16,CHAR(44),""))+1,"-"),"") -> - | BI16: =IF(C16="X",IF(AN16="","Afectat sau NU?",IF(AN16="DA",IF(AI16="","Neinformat",NETWORKDAYS(AI16+AJ16,AE16+AF16,$BS$2:$BS$14)-2),"Nu a fost afectat producator/consumator")),"") -> Afectat sau NU? | BJ16: =IF(C16="X",IF(AN16="DA",IF(AND(BI16>=5,AI16<>""),LEN(TRIM(U16))-LEN(SUBSTITUTE(U16,CHAR(44),""))+1,0),"-"),"") -> - | BK16: =IF(C16="X",IF(AN16="DA",LEN(TRIM(U16))-LEN(SUBSTITUTE(U16,CHAR(44),""))+1,"-"),"") -> - | BL16: =IF(C16="X",IF(AN16="","Afectat sau NU?",IF(AN16="DA",((AG16+AH16)-(Z16+AA16))*24,"Nu a fost afectat producator/consumator")),"") -> Afectat sau NU? | BM16: =IF(C16="X",IF(AN16<>"DA","-",IF(AND(AN16="DA",BL16<=0),LEN(TRIM(V16))-LEN(SUBSTITUTE(V16,CHAR(44),""))+1+LEN(TRIM(U16))-LEN(SUBSTITUTE(U16,CHAR(44),""))+1,0)),"") -> - | BN16: =IF(C16="X",IF(AN16="DA",LEN(TRIM(V16))-LEN(SUBSTITUTE(V16,CHAR(44),""))+1+LEN(TRIM(U16))-LEN(SUBSTITUTE(U16,CHAR(44),""))+1,"-"),"") -> -
A17: =SUM(1,$A16) -> 2 | B17: - | C17: X | D17: Dezvoltare SNT - Conducta de transport gaze 20” Craiova - Segarcea - Băilești - Calafat, et.I, tronson Craiova - Segarcea | E17: 69919 | F17: Craiova | G17: Dolj | H17: 408229.2898 | I17: 311000.1356 | J17: 408229.2898 | K17: 311000.1356 | L17: - | M17: - | N17: SM0209D1 | O17: SC Ford Combinat | P17: - | Q17: - | R17: - | S17: - | T17: SM-CF001 | U17: Engie Romania | V17: SC Ford România SA | W17: octombrie - decembrie 2019 februarie - iunie 2020 aprilie - iunie 2020 iulie - septembrie 2020 | AB17: Craiova | AD17: Necesitatea schimbării soluției de foraj prin dispoziție de șantier. Conform Programului de Modernizare, Dezvoltare și Investiții pe anul 2020 - 2022 aprobat. Modificarea traseului conductei prin dispoziție de șantier. | AP17: PMDI 2020_2.1.A.4 | BF17: Afectat sau NU? | BG17: - | BH17: - | BI17: Afectat sau NU? | BJ17: - | BK17: - | BL17: Afectat sau NU? | BM17: - | BN17: -
A18: 3 | B18: - | C18: X | D18: Dezvoltare SNT - Conducta de transport gaze 20” Craiova - Segarcea - Băilești - Calafat, et.I, tronson Craiova - Segarcea | E18: 69919 | F18: Craiova | G18: Dolj | H18: 408229.2898 | I18: 311000.1356 | J18: 408229.2898 | K18: 311000.1356 | L18: - | M18: - | N18: SM0209D2 | O18: Ford Craiova Casnici | P18: - | Q18: - | R18: - | S18: - | T18: SM-SD001 | U18: Aderro GP, Alpha Metal, Nova Power, Cez Vânzare, Cis Gaz, Conef Gaz, Cyeb, Distrigaz Vest, Engie, E.on Energie, Electrocentrale București, Electrocentrale Constanța, Electric Planners, Electrica Furnizare, Electric&Gas, Energy Distribution, Enel Energie, Enel Muntenia, Entrex, Euro Seven, Premier Energy, Gaz Est, Hargaz, Megaconstruct, Met România, Monsson, Next Energy, Oligopol, Premier Energy, Petrom, Energy Gas Provider, Renovatio, Restart Energy, Romgaz, RWE, Tinmar, Transenergo, Veolia, Wiee | V18: Distrigaz Sud Rețele | W18: octombrie - decembrie 2019 februarie - iunie 2020 aprilie - iunie 2020 iulie - septembrie 2020 | AB18: Craiova | AD18: Necesitatea schimbării soluției de foraj prin dispoziție de șantier. Conform Programului de Modernizare, Dezvoltare și Investiții pe anul 2020 - 2022 aprobat. Modificarea traseului conductei prin dispoziție de șantier. | AP18: PMDI 2020_2.1.A.4 | BF18: Afectat sau NU? | BG18: - | BH18: - | BI18: Afectat sau NU? | BJ18: - | BK18: - | BL18: Afectat sau NU? | BM18: - | BN18: -
A19: 4 | B19: - | C19: X | D19: Dezvoltare SNT - Conducta de transport gaze 20” Craiova - Segarcea - Băilești - Calafat, et.I, tronson Craiova - Segarcea | E19: 69919 | F19: Craiova | G19: Dolj | H19: 404628.8399 | I19: 311354.1039 | J19: 404628.8399 | K19: 311354.1039 | L19: - | M19: - | N19: SM0208D0 | O19: Craiova Sud | P19: - | Q19: - | R19: - | S19: - | T19: SM-SD001 | U19: Aderro GP, Alpha Metal, Nova Power, Cez Vânzare, Cis Gaz, Conef Gaz, Cyeb, Distrigaz Vest, Engie, E.on Energie, Electrocentrale București, Electrocentrale Constanța, Electric Planners, Electrica Furnizare, Electric&Gas, Energy Distribution, Enel Energie, Enel Muntenia, Entrex, Euro Seven, Premier Energy, Gaz Est, Hargaz, Megaconstruct, Met România, Monsson, Next Energy, Oligopol, Premier Energy, Petrom, Energy Gas Provider, Renovatio, Restart Energy, Romgaz, RWE, Tinmar, Transenergo, Veolia, Wiee | V19: Distrigaz Sud Rețele | W19: octombrie - decembrie 2019 februarie - iunie 2020 aprilie - iunie 2020 iulie - septembrie 2020 | AB19: Craiova | AD19: Necesitatea schimbării soluției de foraj prin dispoziție de șantier. Conform Programului de Modernizare, Dezvoltare și Investiții pe anul 2020 - 2022 aprobat. Modificarea traseului conductei prin dispoziție de șantier. | AP19: PMDI 2020_2.1.A.4 | BF19: Afectat sau NU? | BG19: - | BH19: - | BI19: Afectat sau NU? | BJ19: - | BK19: - | BL19: Afectat sau NU? | BM19: - | BN19: -
A20: 5 | B20: - | C20: X | D20: Dezvoltare SNT - Conducta de transport gaze 20” Craiova - Segarcea - Băilești - Calafat, et.I, tronson Craiova - Segarcea | E20: 70129 | F20: Podari | G20: Dolj | H20: 404627.6737 | I20: 311347.6397 | J20: 404627.6737 | K20: 311347.6397 | L20: - | M20: - | N20: SM1053D0 | O20: Podari | P20: - | Q20: - | R20: - | S20: - | T20: SM-SD001 | U20: Aderro GP, Alpha Metal, Nova Power, Cez Vânzare, Cis Gaz, Conef Gaz, Cyeb, Distrigaz Vest, Engie, E.on Energie, Electrocentrale București, Electrocentrale Constanța, Electric Planners, Electrica Furnizare, Electric&Gas, Energy Distribution, Enel Energie, Enel Muntenia, Entrex, Euro Seven, Premier Energy, Gaz Est, Hargaz, Megaconstruct, Met România, Monsson, Next Energy, Oligopol, Premier Energy, Petrom, Energy Gas Provider, Renovatio, Restart Energy, Romgaz, RWE, Tinmar, Transenergo, Veolia, Wiee | V20: Distrigaz Sud Rețele | W20: octombrie - decembrie 2019 februarie - iunie 2020 aprilie - iunie 2020 iulie - septembrie 2020 | AB20: Craiova | AD20: Necesitatea schimbării soluției de foraj prin dispoziție de șantier. Conform Programului de Modernizare, Dezvoltare și Investiții pe anul 2020 - 2022 aprobat. Modificarea traseului conductei prin dispoziție de șantier. | AP20: PMDI 2020_2.1.A.4 | BF20: Afectat sau NU? | BG20: - | BH20: - | BI20: Afectat sau NU? | BJ20: - | BK20: - | BL20: Afectat sau NU? | BM20: - | BN20: -
A21: 6 | B21: - | C21: X | D21: Refacere subtraversare râu Strei cu conducta Vest II, zona Totia | E21: - | F21: Csanadpalota | G21: - | H21: 170687.288 | I21: 531495.4565 | J21: 170687.288 | K21: 531495.4565 | L21: SM1281D0 | M21: Csanadpalota Export | N21: - | O21: - | P21: - | Q21: - | R21: - | S21: - | T21: SM1281D0 | V21: FGSZ Ltd | W21: aprilie - iunie 2020 iulie - septembrie 2020 | AB21: Arad | AD21: Conform Programului de Modernizare, Dezvoltare și Investiții pe anul 2020 - 2022 aprobat | AP21: PMDI 2020_2.1.B.18 | BF21: Afectat sau NU? | BG21: - | BH21: - | BI21: Afectat sau NU? | BJ21: - | BK21: - | BL21: Afectat sau NU? | BM21: - | BN21: -
A22: 7 | B22: - | C22: X | D22: Refacere subtraversare râu Strei cu conducta Vest II, zona Totia | E22: - | F22: Csanadpalota | G22: - | H22: 170687.288 | I22: 531495.4565 | J22: 170687.288 | K22: 531495.4565 | L22: - | M22: - | N22: - | O22: - | P22: PM0266 | Q22: Csanadpalota Import | R22: - | S22: - | T22: PM0266 | U22: Engie, Met România, Axpo Energy, Petrom, Premier Energy, Uniper Global, Valahia Gaz, RWE Supply | V22: FGSZ Ltd | W22: aprilie - iunie 2020 iulie - septembrie 2020 | AB22: Arad | AD22: Conform Programului de Modernizare, Dezvoltare și Investiții pe anul 2020 - 2022 aprobat | AP22: PMDI 2020_2.1.B.18 | BF22: Afectat sau NU? | BG22: - | BH22: - | BI22: Afectat sau NU? | BJ22: - | BK22: - | BL22: Afectat sau NU? | BM22: - | BN22: -
A23: 8 | B23: - | C23: X | D23: Refacere subtraversare râu Strei cu conducta Vest III, zona Totia | E23: - | F23: Csanadpalota | G23: - | H23: 170687.288 | I23: 531495.4565 | J23: 170687.288 | K23: 531495.4565 | L23: SM1281D0 | M23: Csanadpalota Export | N23: - | O23: - | P23: - | Q23: - | R23: - | S23: - | T23: SM1281D0 | V23: FGSZ Ltd | W23: aprilie - iunie 2020 iulie - septembrie 2020 | AB23: Arad | AD23: Conform Programului de Modernizare, Dezvoltare și Investiții pe anul 2020 - 2022 aprobat | AP23: PMDI 2020_2.1.B.18 | BF23: Afectat sau NU? | BG23: - | BH23: - | BI23: Afectat sau NU? | BJ23: - | BK23: - | BL23: Afectat sau NU? | BM23: - | BN23: -
A24: 9 | B24: - | C24: X | D24: Refacere subtraversare râu Strei cu conducta Vest III, zona Totia | E24: - | F24: Csanadpalota | G24: - | H24: 170687.288 | I24: 531495.4565 | J24: 170687.288 | K24: 531495.4565 | L24: - | M24: - | N24: - | O24: - | P24: PM0266 | Q24: Csanadpalota Import | R24: - | S24: - | T24: PM0266 | U24: Engie, Met România, Axpo Energy, Petrom, Premier Energy, Uniper Global, Valahia Gaz, RWE Supply | V24: FGSZ Ltd | W24: aprilie - iunie 2020 iulie - septembrie 2020 | AB24: Arad | AD24: Conform Programului de Modernizare, Dezvoltare și Investiții pe anul 2020 - 2022 aprobat | AP24: PMDI 2020_2.1.B.18 | BF24: Afectat sau NU? | BG24: - | BH24: - | BI24: Afectat sau NU? | BJ24: - | BK24: - | BL24: Afectat sau NU? | BM24: - | BN24: -
A25: 10 | B25: - | C25: X | D25: Modernizare NT Schitu Goleşti - montare gară godevil | E25: 18689 | F25: Schitu Golești | G25: Argeș | H25: 499964.406 | I25: 409075.773 | J25: 499964.406 | K25: 409075.773 | L25: - | M25: - | N25: SM1089D0 | O25: Schitu Golești | P25: - | Q25: - | R25: - | S25: - | T25: SM-SD001 | U25: Cez Vânzare, E.on Energie, Electric Planners, Electrica Furnizare, Electrocentrale București, Enel Energie, Energy Distribution, Engie, Met România, Monsson, Premier Energy Trading, RWE, Aderro GP, Cis Gaz, Conef Gaz, Cyeb, Distrigaz Vest, Electric&Gas, Electrocentrale Constanța, Enel Muntenia, Gas Provider, Entrex, Euro Seven, Gaz Est, Hargaz, Megaconstruct, Next Energy, Nova Power, Oligopol | V25: SC Distrigaz Sud Rețele | W25: iulie - septembrie 2020 | AB25: Craiova | AP25: PMDI 2020_8 (Anexa 1) | BF25: Afectat sau NU? | BG25: - | BH25: - | BI25: Afectat sau NU? | BJ25: - | BK25: - | BL25: Afectat sau NU? | BM25: - | BN25: -
A26: 11 | B26: - | C26: X | D26: Modernizare NT Schitu Goleşti - montare gară godevil | E26: 17254 | F26: Mihăești | G26: Argeș | H26: 500598.145 | I26: 401110.1547 | J26: 500598.145 | K26: 401110.1547 | L26: - | M26: - | N26: SM1243D0 | O26: Mihaești AG | P26: - | Q26: - | R26: - | S26: - | T26: SM-SD001 | U26: Cez Vânzare, E.on Energie, Electric Planners, Electrica Furnizare, Electrocentrale București, Enel Energie, Energy Distribution, Engie, Met România, Monsson, Premier Energy Trading, RWE, Aderro GP, Cis Gaz, Conef Gaz, Cyeb, Distrigaz Vest, Electric&Gas, Electrocentrale Constanța, Enel Muntenia, Gas Provider, Entrex, Euro Seven, Gaz Est, Hargaz, Megaconstruct, Next Energy, Nova Power, Oligopol | V26: SC Distrigaz Sud Rețele | W26: iulie - septembrie 2020 | AB26: Craiova | AP26: PMDI 2020_8 (Anexa 1) | BF26: Afectat sau NU? | BG26: - | BH26: - | BI26: Afectat sau NU? | BJ26: - | BK26: - | BL26: Afectat sau NU? | BM26: - | BN26: -
A27: 12 | B27: - | C27: X | D27: Modernizare și înlocuire instalații tehnologice în cadrul SRM Miercurea Ciuc | E27: 83339 | F27: Miercurea Ciuc | G27: Harghita | H27: 559632.478 | I27: 541553.1167 | J27: 559632.478 | K27: 541553.1167 | L27: - | M27: - | N27: SM0415D1 | O27: Miercurea Ciuc | P27: - | Q27: - | R27: - | S27: - | T27: SM-SD001 | U27: Cez Vânzare, E.on Energie, E.on Furnizare, Electric Planners, Electrica Furnizare, Enel Energie, Energy Distribution, Engie, Met România, Monsson, Premier Energy Trading, RWE, Aderro GP, Cis Gaz, Conef Gaz, CPL Concordia, Cyeb, Design Proiect, Distrigaz Vest, Electric&Gas, Enel Muntenia, Gas Provider, Entrex, Gaz Est, Hargaz, Next Energy, Nova Power, Petrom, Premier Energy, Renovatio, Restart Energy, Tinmar, Wiee, Tetarom, SST Grup, Pado Group, Mihoc Oil, Gaz Vest, Gazmir Iași, Prisma Serv | V27: Delgaz Grid SA | W27: iulie - august 2020 iulie - septembrie 2020 | AB27: Brașov | AD27: Conform Programului de Modernizare, Dezvoltare și Investiții pe anul 2020 - 2022 aprobat | AP27: PMDI 2020_6 (Anexa 3) | BF27: Afectat sau NU? | BG27: - | BH27: - | BI27: Afectat sau NU? | BJ27: - | BK27: - | BL27: Afectat sau NU? | BM27: - | BN27: -
A28: 13 | B28: - | C28: X | D28: Modernizare și înlocuire instalații tehnologice în cadrul SRM Miercurea Ciuc | E28: 83339 | F28: Miercurea Ciuc | G28: Harghita | H28: 559632.478 | I28: 541553.1167 | J28: 559632.478 | K28: 541553.1167 | L28: - | M28: - | N28: SM0415D2 | O28: SC Heineken M. Ciuc | P28: - | Q28: - | R28: - | S28: - | T28: SM-CF001 | U28: Petrom | V28: SC Heineken România SA | W28: iulie - august 2020 iulie - septembrie 2020 | AB28: Brașov | AD28: Conform Programului de Modernizare, Dezvoltare și Investiții pe anul 2020 - 2022 aprobat | AP28: PMDI 2020_6 (Anexa 3) | BF28: Afectat sau NU? | BG28: - | BH28: - | BI28: Afectat sau NU? | BJ28: - | BK28: - | BL28: Afectat sau NU? | BM28: - | BN28: -
A29: 14 | B29: - | C29: X | D29: Punerea în siguranță (deviere) a conductei de transport gaze naturale 20” Hațeg - Dealul Babii - Paroșeni, zona Dealul Babii, jud. Hunedoara | E29: - | F29: Csanadpalota | G29: - | H29: 170687.288 | I29: 531495.4565 | J29: 170687.288 | K29: 531495.4565 | L29: SM1281D0 | M29: Csanadpalota Export | N29: - | O29: - | P29: - | Q29: - | R29: - | S29: - | T29: SM1281D0 | V29: FGSZ Ltd | W29: iulie - septembrie 2020 anul gazier 2020 - 2021 | AB29: Arad | AD29: Conform Programului de Modernizare, Dezvoltare și Investiții pe anul 2020 - 2022 aprobat | AP29: PMDI 2020_1 (Anexa 7) | BF29: Afectat sau NU? | BG29: - | BH29: - | BI29: Afectat sau NU? | BJ29: - | BK29: - | BL29: Afectat sau NU? | BM29: - | BN29: -
A30: 15 | B30: - | C30: X | D30: Punerea în siguranță (deviere) a conductei de transport gaze naturale 20” Hațeg - Dealul Babii - Paroșeni, zona Dealul Babii, jud. Hunedoara | E30: - | F30: Csanadpalota | G30: - | H30: 170687.288 | I30: 531495.4565 | J30: 170687.288 | K30: 531495.4565 | L30: - | M30: - | N30: - | O30: - | P30: PM0266 | Q30: Csanadpalota Import | R30: - | S30: - | T30: PM0266 | U30: Engie, Met România, RWE, Axpo Energy, Petrom, Premier Energy, Uniper Global, Valahia Gaz | V30: FGSZ Ltd | W30: iulie - septembrie 2020 anul gazier 2020 - 2021 | AB30: Arad | AD30: Conform Programului de Modernizare, Dezvoltare și Investiții pe anul 2020 - 2022 aprobat | AP30: PMDI 2020_1 (Anexa 7) | BF30: Afectat sau NU? | BG30: - | BH30: - | BI30: Afectat sau NU? | BJ30: - | BK30: - | BL30: Afectat sau NU? | BM30: - | BN30: -
A31: 16 | B31: - | C31: X | D31: Punerea în siguranță (deviere) a conductei 10” Frasin - Spătărești în zona Spătărești | E31: 146548 | F31: Fălticeni | G31: Suceava | H31: 598080.5563 | I31: 662273.5562 | J31: 598080.5563 | K31: 662273.5562 | L31: - | M31: - | N31: SM0490D0 | O31: Fălticeni | P31: - | Q31: - | R31: - | S31: - | T31: SM-SD001 | U31: Cez Vânzare, E.on Energie, E.on Furnizare, Electric Planners, Electrica Furnizare, Enel Energie, Energy Distribution, Engie, Met România, Monsson, Premier Energy Trading, RWE, Aderro GP, Cis Gaz, Conef Gaz, CPL Concordia, Cyeb, Design Proiect, Distrigaz Vest, Electric&Gas, Enel Muntenia, Gas Provider, Entrex, Gaz Est, Hargaz, Next Energy, Nova Power, Petrom, Premier Energy, Renovatio, Restart Energy, Tinmar, Wiee, Tetarom, SST Grup, Pado Group, Mihoc Oil, Gaz Vest, Gazmir Iași, Prisma Serv | V31: Delgaz Grid SA | W31: iulie - septembrie 2020 | AB31: Bacău | AP31: PMDI 2020_2 (Anexa 7) | BF31: Afectat sau NU? | BG31: - | BH31: - | BI31: Afectat sau NU? | BJ31: - | BK31: - | BL31: Afectat sau NU? | BM31: - | BN31: -
A32: 17 | B32: - | C32: X | D32: Punere în siguranță conductă 20” Hurezani – Corbu – București, Fir 1 negodevilabil, tronson Oporelu - Teu Albeni, zona loc. Bârla, jud. Argeș | E32: 80506 | F32: Hurezani | G32: Gorj | H32: 394212.6896 | I32: 369126.4888 | J32: 394212.6896 | K32: 369126.4888 | L32: - | M32: - | N32: - | O32: - | P32: PM0205 | Q32: Hurezani SU | R32: - | S32: - | T32: PM-PP001 | U32: Romgaz | V32: SNGN Romgaz SA | W32: septembrie 2020 | AB32: Craiova | AD32: Nu se efectuează în anul gazier 2019 - 2020 - În curs de proiectare | AO32: propunere PRRASM 2020 | AP32: - | BF32: Afectat sau NU? | BG32: - | BH32: - | BI32: Afectat sau NU? | BJ32: - | BK32: - | BL32: Afectat sau NU? | BM32: - | BN32: -
A33: 18 | B33: - | C33: X | D33: Punere în siguranță conductă 20” Hurezani – Corbu – București, Fir 1 negodevilabil, tronson Oporelu - Teu Albeni, zona loc. Bârla, jud. Argeș | E33: 80506 | F33: Hurezani | G33: Gorj | H33: 394174.3345 | I33: 369081.6569 | J33: 394174.3345 | K33: 369081.6569 | L33: - | M33: - | N33: - | O33: - | P33: PM0062 | Q33: Hurezani Bulbuceni | R33: - | S33: - | T33: PM-PP001 | U33: Petrom | V33: SC OMV Petrom SA | W33: septembrie 2020 | AB33: Craiova | AD33: Nu se efectuează în anul gazier 2019 - 2020 - În curs de proiectare | AO33: propunere PRRASM 2020 | AP33: - | BF33: Afectat sau NU? | BG33: - | BH33: - | BI33: Afectat sau NU? | BJ33: - | BK33: - | BL33: Afectat sau NU? | BM33: - | BN33: -
A34: 19 | B34: - | C34: X | D34: Punere în siguranță conductă 20” Hurezani – Corbu – București, Fir 1 negodevilabil, tronson Oporelu - Teu Albeni, zona loc. Bârla, jud. Argeș | E34: 82252 | F34: Stejari (Băcești) | G34: Gorj | H34: 396359.6843 | I34: 364898.3753 | J34: 396359.6843 | K34: 364898.3753 | L34: - | M34: - | N34: - | O34: - | P34: PM0206 | Q34: Piscu Stejari SU | R34: - | S34: - | T34: PM-PP001 | U34: Romgaz | V34: SNGN Romgaz SA | W34: septembrie 2020 | AB34: Craiova | AD34: Nu se efectuează în anul gazier 2019 - 2020 - În curs de proiectare | AO34: propunere PRRASM 2020 | AP34: - | BF34: Afectat sau NU? | BG34: - | BH34: - | BI34: Afectat sau NU? | BJ34: - | BK34: - | BL34: Afectat sau NU? | BM34: - | BN34: -
A35: 20 | B35: - | C35: X | D35: Punere în siguranță conductă 20” Hurezani – Corbu – București, Fir 1 negodevilabil, tronson Oporelu - Teu Albeni, zona loc. Bârla, jud. Argeș | E35: 174307 | F35: Zătreni | G35: Vâlcea | H35: 410095.9203 | I35: 362876.8564 | J35: 410095.9203 | K35: 362876.8564 | L35: - | M35: - | N35: - | O35: - | P35: PM0270 | Q35: SU Zătreni | R35: - | S35: - | T35: PM-PP001 | U35: Romgaz, Amromco, Foraj Sonde | V35: SNGN Romgaz SA, SC Amromco Energy SRL, SC Foraj Sonde SA | W35: septembrie 2020 | AB35: Craiova | AD35: Nu se efectuează în anul gazier 2019 - 2020 - În curs de proiectare | AO35: propunere PRRASM 2020 | AP35: - | BF35: Afectat sau NU? | BG35: - | BH35: - | BI35: Afectat sau NU? | BJ35: - | BK35: - | BL35: Afectat sau NU? | BM35: - | BN35: -
A36: 21 | B36: - | C36: X | D36: Punere în siguranță conductă 20” Hurezani – Corbu – București, Fir 1 negodevilabil, tronson Oporelu - Teu Albeni, zona loc. Bârla, jud. Argeș | E36: 174307 | F36: Zătreni | G36: Vâlcea | H36: 410096.0021 | I36: 362876.7523 | J36: 410096.0021 | K36: 362876.7523 | L36: - | M36: - | N36: - | O36: - | P36: PM0054 | Q36: Zătreni | R36: - | S36: - | T36: PM-PP001 | U36: Romgaz, Amromco | V36: SNGN Romgaz SA, SC Amromco Energy SRL | W36: septembrie 2020 | AB36: Craiova | AD36: Nu se efectuează în anul gazier 2019 - 2020 - În curs de proiectare | AO36: propunere PRRASM 2020 | AP36: - | BF36: Afectat sau NU? | BG36: - | BH36: - | BI36: Afectat sau NU? | BJ36: - | BK36: - | BL36: Afectat sau NU? | BM36: - | BN36: -
A37: 22 | B37: - | C37: X | D37: Punere în siguranță conductă 20” Hurezani – Corbu – București, Fir 1 negodevilabil, tronson Oporelu - Teu Albeni, zona loc. Bârla, jud. Argeș | E37: 170355 | F37: Grădiștea | G37: Vâlcea | H37: 408181.079 | I37: 379756.6068 | J37: 408181.079 | K37: 379756.6068 | L37: - | M37: - | N37: - | O37: - | P37: PM0053 | Q37: Grădiștea | R37: - | S37: - | T37: PM-PP001 | U37: Romgaz, Petrom | V37: SNGN Romgaz SA, SC OMV Petrom SA | W37: septembrie 2020 | AB37: Craiova | AD37: Nu se efectuează în anul gazier 2019 - 2020 - În curs de proiectare | AO37: propunere PRRASM 2020 | AP37: - | BF37: Afectat sau NU? | BG37: - | BH37: - | BI37: Afectat sau NU? | BJ37: - | BK37: - | BL37: Afectat sau NU? | BM37: - | BN37: -
A38: 23 | B38: - | C38: X | D38: Punere în siguranță conductă 20” Hurezani – Corbu – București, Fir 1 negodevilabil, tronson Oporelu - Teu Albeni, zona loc. Bârla, jud. Argeș | E38: 170907 | F38: Pârâienii de Jos | G38: Vâlcea | H38: 407916.5342 | I38: 366668.7789 | J38: 407916.5342 | K38: 366668.7789 | L38: - | M38: - | N38: - | O38: - | P38: PM0259 | Q38: Pârâienii de Jos | R38: - | S38: - | T38: PM-PP001 | U38: Petrom | V38: SC OMV Petrom SA | W38: septembrie 2020 | AB38: Craiova | AD38: Nu se efectuează în anul gazier 2019 - 2020 - În curs de proiectare | AO38: propunere PRRASM 2020 | AP38: - | BF38: Afectat sau NU? | BG38: - | BH38: - | BI38: Afectat sau NU? | BJ38: - | BK38: - | BL38: Afectat sau NU? | BM38: - | BN38: -
A39: 24 | B39: - | C39: X | D39: Punere în siguranță conductă 20” Hurezani – Corbu – București, Fir 1 negodevilabil, tronson Oporelu - Teu Albeni, zona loc. Bârla, jud. Argeș | E39: 171263 | F39: Mamu | G39: Vâlcea | H39: 432509.8138 | I39: 353934.1037 | J39: 432509.8138 | K39: 353934.1037 | L39: - | M39: - | N39: - | O39: - | P39: PM0296 | Q39: Mamu (Crețeni) | R39: - | S39: - | T39: PM-PP001 | U39: Petrom | V39: SC OMV Petrom SA | W39: septembrie 2020 | AB39: Craiova | AD39: Nu se efectuează în anul gazier 2019 - 2020 - În curs de proiectare | AO39: propunere PRRASM 2020 | AP39: - | BF39: Afectat sau NU? | BG39: - | BH39: - | BI39: Afectat sau NU? | BJ39: - | BK39: - | BL39: Afectat sau NU? | BM39: - | BN39: -
A40: 25 | B40: - | C40: X | D40: Punere în siguranță conductă 20” Hurezani – Corbu – București, Fir 1 negodevilabil, tronson Oporelu - Teu Albeni, zona loc. Bârla, jud. Argeș | E40: 171209 | F40: Mădulari | G40: Vâlcea | H40: 428807.9047 | I40: 356611.1101 | J40: 428807.9047 | K40: 356611.1101 | L40: - | M40: - | N40: - | O40: - | P40: PM0191 | Q40: Mădulari | R40: - | S40: - | T40: PM-PP001 | U40: Petrom, Amromco | V40: SC OMV Petrom SA, SC Amromco Energy SRL | W40: septembrie 2020 | AB40: Craiova | AD40: Nu se efectuează în anul gazier 2019 - 2020 - În curs de proiectare | AO40: propunere PRRASM 2020 | AP40: - | BF40: Afectat sau NU? | BG40: - | BH40: - | BI40: Afectat sau NU? | BJ40: - | BK40: - | BL40: Afectat sau NU? | BM40: - | BN40: -
A41: 26 | B41: - | C41: X | D41: Punere în siguranță conductă 20” Hurezani – Corbu – București, Fir 1 negodevilabil, tronson Oporelu - Teu Albeni, zona loc. Bârla, jud. Argeș | E41: 172386 | F41: Popești | G41: Vâlcea | H41: 431868.6333 | I41: 384475.2689 | J41: 431868.6333 | K41: 384475.2689 | L41: - | M41: - | N41: - | O41: - | P41: PM0034 | Q41: Popești Lăpușata | R41: - | S41: - | T41: PM-PP001 | U41: Petrom | V41: SC OMV Petrom SA | W41: septembrie 2020 | AB41: Craiova | AD41: Nu se efectuează în anul gazier 2019 - 2020 - În curs de proiectare | AO41: propunere PRRASM 2020 | AP41: - | BF41: Afectat sau NU? | BG41: - | BH41: - | BI41: Afectat sau NU? | BJ41: - | BK41: - | BL41: Afectat sau NU? | BM41: - | BN41: -
A42: 27 | B42: - | C42: X | D42: Punere în siguranță conductă 20” Hurezani – Corbu – București, Fir 1 negodevilabil, tronson Oporelu - Teu Albeni, zona loc. Bârla, jud. Argeș | E42: 168372 | F42: Tătărani | G42: Vâlcea | H42: 441512.0399 | I42: 388186.2574 | J42: 441512.0399 | K42: 388186.2574 | L42: - | M42: - | N42: - | O42: - | P42: PM0068 | Q42: Tătărani | R42: - | S42: - | T42: PM-PP001 | U42: Petrom | V42: SC OMV Petrom SA | W42: septembrie 2020 | AB42: Craiova | AD42: Nu se efectuează în anul gazier 2019 - 2020 - În curs de proiectare | AO42: propunere PRRASM 2020 | AP42: - | BF42: Afectat sau NU? | BG42: - | BH42: - | BI42: Afectat sau NU? | BJ42: - | BK42: - | BL42: Afectat sau NU? | BM42: - | BN42: -
A43: 28 | B43: - | C43: X | D43: Punere în siguranță conductă 20” Hurezani – Corbu – București, Fir 1 negodevilabil, tronson Oporelu - Teu Albeni, zona loc. Bârla, jud. Argeș | E43: 126326 | F43: Corbu | G43: Olt | H43: 478431.2424 | I43: 331691.6553 | J43: 478431.2424 | K43: 331691.6553 | L43: - | M43: - | N43: - | O43: - | P43: PM0069 | Q43: Corbu | R43: - | S43: - | T43: PM-PP001 | U43: Petrom | V43: SC OMV Petrom SA | W43: septembrie 2020 | AB43: Craiova | AD43: Nu se efectuează în anul gazier 2019 - 2020 - În curs de proiectare | AO43: propunere PRRASM 2020 | AP43: - | BF43: Afectat sau NU? | BG43: - | BH43: - | BI43: Afectat sau NU? | BJ43: - | BK43: - | BL43: Afectat sau NU? | BM43: - | BN43: -
A44: 29 | B44: - | C44: X | D44: Punere în siguranță traversare aeriană peste canal râu Bistrița cu conducta 12” Piatra Neamț – Bicaz, zona Pângărați, Stejaru și Bicaz | E44: 124965 | F44: Bisericani | G44: Neamț | H44: 594524.2825 | I44: 607357.2597 | J44: 594524.2825 | K44: 607357.2597 | L44: - | M44: - | N44: SM0456D0 | O44: Spitalul de Pneumoftiziologie Bisericani | P44: - | Q44: - | R44: - | S44: - | T44: SM-CF001 | U44: Enel Muntenia | V44: Spitalul de Pneumoftiziologie Bisericani | W44: mai - iulie 2020 | AB44: Bacău | AD44: Nu se efectuează în anul gazier 2019 - 2020 - Necesitate modificare proiect | AO44: propunere PRRASM 2020 | AP44: - | BF44: Afectat sau NU? | BG44: - | BH44: - | BI44: Afectat sau NU? | BJ44: - | BK44: - | BL44: Afectat sau NU? | BM44: - | BN44: -
A45: 30 | B45: - | C45: X | D45: Punere în siguranță traversare aeriană peste canal râu Bistrița cu conducta 12” Piatra Neamț – Bicaz, zona Pângărați, Stejaru și Bicaz | E45: 124992 | F45: Vaduri | G45: Neamț | H45: 595078.5159 | I45: 604354.3936 | J45: 595078.5159 | K45: 604354.3936 | L45: - | M45: - | N45: SM0461D0 | O45: SC Kober Vaduri | P45: - | Q45: - | R45: - | S45: - | T45: SM-CF001 | U45: Petrom | V45: SC Kober SRL - Sucursala Vaduri | W45: mai - iulie 2020 | AB45: Bacău | AD45: Nu se efectuează în anul gazier 2019 - 2020 - Necesitate modificare proiect | AO45: propunere PRRASM 2020 | AP45: - | BF45: Afectat sau NU? | BG45: - | BH45: - | BI45: Afectat sau NU? | BJ45: - | BK45: - | BL45: Afectat sau NU? | BM45: - | BN45: -
A46: 31 | B46: - | C46: X | D46: Punere în siguranță traversare aeriană peste canal râu Bistrița cu conducta 12” Piatra Neamț – Bicaz, zona Pângărați, Stejaru și Bicaz | E46: 124992 | F46: Vaduri | G46: Neamț | H46: 595164.763 | I46: 604317.6584 | J46: 595164.763 | K46: 604317.6584 | L46: - | M46: - | N46: SM0457D0 | O46: SC Unopan SRL Vaduri | P46: - | Q46: - | R46: - | S46: - | T46: SM-CF001 | U46: Cordun Gaz | V46: SC Unopan SRL | W46: mai - iulie 2020 | AB46: Bacău | AD46: Nu se efectuează în anul gazier 2019 - 2020 - Necesitate modificare proiect | AO46: propunere PRRASM 2020 | AP46: - | BF46: Afectat sau NU? | BG46: - | BH46: - | BI46: Afectat sau NU? | BJ46: - | BK46: - | BL46: Afectat sau NU? | BM46: - | BN46: -
A47: 32 | B47: - | C47: X | D47: Punere în siguranță traversare aeriană peste canal râu Bistrița cu conducta 12” Piatra Neamț – Bicaz, zona Pângărați, Stejaru și Bicaz | E47: 124992 | F47: Vaduri | G47: Neamț | H47: 594758.2879 | I47: 604040.5662 | J47: 594758.2879 | K47: 604040.5662 | L47: - | M47: - | N47: SM1052D0 | O47: Vaduri | P47: - | Q47: - | R47: - | S47: - | T47: SM-SD001 | U47: Cez Vânzare, E.on Energie, E.on Furnizare, Electric Planners, Electrica Furnizare, Enel Energie, Energy Distribution, Engie, Met România, Monsson, Premier Energy Trading, RWE, Aderro GP, Cis Gaz, Conef Gaz, CPL Concordia, Cyeb, Design Proiect, Distrigaz Vest, Electric&Gas, Enel Muntenia, Gas Provider, Entrex, Gaz Est, Hargaz, Next Energy, Nova Power, Petrom, Premier Energy, Renovatio, Restart Energy, Tinmar, Wiee, Tetarom, SST Grup, Pado Group, Mihoc Oil, Gaz Vest, Gazmir Iași, Prisma Serv | V47: Delgaz Grid SA | W47: mai - iulie 2020 | AB47: Bacău | AD47: Nu se efectuează în anul gazier 2019 - 2020 - Necesitate modificare proiect | AO47: propunere PRRASM 2020 | AP47: - | BF47: Afectat sau NU? | BG47: - | BH47: - | BI47: Afectat sau NU? | BJ47: - | BK47: - | BL47: Afectat sau NU? | BM47: - | BN47: -
A48: 33 | B48: - | C48: X | D48: Punere în siguranță traversare aeriană peste canal râu Bistrița cu conducta 12” Piatra Neamț – Bicaz, zona Pângărați, Stejaru și Bicaz | E48: 123665 | F48: Stejaru | G48: Neamț | H48: 589703.3005 | I48: 602610.3066 | J48: 589703.3005 | K48: 602610.3066 | L48: - | M48: - | N48: SM0458D0 | O48: Stejaru | P48: - | Q48: - | R48: - | S48: - | T48: SM-SD001 | U48: Cez Vânzare, E.on Energie, E.on Furnizare, Electric Planners, Electrica Furnizare, Enel Energie, Energy Distribution, Engie, Met România, Monsson, Premier Energy Trading, RWE, Aderro GP, Cis Gaz, Conef Gaz, CPL Concordia, Cyeb, Design Proiect, Distrigaz Vest, Electric&Gas, Enel Muntenia, Gas Provider, Entrex, Gaz Est, Hargaz, Next Energy, Nova Power, Petrom, Premier Energy, Renovatio, Restart Energy, Tinmar, Wiee, Tetarom, SST Grup, Pado Group, Mihoc Oil, Gaz Vest, Gazmir Iași, Prisma Serv | V48: Delgaz Grid SA | W48: mai - iulie 2020 | AB48: Bacău | AD48: Nu se efectuează în anul gazier 2019 - 2020 - Necesitate modificare proiect | AO48: propunere PRRASM 2020 | AP48: - | BF48: Afectat sau NU? | BG48: - | BH48: - | BI48: Afectat sau NU? | BJ48: - | BK48: - | BL48: Afectat sau NU? | BM48: - | BN48: =IF(C48="X",IF(AN48="DA",LEN(TRIM(V48))-LEN(SUBSTITUTE(V48,CHAR(44),""))+1+LEN(TRIM(U48))-LEN(SUBSTITUTE(U48,CHAR(44),""))+1,"-"),"") -> -
A49: =SUM(1,$A48) -> 34 | B49: - | C49: X | D49: Punere în siguranță traversare aeriană peste canal râu Bistrița cu conducta 12” Piatra Neamț – Bicaz, zona Pângărați, Stejaru și Bicaz | E49: 120977 | F49: Bicaz | G49: Neamț | H49: 583336.3311 | I49: 601827.1189 | J49: 583336.3311 | K49: 601827.1189 | L49: - | M49: - | N49: SM0459D0 | O49: Bicaz | P49: - | Q49: - | R49: - | S49: - | T49: SM-SD001 | U49: Cez Vânzare, E.on Energie, E.on Furnizare, Electric Planners, Electrica Furnizare, Enel Energie, Energy Distribution, Engie, Met România, Monsson, Premier Energy Trading, RWE, Aderro GP, Cis Gaz, Conef Gaz, CPL Concordia, Cyeb, Design Proiect, Distrigaz Vest, Electric&Gas, Enel Muntenia, Gas Provider, Entrex, Gaz Est, Hargaz, Next Energy, Nova Power, Petrom, Premier Energy, Renovatio, Restart Energy, Tinmar, Wiee, Tetarom, SST Grup, Pado Group, Mihoc Oil, Gaz Vest, Gazmir Iași, Prisma Serv | V49: Delgaz Grid SA | W49: mai - iulie 2020 | AB49: Bacău | AD49: Nu se efectuează în anul gazier 2019 - 2020 - Necesitate modificare proiect | AO49: propunere PRRASM 2020 | AP49: - | BF49: Afectat sau NU? | BG49: - | BH49: - | BI49: Afectat sau NU? | BJ49: - | BK49: - | BL49: Afectat sau NU? | BM49: - | BN49: -
A50: 35 | B50: - | C50: X | D50: Pregătire conductă 28” Stâlp 89 - Filipești pentru transformare în conductă godevilabilă | E50: 134069 | F50: Măgureni | G50: Prahova | H50: 558808.0246 | I50: 394539.7363 | J50: 558808.0246 | K50: 394539.7363 | L50: - | M50: - | N50: SM0506D0 | O50: Măgureni | P50: - | Q50: - | R50: - | S50: - | T50: SM-SD001 | U50: Enel, Engie România, Enel Muntenia, MM Data | V50: SC MM Data SRL | W50: aprilie - septembrie 2020 | AB50: București | AD50: Nu se efectuează în anul gazier 2019 - 2020 - În faza de licitație | AO50: propunere PRRASM 2020 | AP50: - | BF50: Afectat sau NU? | BG50: - | BH50: - | BI50: Afectat sau NU? | BJ50: - | BK50: - | BL50: Afectat sau NU? | BM50: - | BN50: -
A51: 36 | B51: - | C51: X | D51: Pregătire conductă 28” Stâlp 89 - Filipești pentru transformare în conductă godevilabilă | E51: 134862 | F51: Provița de Jos | G51: Prahova | H51: 552168.0599 | I51: 402387.5876 | J51: 552168.0599 | K51: 402387.5876 | L51: - | M51: - | N51: SM0096D0 | O51: Provița de Jos | P51: - | Q51: - | R51: - | S51: - | T51: SM-SD001 | U51: Cez Vânzare, E.on Energie, Electric Planners, Electrica Furnizare, Electrocentrale București, Enel Energie, Energy Distribution, Engie, Met România, Monsson, Premier Energy Trading, RWE, Aderro GP, Cis Gaz, Conef Gaz, Cyeb, Distrigaz Vest, Electric&Gas, Electrocentrale Constanța, Enel Muntenia, Gas Provider, Entrex, Euro Seven, Gaz Est, Hargaz, Megaconstruct, Next Energy, Nova Power, Oligopol | V51: SC Distrigaz Sud Rețele | W51: aprilie - septembrie 2020 | AB51: București | AD51: Nu se efectuează în anul gazier 2019 - 2020 - În faza de licitație | AO51: propunere PRRASM 2020 | AP51: - | BF51: Afectat sau NU? | BG51: - | BH51: - | BI51: Afectat sau NU? | BJ51: - | BK51: - | BL51: Afectat sau NU? | BM51: - | BN51: -
A52: 37 | B52: - | C52: X | D52: Pregătire conductă 28” Stâlp 89 - Filipești pentru transformare în conductă godevilabilă | E52: 131121 | F52: Breaza de Sus | G52: Prahova | H52: 551059.1515 | I52: 410660.8987 | J52: 551059.1515 | K52: 410660.8987 | L52: - | M52: - | N52: SM0085D1 | O52: Breaza PH | P52: - | Q52: - | R52: - | S52: - | T52: SM-SD001 | U52: Cez Vânzare, E.on Energie, Electric Planners, Electrica Furnizare, Electrocentrale București, Enel Energie, Energy Distribution, Engie, Met România, Monsson, Premier Energy Trading, RWE, Aderro GP, Cis Gaz, Conef Gaz, Cyeb, Distrigaz Vest, Electric&Gas, Electrocentrale Constanța, Enel Muntenia, Gas Provider, Entrex, Euro Seven, Gaz Est, Hargaz, Megaconstruct, Next Energy, Nova Power, Oligopol | V52: SC Distrigaz Sud Rețele | W52: aprilie - septembrie 2020 | AB52: București | AD52: Nu se efectuează în anul gazier 2019 - 2020 - În faza de licitație | AO52: propunere PRRASM 2020 | AP52: - | BF52: Afectat sau NU? | BG52: - | BH52: - | BI52: Afectat sau NU? | BJ52: - | BK52: - | BL52: Afectat sau NU? | BM52: - | BN52: -
A53: 38 | B53: - | C53: X | D53: Pregătire conductă 28” Stâlp 89 - Filipești pentru transformare în conductă godevilabilă | E53: 131381 | F53: Posada | G53: Prahova | H53: 548893.7001 | I53: 420137.2183 | J53: 548893.7001 | K53: 420137.2183 | L53: - | M53: - | N53: SM0081D0 | O53: Posada | P53: - | Q53: - | R53: - | S53: - | T53: SM-SD001 | U53: Cez Vânzare, E.on Energie, Electric Planners, Electrica Furnizare, Electrocentrale București, Enel Energie, Energy Distribution, Engie, Met România, Monsson, Premier Energy Trading, RWE, Aderro GP, Cis Gaz, Conef Gaz, Cyeb, Distrigaz Vest, Electric&Gas, Electrocentrale Constanța, Enel Muntenia, Gas Provider, Entrex, Euro Seven, Gaz Est, Hargaz, Megaconstruct, Next Energy, Nova Power, Oligopol | V53: SC Distrigaz Sud Rețele | W53: aprilie - septembrie 2020 | AB53: București | AD53: Nu se efectuează în anul gazier 2019 - 2020 - În faza de licitație | AO53: propunere PRRASM 2020 | AP53: - | BF53: Afectat sau NU? | BG53: - | BH53: - | BI53: Afectat sau NU? | BJ53: - | BK53: - | BL53: Afectat sau NU? | BM53: - | BN53: -
A54: 39 | B54: - | C54: X | D54: Pregătire conductă 20” Stâlp 89 - Filipești pentru transformare în conductă godevilabilă | E54: 131345 | F54: Comarnic | G54: Prahova | H54: 549781.5202 | I54: 415513.8386 | J54: 549781.5202 | K54: 415513.8386 | L54: - | M54: - | N54: SM0084D1 | O54: Comarnic | P54: - | Q54: - | R54: - | S54: - | T54: SM-SD001 | U54: Cez Vânzare, E.on Energie, Electric Planners, Electrica Furnizare, Electrocentrale București, Enel Energie, Energy Distribution, Engie, Met România, Monsson, Premier Energy Trading, RWE, Aderro GP, Cis Gaz, Conef Gaz, Cyeb, Distrigaz Vest, Electric&Gas, Electrocentrale Constanța, Enel Muntenia, Gas Provider, Entrex, Euro Seven, Gaz Est, Hargaz, Megaconstruct, Next Energy, Nova Power, Oligopol | V54: SC Distrigaz Sud Rețele | W54: aprilie - septembrie 2020 | AB54: București | AD54: Nu se efectuează în anul gazier 2019 - 2020 - În faza de contractare | AO54: propunere PRRASM 2020 | AP54: - | BF54: Afectat sau NU? | BG54: - | BH54: - | BI54: Afectat sau NU? | BJ54: - | BK54: - | BL54: Afectat sau NU? | BM54: - | BN54: -
A55: 40 | B55: - | C55: X | D55: Pregătire conductă 20” Stâlp 89 - Filipești pentru transformare în conductă godevilabilă | E55: 131158 | F55: Nistorești | G55: Prahova | H55: 552080.234 | I55: 411911.363 | J55: 552080.234 | K55: 411911.363 | L55: - | M55: - | N55: SM0087D0 | O55: SC Izvorul Rece Nistorești | P55: - | Q55: - | R55: - | S55: - | T55: SM-CF001 | U55: Engie | V55: SC Izvorul Rece PS SRL | W55: aprilie - septembrie 2020 | AB55: București | AD55: Nu se efectuează în anul gazier 2019 - 2020 - În faza de contractare | AO55: propunere PRRASM 2020 | AP55: - | BF55: Afectat sau NU? | BG55: - | BH55: - | BI55: Afectat sau NU? | BJ55: - | BK55: - | BL55: Afectat sau NU? | BM55: - | BN55: -
A56: 41 | B56: - | C56: X | D56: Pregătire conductă 20” Stâlp 89 - Filipești pentru transformare în conductă godevilabilă | E56: 131283 | F56: Poiana Câmpina | G56: Prahova | H56: 556095.0815 | I56: 404225.6945 | J56: 556095.0815 | K56: 404225.6945 | L56: - | M56: - | N56: SM0089D0 | O56: Poiana Câmpina | P56: - | Q56: - | R56: - | S56: - | T56: SM-SD001 | U56: Cez Vânzare, E.on Energie, Electric Planners, Electrica Furnizare, Electrocentrale București, Enel Energie, Energy Distribution, Engie, Met România, Monsson, Premier Energy Trading, RWE, Aderro GP, Cis Gaz, Conef Gaz, Cyeb, Distrigaz Vest, Electric&Gas, Electrocentrale Constanța, Enel Muntenia, Gas Provider, Entrex, Euro Seven, Gaz Est, Hargaz, Megaconstruct, Next Energy, Nova Power, Oligopol | V56: SC Distrigaz Sud Rețele | W56: aprilie - septembrie 2020 | AB56: București | AD56: Nu se efectuează în anul gazier 2019 - 2020 - În faza de contractare | AO56: propunere PRRASM 2020 | AP56: - | BF56: Afectat sau NU? | BG56: - | BH56: - | BI56: Afectat sau NU? | BJ56: - | BK56: - | BL56: Afectat sau NU? | BM56: - | BN56: -
A57: 42 | B57: - | C57: X | D57: Pregătire conductă 20” Stâlp 89 - Filipești pentru transformare în conductă godevilabilă | E57: 131229 | F57: Bușteni | G57: Prahova | H57: 540786.679 | I57: 438967.0847 | J57: 540786.679 | K57: 438967.0847 | L57: - | M57: - | N57: SM0070D0 | O57: SC Cabana Gura Diham | P57: - | Q57: - | R57: - | S57: - | T57: SM-CF001 | U57: Engie | V57: SC Gura Diham SRL | W57: aprilie - septembrie 2020 | AB57: Brașov | AD57: Nu se efectuează în anul gazier 2019 - 2020 - În faza de contractare | AO57: propunere PRRASM 2020 | AP57: - | BF57: Afectat sau NU? | BG57: - | BH57: - | BI57: Afectat sau NU? | BJ57: - | BK57: - | BL57: Afectat sau NU? | BM57: - | BN57: -
A58: 43 | B58: - | C58: X | D58: Pregătire conductă 28” Inel București pentru transformare în conductă godevilabilă | E58: 101760 | F58: Cernica | G58: Ilfov | H58: 602275.4927 | I58: 322657.2336 | J58: 602275.4927 | K58: 322657.2336 | L58: - | M58: - | N58: SM1133D0 | O58: Cernica II (Bălăceanca) | P58: - | Q58: - | R58: - | S58: - | T58: SM-SD001 | U58: Cez Vânzare, E.On Energie, Electric Planners, Electrica Furnizare, Enel Energie, Energy Distribution, Engie, Met România, Aderro GP, Cis Gaz, Conef Gaz, Electric&Gas, Enel Muntenia, Gas Provider, Gaz Est, Megaconstruct, Next Energy, Nova Power, Petrom, Premier Energy, Renovatio, Restart Energy, Tinmar, Wiee, Transenergo | V58: SC Premier Energy SRL | W58: august - septembrie 2020 | AB58: București | AD58: Nu se efectuează în anul gazier 2019 - 2020 - În faza de licitație | AO58: propunere PRRASM 2020 | AP58: - | BF58: Afectat sau NU? | BG58: - | BH58: - | BI58: Afectat sau NU? | BJ58: - | BK58: - | BL58: Afectat sau NU? | BM58: - | BN58: -
A59: 44 | B59: - | C59: X | D59: Pregătire conductă 28” Inel București pentru transformare în conductă godevilabilă | E59: 179418 | F59: Măgurele | G59: Ilfov | H59: 583333.363 | I59: 319855.8228 | J59: 583333.363 | K59: 319855.8228 | L59: - | M59: - | N59: SM0252D0 | O59: Măgurele București | P59: - | Q59: - | R59: - | S59: - | T59: SM-SD001 | U59: Cez Vânzare, E.on Energie, Electric Planners, Electrica Furnizare, Electrocentrale București, Enel Energie, Energy Distribution, Engie, Met România, Monsson, Premier Energy Trading, RWE, Aderro GP, Cis Gaz, Conef Gaz, Cyeb, Distrigaz Vest, Electric&Gas, Electrocentrale Constanța, Enel Muntenia, Gas Provider, Entrex, Euro Seven, Gaz Est, Hargaz, Megaconstruct, Next Energy, Nova Power, Oligopol, Petrom, Premier Energy, Renovatio, Restart Energy, Tinmar, Wiee, Romgaz, Transenergo, Veolia | V59: SC Distrigaz Sud Rețele | W59: august - septembrie 2020 | AB59: București | AD59: Nu se efectuează în anul gazier 2019 - 2020 - În faza de licitație | AO59: propunere PRRASM 2020 | AP59: - | BF59: Afectat sau NU? | BG59: - | BH59: - | BI59: Afectat sau NU? | BJ59: - | BK59: - | BL59: Afectat sau NU? | BM59: - | BN59: -
A60: 45 | B60: - | C60: X | D60: Pregătire conductă 28” Inel București pentru transformare în conductă godevilabilă | E60: 179230 | F60: Bragadiru | G60: Ilfov | H60: 578545.5687 | I60: 319774.3454 | J60: 578545.5687 | K60: 319774.3454 | L60: - | M60: - | N60: SM0250D2 | O60: Bragadiru | P60: - | Q60: - | R60: - | S60: - | T60: SM-SD001 | U60: Cez Vânzare, E.on Energie, Electric Planners, Electrica Furnizare, Electrocentrale București, Enel Energie, Energy Distribution, Engie, Met România, Monsson, Premier Energy Trading, RWE, Aderro GP, Cis Gaz, Conef Gaz, Cyeb, Distrigaz Vest, Electric&Gas, Electrocentrale Constanța, Enel Muntenia, Gas Provider, Entrex, Euro Seven, Gaz Est, Hargaz, Megaconstruct, Next Energy, Nova Power, Oligopol, Petrom, Premier Energy, Renovatio, Restart Energy, Tinmar, Wiee, Romgaz, Transenergo, Veolia | V60: SC Distrigaz Sud Rețele | W60: august - septembrie 2020 | AB60: București | AD60: Nu se efectuează în anul gazier 2019 - 2020 - În faza de licitație | AO60: propunere PRRASM 2020 | AP60: - | BF60: Afectat sau NU? | BG60: - | BH60: - | BI60: Afectat sau NU? | BJ60: - | BK60: - | BL60: Afectat sau NU? | BM60: - | BN60: -
A61: 46 | B61: - | C61: X | D61: Pregătire conductă 28” Inel București pentru transformare în conductă godevilabilă | E61: 179230 | F61: Bragadiru | G61: Ilfov | H61: 578545.5687 | I61: 319774.3454 | J61: 578545.5687 | K61: 319774.3454 | L61: - | M61: - | N61: SM0250D1 | O61: SC Good Work Bragadiru | P61: - | Q61: - | R61: - | S61: - | T61: SM-SD001 | U61: Cez Vânzare, E.on Energie, Electric Planners, Electrica Furnizare, Electrocentrale București, Enel Energie, Energy Distribution, Engie, Met România, Monsson, Premier Energy Trading, RWE, Aderro GP, Cis Gaz, Conef Gaz, Cyeb, Distrigaz Vest, Electric&Gas, Electrocentrale Constanța, Enel Muntenia, Gas Provider, Entrex, Euro Seven, Gaz Est, Hargaz, Megaconstruct, Next Energy, Nova Power, Oligopol, Petrom, Premier Energy, Renovatio, Restart Energy, Tinmar, Wiee, Romgaz, Transenergo, Veolia | V61: SC Distrigaz Sud Rețele | W61: august - septembrie 2020 | AB61: București | AD61: Nu se efectuează în anul gazier 2019 - 2020 - În faza de licitație | AO61: propunere PRRASM 2020 | AP61: - | BF61: Afectat sau NU? | BG61: - | BH61: - | BI61: Afectat sau NU? | BJ61: - | BK61: - | BL61: Afectat sau NU? | BM61: - | BN61: -
A62: 47 | B62: - | C62: X | D62: Pregătire conductă 28” Inel București pentru transformare în conductă godevilabilă | E62: 179230 | F62: Bragadiru | G62: Ilfov | H62: 579794.5365 | I62: 320163.2946 | J62: 579794.5365 | K62: 320163.2946 | L62: - | M62: - | N62: SM0940D0 | O62: SC Eurovia Bragadiru | P62: - | Q62: - | R62: - | S62: - | T62: SM-CF001 | U62: Engie | V62: SC Eurovia-Construct Internațional SA | W62: august - septembrie 2020 | AB62: București | AD62: Nu se efectuează în anul gazier 2019 - 2020 - În faza de licitație | AO62: propunere PRRASM 2020 | AP62: - | BF62: Afectat sau NU? | BG62: - | BH62: - | BI62: Afectat sau NU? | BJ62: - | BK62: - | BL62: Afectat sau NU? | BM62: - | BN62: -
A63: 48 | B63: - | C63: X | D63: Pregătire conductă 28” Inel București pentru transformare în conductă godevilabilă | E63: 179392 | F63: Jilava | G63: Ilfov | H63: 586543.5082 | I63: 317539.4311 | J63: 586543.5082 | K63: 317539.4311 | L63: - | M63: - | N63: SM1051D0 | O63: Jilava | P63: - | Q63: - | R63: - | S63: - | T63: SM-SD001 | U63: Cez Vânzare, E.on Energie, Electric Planners, Electrica Furnizare, Electrocentrale București, Enel Energie, Energy Distribution, Engie, Met România, Monsson, Premier Energy Trading, RWE, Aderro GP, Cis Gaz, Conef Gaz, Cyeb, Distrigaz Vest, Electric&Gas, Electrocentrale Constanța, Enel Muntenia, Gas Provider, Entrex, Euro Seven, Gaz Est, Hargaz, Megaconstruct, Next Energy, Nova Power, Oligopol, Petrom, Premier Energy, Renovatio, Restart Energy, Tinmar, Wiee, Romgaz, Transenergo, Veolia | V63: SC Distrigaz Sud Rețele | W63: august - septembrie 2020 | AB63: București | AD63: Nu se efectuează în anul gazier 2019 - 2020 - În faza de licitație | AO63: propunere PRRASM 2020 | AP63: - | BF63: Afectat sau NU? | BG63: - | BH63: - | BI63: Afectat sau NU? | BJ63: - | BK63: - | BL63: Afectat sau NU? | BM63: - | BN63: -
A64: 49 | B64: - | C64: X | D64: Pregătire conductă 28” Inel București pentru transformare în conductă godevilabilă | E64: 105945 | F64: Vidra | G64: Ilfov | H64: 588819.9832 | I64: 315459.7611 | J64: 588819.9832 | K64: 315459.7611 | L64: - | M64: - | N64: SM0152D0 | O64: Vidra | P64: - | Q64: - | R64: - | S64: - | T64: SM-SD001 | U64: Cez Vânzare, E.on Energie, Electric Planners, Electrica Furnizare, Electrocentrale București, Enel Energie, Energy Distribution, Engie, Met România, Monsson, Premier Energy Trading, RWE, Aderro GP, Cis Gaz, Conef Gaz, Cyeb, Distrigaz Vest, Electric&Gas, Electrocentrale Constanța, Enel Muntenia, Gas Provider, Entrex, Euro Seven, Gaz Est, Hargaz, Megaconstruct, Next Energy, Nova Power, Oligopol, Petrom, Premier Energy, Renovatio, Restart Energy, Tinmar, Wiee, Romgaz, Transenergo, Veolia | V64: SC Distrigaz Sud Rețele | W64: august - septembrie 2020 | AB64: București | AD64: Nu se efectuează în anul gazier 2019 - 2020 - În faza de licitație | AO64: propunere PRRASM 2020 | AP64: - | BF64: Afectat sau NU? | BG64: - | BH64: - | BI64: Afectat sau NU? | BJ64: - | BK64: - | BL64: Afectat sau NU? | BM64: - | BN64: -
A65: 50 | B65: - | C65: X | D65: Pregătire conductă 28” Inel București pentru transformare în conductă godevilabilă | E65: 179418 | F65: Măgurele | G65: Ilfov | H65: 583320.47 | I65: 319854.25 | J65: 583320.47 | K65: 319854.25 | L65: - | M65: - | N65: SM1196D0 | O65: Adunații Copăceni | P65: - | Q65: - | R65: - | S65: - | T65: SM-SD001 | U65: Cez Vanzare SA, E.ON Energie Romania SA, Electrica Furnizare SA, Enel Energie SA, Engie Romania SA 1, Met Romania Energy SA, Premier Energy Trading SRL, SC Aderro GP Energy SRL, SC Enel Energie Muntenia SA, SC Entrex Services SRL, SC Megaconstruct SA, SC Omv Petrom SA, SC Premier Energy SRL, SC Restart Energy ONE SA, Tinmar Energy SA | V65: SC Megaconstruct SA | W65: august - septembrie 2020 | AB65: București | AD65: Nu se efectuează în anul gazier 2019 - 2020 - În faza de licitație | AO65: propunere PRRASM 2020 | AP65: - | BF65: Afectat sau NU? | BG65: - | BH65: - | BI65: Afectat sau NU? | BJ65: - | BK65: - | BL65: Afectat sau NU? | BM65: - | BN65: -
A66: 51 | B66: - | C66: X | D66: Pregătire conductă 24” Paltin - Schitu Golești pentru transformare în conductă godevilabilă | E66: 13506 | F66: Câmpulung | G66: Argeș | H66: 506375.179 | I66: 420606.434 | J66: 506375.179 | K66: 420606.434 | L66: - | M66: - | N66: SM0429D0 | O66: SC Edilul Câmpulung | P66: - | Q66: - | R66: - | S66: - | T66: SM-CF001 | U66: Engie | V66: SC Edilul C.G.A. SA | W66: mai - iulie 2020 august - septembrie 2020 | AB66: Craiova | AD66: Conform Programului de Reparații, Reabilitare și Asigurare a Serviciilor de Mentenanță SNT pentru anul 2020 aprobat | AP66: PRRASM 2020_II_A_3 (Anexa 1) | BF66: Afectat sau NU? | BG66: - | BH66: - | BI66: Afectat sau NU? | BJ66: - | BK66: - | BL66: Afectat sau NU? | BM66: - | BN66: -
A67: 52 | B67: - | C67: X | D67: Pregătire conductă 24” Paltin - Schitu Golești pentru transformare în conductă godevilabilă | E67: 13506 | F67: Câmpulung | G67: Argeș | H67: 506435.561 | I67: 420938.471 | J67: 506435.561 | K67: 420938.471 | L67: - | M67: - | N67: SM0874D0 | O67: SC Complex Holcim Câmpulung Sediu | P67: - | Q67: - | R67: - | S67: - | T67: SM-CF001 | U67: E.on Energie | V67: SC Holcim (România) SA | W67: mai - iulie 2020 august - septembrie 2020 | AB67: Craiova | AD67: Conform Programului de Reparații, Reabilitare și Asigurare a Serviciilor de Mentenanță SNT pentru anul 2020 aprobat | AP67: PRRASM 2020_II_A_3 (Anexa 1) | BF67: Afectat sau NU? | BG67: - | BH67: - | BI67: Afectat sau NU? | BJ67: - | BK67: - | BL67: Afectat sau NU? | BM67: - | BN67: -
A68: 53 | B68: - | C68: X | D68: Pregătire conductă 24” Paltin - Schitu Golești pentru transformare în conductă godevilabilă | E68: 13506 | F68: Câmpulung | G68: Argeș | H68: 506492.155 | I68: 421280.194 | J68: 506492.155 | K68: 421280.194 | L68: - | M68: - | N68: SM0078D0 | O68: SC Romturingia Câmpulung | P68: - | Q68: - | R68: - | S68: - | T68: SM-CF001 | V68: SC Romturingia SRL | W68: mai - iulie 2020 august - septembrie 2020 | AB68: Craiova | AD68: Conform Programului de Reparații, Reabilitare și Asigurare a Serviciilor de Mentenanță SNT pentru anul 2020 aprobat | AP68: PRRASM 2020_II_A_3 (Anexa 1) | BF68: Afectat sau NU? | BG68: - | BH68: - | BI68: Afectat sau NU? | BJ68: - | BK68: - | BL68: Afectat sau NU? | BM68: - | BN68: -
A69: 54 | B69: - | C69: X | D69: Pregătire conductă 24” Paltin - Schitu Golești pentru transformare în conductă godevilabilă | E69: 13506 | F69: Câmpulung | G69: Argeș | H69: 509108.281 | I69: 421227.1767 | J69: 509108.281 | K69: 421227.1767 | L69: - | M69: - | N69: SM0213D1 | O69: SC Holcim Câmpulung | P69: - | Q69: - | R69: - | S69: - | T69: SM-CF001 | U69: E.on Energie | V69: SC Holcim (România) SA | W69: mai - iulie 2020 august - septembrie 2020 | AB69: Craiova | AD69: Conform Programului de Reparații, Reabilitare și Asigurare a Serviciilor de Mentenanță SNT pentru anul 2020 aprobat | AP69: PRRASM 2020_II_A_3 (Anexa 1) | BF69: Afectat sau NU? | BG69: - | BH69: - | BI69: Afectat sau NU? | BJ69: - | BK69: - | BL69: Afectat sau NU? | BM69: - | BN69: -
A70: 55 | B70: - | C70: X | D70: Pregătire conductă 24” Paltin - Schitu Golești pentru transformare în conductă godevilabilă | E70: 13506 | F70: Câmpulung | G70: Argeș | H70: 509108.281 | I70: 421227.1767 | J70: 509108.281 | K70: 421227.1767 | L70: - | M70: - | N70: SM0213D2 | O70: SC Carmeuse Holding Câmpulung | P70: - | Q70: - | R70: - | S70: - | T70: SM-CF001 | U70: Engie | V70: SC Carmeuse Holding SRL | W70: mai - iulie 2020 august - septembrie 2020 | AB70: Craiova | AD70: Conform Programului de Reparații, Reabilitare și Asigurare a Serviciilor de Mentenanță SNT pentru anul 2020 aprobat | AP70: PRRASM 2020_II_A_3 (Anexa 1) | BF70: Afectat sau NU? | BG70: - | BH70: - | BI70: Afectat sau NU? | BJ70: - | BK70: - | BL70: Afectat sau NU? | BM70: - | BN70: -
A71: 56 | B71: - | C71: X | D71: Pregătire conductă 24” Paltin - Schitu Golești pentru transformare în conductă godevilabilă | E71: 13533 | F71: Valea Mare Pravăț | G71: Argeș | H71: 509108.281 | I71: 421227.1767 | J71: 509108.281 | K71: 421227.1767 | L71: - | M71: - | N71: SM0213D3 | O71: SC Star Multitrade Pravăț | P71: - | Q71: - | R71: - | S71: - | T71: SM-SD001 | U71: Engie, Electrica Furnizare, Premier Energy Trading, Premier Energy, Restart Energy, Wiee România, E.On Energie, Cez Vânzare, Enel Energie, Gaz Est, Met România, Nova Power, Euro Seven Industry, Oligopol, Energy Distribution, Electrocentrale Constanța, Hargaz, Conef Gaz, Megaconstruct, Distrigaz Vest, Electrocentrale București, Next Energy, Cis Gaz, Transenergo, Aderro, Tinmar, Enel Muntenia, RWE Supply, Romgaz, Cyeb, Entrex, Petrom, Electric&Gas, Energy Gas Provider, Renovatio, Monsson, Electric Planners, Alpha Metal, Veolia | V71: SC Distrigaz Sud Rețele | W71: mai - iulie 2020 august - septembrie 2020 | AB71: Craiova | AD71: Conform Programului de Reparații, Reabilitare și Asigurare a Serviciilor de Mentenanță SNT pentru anul 2020 aprobat | AP71: PRRASM 2020_II_A_3 (Anexa 1) | BF71: Afectat sau NU? | BG71: - | BH71: - | BI71: Afectat sau NU? | BJ71: - | BK71: - | BL71: Afectat sau NU? | BM71: - | BN71: -
A72: 57 | B72: - | C72: X | D72: Pregătire conductă 24” Paltin - Schitu Golești pentru transformare în conductă godevilabilă | E72: 13506 | F72: Câmpulung | G72: Argeș | H72: 504544.1711 | I72: 418845.7315 | J72: 504544.1711 | K72: 418845.7315 | L72: - | M72: - | N72: SM0216D0 | O72: Câmpulung Muscel | P72: - | Q72: - | R72: - | S72: - | T72: SM-SD001 | U72: Engie, Electrica Furnizare, Premier Energy Trading, Premier Energy, Restart Energy, Wiee România, E.On Energie, Cez Vânzare, Enel Energie, Gaz Est, Met România, Nova Power, Euro Seven Industry, Oligopol, Energy Distribution, Electrocentrale Constanța, Hargaz, Conef Gaz, Megaconstruct, Distrigaz Vest, Electrocentrale București, Next Energy, Cis Gaz, Transenergo, Aderro, Tinmar, Enel Muntenia, RWE Supply, Romgaz, Cyeb, Entrex, Petrom, Electric&Gas, Energy Gas Provider, Renovatio, Monsson, Electric Planners, Alpha Metal, Veolia | V72: SC Distrigaz Sud Rețele | W72: mai - iulie 2020 august - septembrie 2020 | AB72: Craiova | AD72: Conform Programului de Reparații, Reabilitare și Asigurare a Serviciilor de Mentenanță SNT pentru anul 2020 aprobat | AP72: PRRASM 2020_II_A_3 (Anexa 1) | BF72: Afectat sau NU? | BG72: - | BH72: - | BI72: Afectat sau NU? | BJ72: - | BK72: - | BL72: Afectat sau NU? | BM72: - | BN72: -
A73: 58 | B73: - | C73: X | D73: Pregătire conductă 24” Paltin - Schitu Golești pentru transformare în conductă godevilabilă | E73: 16917 | F73: Lerești | G73: Argeș | H73: 505375.834 | I73: 421813.476 | J73: 505375.834 | K73: 421813.476 | L73: - | M73: - | N73: SM1242D0 | O73: Lerești | P73: - | Q73: - | R73: - | S73: - | T73: SM-SD001 | U73: Engie, Electrica Furnizare, Premier Energy Trading, Premier Energy, Restart Energy, Wiee România, E.On Energie, Cez Vânzare, Enel Energie, Gaz Est, Met România, Nova Power, Euro Seven Industry, Oligopol, Energy Distribution, Electrocentrale Constanța, Hargaz, Conef Gaz, Megaconstruct, Distrigaz Vest, Electrocentrale București, Next Energy, Cis Gaz, Transenergo, Aderro, Tinmar, Enel Muntenia, RWE Supply, Romgaz, Cyeb, Entrex, Petrom, Electric&Gas, Energy Gas Provider, Renovatio, Monsson, Electric Planners, Alpha Metal, Veolia | V73: SC Distrigaz Sud Rețele | W73: mai - iulie 2020 august - septembrie 2020 | AB73: Craiova | AD73: Conform Programului de Reparații, Reabilitare și Asigurare a Serviciilor de Mentenanță SNT pentru anul 2020 aprobat | AP73: PRRASM 2020_II_A_3 (Anexa 1) | BF73: Afectat sau NU? | BG73: - | BH73: - | BI73: Afectat sau NU? | BJ73: - | BK73: - | BL73: Afectat sau NU? | BM73: - | BN73: -
A74: 59 | B74: - | C74: X | D74: Pregătire conductă 24” Paltin - Schitu Golești pentru transformare în conductă godevilabilă | E74: 16356 | F74: Podu Dâmboviței | G74: Argeș | H74: 515779.4133 | I74: 434408.4633 | J74: 515779.4133 | K74: 434408.4633 | L74: - | M74: - | N74: SM1088D0 | O74: Podu Dâmboviței | P74: - | Q74: - | R74: - | S74: - | T74: SM-SD001 | U74: Engie, Electrica Furnizare, Premier Energy Trading, Premier Energy, Restart Energy, Wiee România, E.On Energie, Cez Vânzare, Enel Energie, Gaz Est, Met România, Nova Power, Euro Seven Industry, Oligopol, Energy Distribution, Electrocentrale Constanța, Hargaz, Conef Gaz, Megaconstruct, Distrigaz Vest, Electrocentrale București, Next Energy, Cis Gaz, Transenergo, Aderro, Tinmar, Enel Muntenia, RWE Supply, Romgaz, Cyeb, Entrex, Petrom, Electric&Gas, Energy Gas Provider, Renovatio, Monsson, Electric Planners, Alpha Metal, Veolia | V74: SC Distrigaz Sud Rețele | W74: mai - iulie 2020 august - septembrie 2020 | AB74: Brașov | AD74: Conform Programului de Reparații, Reabilitare și Asigurare a Serviciilor de Mentenanță SNT pentru anul 2020 aprobat | AP74: PRRASM 2020_II_A_3 (Anexa 1) | AR74: =IF(B74="X",IF(AN74="","Afectat sau NU?",IF(AN74="DA",IF(((AK74+AL74)-(AE74+AF74))*24<-720,"Neinformat",((AK74+AL74)-(AE74+AF74))*24),"Nu a fost afectat producator/consumator")),"") ->  | AS74: =IF(B74="X",IF(AN74="DA",IF(AR74<6,LEN(TRIM(V74))-LEN(SUBSTITUTE(V74,CHAR(44),""))+1,0),"-"),"") ->  | AT74: =IF(B74="X",IF(AN74="DA",LEN(TRIM(V74))-LEN(SUBSTITUTE(V74,CHAR(44),""))+1,"-"),"") ->  | AU74: =IF(B74="X",IF(AN74="","Afectat sau NU?",IF(AN74="DA",IF(((AI74+AJ74)-(AE74+AF74))*24<-720,"Neinformat",((AI74+AJ74)-(AE74+AF74))*24),"Nu a fost afectat producator/consumator")),"") ->  | AV74: =IF(B74="X",IF(AN74="DA",IF(AU74<6,LEN(TRIM(U74))-LEN(SUBSTITUTE(U74,CHAR(44),""))+1,0),"-"),"") ->  | AW74: =IF(B74="X",IF(AN74="DA",LEN(TRIM(U74))-LEN(SUBSTITUTE(U74,CHAR(44),""))+1,"-"),"") ->  | AX74: =IF(B74="X",IF(AN74="","Afectat sau NU?",IF(AN74="DA",((AG74+AH74)-(AE74+AF74))*24,"Nu a fost afectat producator/consumator")),"") ->  | AY74: =IF(B74="X",IF(AN74="DA",IF(AX74>24,IF(BA74="NU",0,LEN(TRIM(V74))-LEN(SUBSTITUTE(V74,CHAR(44),""))+1),0),"-"),"") ->  | AZ74: =IF(B74="X",IF(AN74="DA",IF(AX74>24,LEN(TRIM(V74))-LEN(SUBSTITUTE(V74,CHAR(44),""))+1,0),"-"),"") ->  | BF74: =IF(C74="X",IF(AN74="","Afectat sau NU?",IF(AN74="DA",IF(AK74="","Neinformat",NETWORKDAYS(AK74+AL74,AE74+AF74,$BS$2:$BS$14)-2),"Nu a fost afectat producator/consumator")),"") -> Afectat sau NU? | BG74: =IF(C74="X",IF(AN74="DA",IF(AND(BF74>=5,AK74<>""),LEN(TRIM(V74))-LEN(SUBSTITUTE(V74,CHAR(44),""))+1,0),"-"),"") -> - | BH74: =IF(C74="X",IF(AN74="DA",LEN(TRIM(V74))-LEN(SUBSTITUTE(V74,CHAR(44),""))+1,"-"),"") -> - | BI74: =IF(C74="X",IF(AN74="","Afectat sau NU?",IF(AN74="DA",IF(AI74="","Neinformat",NETWORKDAYS(AI74+AJ74,AE74+AF74,$BS$2:$BS$14)-2),"Nu a fost afectat producator/consumator")),"") -> Afectat sau NU? | BJ74: =IF(C74="X",IF(AN74="DA",IF(AND(BI74>=5,AI74<>""),LEN(TRIM(U74))-LEN(SUBSTITUTE(U74,CHAR(44),""))+1,0),"-"),"") -> - | BK74: =IF(C74="X",IF(AN74="DA",LEN(TRIM(U74))-LEN(SUBSTITUTE(U74,CHAR(44),""))+1,"-"),"") -> - | BL74: =IF(C74="X",IF(AN74="","Afectat sau NU?",IF(AN74="DA",((AG74+AH74)-(Z74+AA74))*24,"Nu a fost afectat producator/consumator")),"") -> Afectat sau NU? | BM74: =IF(C74="X",IF(AN74<>"DA","-",IF(AND(AN74="DA",BL74<=0),LEN(TRIM(V74))-LEN(SUBSTITUTE(V74,CHAR(44),""))+1+LEN(TRIM(U74))-LEN(SUBSTITUTE(U74,CHAR(44),""))+1,0)),"") -> - | BN74: =IF(C74="X",IF(AN74="DA",LEN(TRIM(V74))-LEN(SUBSTITUTE(V74,CHAR(44),""))+1+LEN(TRIM(U74))-LEN(SUBSTITUTE(U74,CHAR(44),""))+1,"-"),"") -> -
A75: 60 | B75: - | C75: X | D75: Pregătire conductă 24” Paltin - Schitu Golești pentru transformare în conductă godevilabilă | E75: 42272 | F75: Rucăr | G75: Argeș | H75: 514200.6351 | I75: 431834.6871 | J75: 514200.6351 | K75: 431834.6871 | L75: - | M75: - | N75: SM0938D0 | O75: Rucăr | P75: - | Q75: - | R75: - | S75: - | T75: SM-SD001 | U75: Engie, Electrica Furnizare, Premier Energy Trading, Premier Energy, Restart Energy, Wiee România, E.On Energie, Cez Vânzare, Enel Energie, Gaz Est, Met România, Nova Power, Euro Seven Industry, Oligopol, Energy Distribution, Electrocentrale Constanța, Hargaz, Conef Gaz, Megaconstruct, Distrigaz Vest, Electrocentrale București, Next Energy, Cis Gaz, Transenergo, Aderro, Tinmar, Enel Muntenia, RWE Supply, Romgaz, Cyeb, Entrex, Petrom, Electric&Gas, Energy Gas Provider, Renovatio, Monsson, Electric Planners, Alpha Metal, Veolia | V75: SC Distrigaz Sud Rețele | W75: mai - iulie 2020 august - septembrie 2020 | AB75: Brașov | AD75: Conform Programului de Reparații, Reabilitare și Asigurare a Serviciilor de Mentenanță SNT pentru anul 2020 aprobat | AP75: PRRASM 2020_II_A_3 (Anexa 1) | BF75: Afectat sau NU? | BG75: - | BH75: - | BI75: Afectat sau NU? | BJ75: - | BK75: - | BL75: Afectat sau NU? | BM75: - | BN75: -
A76: 61 | B76: - | C76: X | D76: Pregătire conductă 24” Paltin - Schitu Golești pentru transformare în conductă godevilabilă | E76: 41630 | F76: Poiana Mărului | G76: Brașov | H76: 523056.6423 | I76: 457084.3566 | J76: 523056.6423 | K76: 457084.3566 | L76: - | M76: - | N76: SM0212D0 | O76: Poiana Mărului | P76: - | Q76: - | R76: - | S76: - | T76: SM-SD001 | U76: Engie, Electrica Furnizare, Premier Energy Trading, Premier Energy, Restart Energy, Wiee România, E.On Energie, Cez Vânzare, Enel Energie, Gaz Est, Met România, Nova Power, Euro Seven Industry, Oligopol, Energy Distribution, Electrocentrale Constanța, Hargaz, Conef Gaz, Megaconstruct, Distrigaz Vest, Electrocentrale București, Next Energy, Cis Gaz, Transenergo, Aderro, Tinmar, Enel Muntenia, RWE Supply, Romgaz, Cyeb, Entrex, Petrom, Electric&Gas, Energy Gas Provider, Renovatio, Monsson, Electric Planners, Alpha Metal, Veolia | V76: SC Distrigaz Sud Rețele | W76: mai - iulie 2020 august - septembrie 2020 | AB76: Brașov | AD76: Conform Programului de Reparații, Reabilitare și Asigurare a Serviciilor de Mentenanță SNT pentru anul 2020 aprobat | AP76: PRRASM 2020_II_A_6 (Anexa 1) | BF76: Afectat sau NU? | BG76: - | BH76: - | BI76: Afectat sau NU? | BJ76: - | BK76: - | BL76: Afectat sau NU? | BM76: - | BN76: -
A77: 62 | B77: - | C77: X | D77: Pregătire conductă 24” Paltin - Schitu Golești pentru transformare în conductă godevilabilă | E77: 40508 | F77: Zărnești | G77: Brașov | H77: 525537.907 | I77: 451706.175 | J77: 525537.907 | K77: 451706.175 | L77: - | M77: - | N77: SM1251D0 | O77: DS Smith Paper Zărnești | P77: - | Q77: - | R77: - | S77: - | T77: SM-CF001 | U77: Petrom | V77: DS Smith Paper Zarnești SRL | W77: mai - iulie 2020 august - septembrie 2020 | AB77: Brașov | AD77: Conform Programului de Reparații, Reabilitare și Asigurare a Serviciilor de Mentenanță SNT pentru anul 2020 aprobat | AP77: PRRASM 2020_II_A_6 (Anexa 1) | BF77: Afectat sau NU? | BG77: - | BH77: - | BI77: Afectat sau NU? | BJ77: - | BK77: - | BL77: Afectat sau NU? | BM77: - | BN77: -
A78: 63 | B78: - | C78: X | D78: Pregătire conductă 24” Paltin - Schitu Golești pentru transformare în conductă godevilabilă | E78: 41480 | F78: Moieciu de Jos | G78: Brașov | H78: 520679.8634 | I78: 445316.5338 | J78: 520679.8634 | K78: 445316.5338 | L78: - | M78: - | N78: SM1139D0 | O78: Moieciu | P78: - | Q78: - | R78: - | S78: - | T78: SM-SD001 | U78: Cez Vânzare, E.on Energie, Electrica Furnizare, Enel Energie, Energy Distribution, Engie, Met Romania, Monsson, Aderro GP, Cis Gaz, Conef Gaz, Enel Muntenia, Energy Gas Provider, Gaz Est, Megaconstruct, Next Energy, Nova Power, Petrom, Premier Energy, Renovatio, Restart Energy, Wiee, Tinmar, Electric&Gas, Electric Planners, Transenergo | V78: SC Premier Energy SRL | W78: mai - iulie 2020 august - septembrie 2020 | AB78: Brașov | AD78: Conform Programului de Reparații, Reabilitare și Asigurare a Serviciilor de Mentenanță SNT pentru anul 2020 aprobat | AP78: PRRASM 2020_II_A_6 (Anexa 1) | BF78: Afectat sau NU? | BG78: - | BH78: - | BI78: Afectat sau NU? | BJ78: - | BK78: - | BL78: Afectat sau NU? | BM78: - | BN78: -
A79: 64 | B79: - | C79: X | D79: Pregătire conductă 28” Hetiur - Onești pentru transformare în conductă godevilabilă | E79: 85591 | F79: Secuieni HG | G79: Harghita | H79: 498017.4402 | I79: 528594.7771 | J79: 498017.4402 | K79: 528594.7771 | L79: - | M79: - | N79: SM0374D0 | O79: Secuieni I HG | P79: - | Q79: - | R79: - | S79: - | T79: SM-SD001 | U79: E.On Energie, Electric&Gas, Enel Muntenia, Nova Power, Cez Vânzare, Gaz Est, Engie, Hargaz, Petrom, Restart Energy, Enel Energie, Electrica Furnizare | V79: SC Hargaz Harghita Gaz SA | W79: septembrie 2020 | AB79: Brașov | AD79: A se vedea pozițiile 217 - 222 | AO79: propunere PRRASM 2020 | AP79: - | BF79: Afectat sau NU? | BG79: - | BH79: - | BI79: Afectat sau NU? | BJ79: - | BK79: - | BL79: Afectat sau NU? | BM79: - | BN79: -
A80: 65 | B80: - | C80: X | D80: Pregătire conductă 28” Hetiur - Onești pentru transformare în conductă godevilabilă | E80: 85591 | F80: Secuieni HG | G80: Harghita | H80: 498017.4402 | I80: 528594.7771 | J80: 498017.4402 | K80: 528594.7771 | L80: - | M80: - | N80: SM0374D1 | O80: Secuieni II HG | P80: - | Q80: - | R80: - | S80: - | T80: SM-SD001 | U80: E.On Energie, Electric&Gas, Enel Muntenia, Nova Power, Cez Vânzare, Gaz Est, Engie, Hargaz, Petrom, Restart Energy, Enel Energie, Electrica Furnizare | V80: SC Hargaz Harghita Gaz SA | W80: septembrie 2020 | AB80: Brașov | AD80: A se vedea pozițiile 217 - 222 | AO80: propunere PRRASM 2020 | AP80: - | AR80: =IF(B80="X",IF(AN80="","Afectat sau NU?",IF(AN80="DA",IF(((AK80+AL80)-(AE80+AF80))*24<-720,"Neinformat",((AK80+AL80)-(AE80+AF80))*24),"Nu a fost afectat producator/consumator")),"") ->  | AS80: =IF(B80="X",IF(AN80="DA",IF(AR80<6,LEN(TRIM(V80))-LEN(SUBSTITUTE(V80,CHAR(44),""))+1,0),"-"),"") ->  | AT80: =IF(B80="X",IF(AN80="DA",LEN(TRIM(V80))-LEN(SUBSTITUTE(V80,CHAR(44),""))+1,"-"),"") ->  | AU80: =IF(B80="X",IF(AN80="","Afectat sau NU?",IF(AN80="DA",IF(((AI80+AJ80)-(AE80+AF80))*24<-720,"Neinformat",((AI80+AJ80)-(AE80+AF80))*24),"Nu a fost afectat producator/consumator")),"") ->  | AV80: =IF(B80="X",IF(AN80="DA",IF(AU80<6,LEN(TRIM(U80))-LEN(SUBSTITUTE(U80,CHAR(44),""))+1,0),"-"),"") ->  | AW80: =IF(B80="X",IF(AN80="DA",LEN(TRIM(U80))-LEN(SUBSTITUTE(U80,CHAR(44),""))+1,"-"),"") ->  | AX80: =IF(B80="X",IF(AN80="","Afectat sau NU?",IF(AN80="DA",((AG80+AH80)-(AE80+AF80))*24,"Nu a fost afectat producator/consumator")),"") ->  | AY80: =IF(B80="X",IF(AN80="DA",IF(AX80>24,IF(BA80="NU",0,LEN(TRIM(V80))-LEN(SUBSTITUTE(V80,CHAR(44),""))+1),0),"-"),"") ->  | AZ80: =IF(B80="X",IF(AN80="DA",IF(AX80>24,LEN(TRIM(V80))-LEN(SUBSTITUTE(V80,CHAR(44),""))+1,0),"-"),"") ->  | BF80: =IF(C80="X",IF(AN80="","Afectat sau NU?",IF(AN80="DA",IF(AK80="","Neinformat",NETWORKDAYS(AK80+AL80,AE80+AF80,$BS$2:$BS$14)-2),"Nu a fost afectat producator/consumator")),"") -> Afectat sau NU? | BG80: =IF(C80="X",IF(AN80="DA",IF(AND(BF80>=5,AK80<>""),LEN(TRIM(V80))-LEN(SUBSTITUTE(V80,CHAR(44),""))+1,0),"-"),"") -> - | BH80: =IF(C80="X",IF(AN80="DA",LEN(TRIM(V80))-LEN(SUBSTITUTE(V80,CHAR(44),""))+1,"-"),"") -> - | BI80: =IF(C80="X",IF(AN80="","Afectat sau NU?",IF(AN80="DA",IF(AI80="","Neinformat",NETWORKDAYS(AI80+AJ80,AE80+AF80,$BS$2:$BS$14)-2),"Nu a fost afectat producator/consumator")),"") -> Afectat sau NU? | BJ80: =IF(C80="X",IF(AN80="DA",IF(AND(BI80>=5,AI80<>""),LEN(TRIM(U80))-LEN(SUBSTITUTE(U80,CHAR(44),""))+1,0),"-"),"") -> - | BK80: =IF(C80="X",IF(AN80="DA",LEN(TRIM(U80))-LEN(SUBSTITUTE(U80,CHAR(44),""))+1,"-"),"") -> - | BL80: =IF(C80="X",IF(AN80="","Afectat sau NU?",IF(AN80="DA",((AG80+AH80)-(Z80+AA80))*24,"Nu a fost afectat producator/consumator")),"") -> Afectat sau NU? | BM80: =IF(C80="X",IF(AN80<>"DA","-",IF(AND(AN80="DA",BL80<=0),LEN(TRIM(V80))-LEN(SUBSTITUTE(V80,CHAR(44),""))+1+LEN(TRIM(U80))-LEN(SUBSTITUTE(U80,CHAR(44),""))+1,0)),"") -> - | BN80: =IF(C80="X",IF(AN80="DA",LEN(TRIM(V80))-LEN(SUBSTITUTE(V80,CHAR(44),""))+1+LEN(TRIM(U80))-LEN(SUBSTITUTE(U80,CHAR(44),""))+1,"-"),"") -> -
A81: =SUM(1,$A80) -> 66 | B81: - | C81: X | D81: Pregătire conductă 28” Hetiur - Onești pentru transformare în conductă godevilabilă | E81: 83534 | F81: Cristuru Secuiesc | G81: Harghita | H81: 502768.6178 | I81: 530742.3828 | J81: 502768.6178 | K81: 530742.3828 | L81: - | M81: - | N81: SM0373D0 | O81: Cristuru Secuiesc | P81: - | Q81: - | R81: - | S81: - | T81: SM-SD001 | U81: Cez Vânzare, E.on Energie, E.on Furnizare, Electric Planners, Electrica Furnizare, Enel Energie, Energy Distribution, Engie, Met România, Monsson, Premier Energy Trading, RWE, Aderro GP, Cis Gaz, Conef Gaz, CPL Concordia, Cyeb, Design Proiect, Distrigaz Vest, Electric&Gas, Enel Muntenia, Gas Provider, Entrex, Gaz Est, Hargaz, Next Energy, Nova Power, Petrom, Premier Energy, Renovatio, Restart Energy, Tinmar, Wiee, Tetarom, SST Grup, Pado Group, Mihoc Oil, Gaz Vest, Gazmir Iași, Prisma Serv | V81: Delgaz Grid SA | W81: septembrie 2020 | AB81: Brașov | AD81: A se vedea pozițiile 217 - 222 | AO81: propunere PRRASM 2020 | AP81: - | BF81: Afectat sau NU? | BG81: - | BH81: - | BI81: Afectat sau NU? | BJ81: - | BK81: - | BL81: Afectat sau NU? | BM81: - | BN81: -
A82: 67 | B82: - | C82: X | D82: Pregătire conductă 28” Hetiur - Onești pentru transformare în conductă godevilabilă | E82: 85216 | F82: Porumbenii Mari | G82: Harghita | H82: 510974.5899 | I82: 529794.7582 | J82: 510974.5899 | K82: 529794.7582 | L82: - | M82: - | N82: SM0383D0 | O82: Porumbenii Mari | P82: - | Q82: - | R82: - | S82: - | T82: SM-SD001 | U82: E.On Energie, Electric&Gas, Enel Muntenia, Nova Power, Cez Vânzare, Gaz Est, Engie, Hargaz, Petrom, Restart Energy, Enel Energie, Electrica Furnizare | V82: SC Hargaz Harghita Gaz SA | W82: septembrie 2020 | AB82: Brașov | AD82: A se vedea pozițiile 217 - 222 | AO82: propunere PRRASM 2020 | AP82: - | BF82: Afectat sau NU? | BG82: - | BH82: - | BI82: Afectat sau NU? | BJ82: - | BK82: - | BL82: Afectat sau NU? | BM82: - | BN82: -
A83: 68 | B83: - | C83: X | D83: Pregătire conductă 28” Hetiur - Onești pentru transformare în conductă godevilabilă | E83: 85225 | F83: Porumbenii Mici | G83: Harghita | H83: 508387.8914 | I83: 530077.5794 | J83: 508387.8914 | K83: 530077.5794 | L83: - | M83: - | N83: SM0382D0 | O83: Porumbenii Mici | P83: - | Q83: - | R83: - | S83: - | T83: SM-SD001 | U83: E.On Energie, Electric&Gas, Enel Muntenia, Nova Power, Cez Vânzare, Gaz Est, Engie, Hargaz, Petrom, Restart Energy, Enel Energie, Electrica Furnizare | V83: SC Hargaz Harghita Gaz SA | W83: septembrie 2020 | AB83: Brașov | AD83: A se vedea pozițiile 217 - 222 | AO83: propunere PRRASM 2020 | AP83: - | BF83: Afectat sau NU? | BG83: - | BH83: - | BI83: Afectat sau NU? | BJ83: - | BK83: - | BL83: Afectat sau NU? | BM83: - | BN83: -
A84: 69 | B84: - | C84: X | D84: Pregătire conductă 28” Hetiur - Onești pentru transformare în conductă godevilabilă | E84: 85190 | F84: Lutița | G84: Harghita | H84: 514498.4822 | I84: 528362.5702 | J84: 514498.4822 | K84: 528362.5702 | L84: - | M84: - | N84: SM0384D0 | O84: Lutița | P84: - | Q84: - | R84: - | S84: - | T84: SM-SD001 | U84: Cez Vânzare, E.on Energie, E.on Furnizare, Electric Planners, Electrica Furnizare, Enel Energie, Energy Distribution, Engie, Met România, Monsson, Premier Energy Trading, RWE, Aderro GP, Cis Gaz, Conef Gaz, CPL Concordia, Cyeb, Design Proiect, Distrigaz Vest, Electric&Gas, Enel Muntenia, Gas Provider, Entrex, Gaz Est, Hargaz, Next Energy, Nova Power, Petrom, Premier Energy, Renovatio, Restart Energy, Tinmar, Wiee, Tetarom, SST Grup, Pado Group, Mihoc Oil, Gaz Vest, Gazmir Iași, Prisma Serv | V84: Delgaz Grid SA | W84: septembrie 2020 | AB84: Brașov | AD84: A se vedea pozițiile 217 - 222 | AO84: propunere PRRASM 2020 | AP84: - | BF84: Afectat sau NU? | BG84: - | BH84: - | BI84: Afectat sau NU? | BJ84: - | BK84: - | BL84: Afectat sau NU? | BM84: - | BN84: -
A85: 70 | B85: - | C85: X | D85: Pregătire conductă 28” Hetiur - Onești pentru transformare în conductă godevilabilă | E85: 63465 | F85: Biborțeni | G85: Covasna | H85: 550911.5137 | I85: 510828.5782 | J85: 550911.5137 | K85: 510828.5782 | L85: - | M85: - | N85: SM0393D0 | O85: Biborțeni | P85: - | Q85: - | R85: - | S85: - | T85: SM-SD001 | U85: Cez Vânzare, E.on Energie, Electric Planners, Electrica Furnizare, Electrocentrale București, Enel Energie, Energy Distribution, Engie, Met România, Monsson, Premier Energy Trading, RWE, Aderro GP, Cis Gaz, Conef Gaz, Cyeb, Distrigaz Vest, Electric&Gas, Electrocentrale Constanța, Enel Muntenia, Gas Provider, Entrex, Euro Seven, Gaz Est, Hargaz, Megaconstruct, Next Energy, Nova Power, Oligopol, Petrom, Premier Energy, Renovatio, Restart Energy, Tinmar, Wiee, Romgaz, Transenergo, Veolia | V85: SC Distrigaz Sud Rețele | W85: septembrie 2020 | AB85: Brașov | AD85: Nu se efectuează în anul gazier 2019 - 2020 - Conform Programului de Reparații, Reabilitare și Asigurare a Serviciilor de Mentenanță SNT pentru anul 2020 aprobat | AO85: propunere PRRASM 2020 | AP85: - | BF85: Afectat sau NU? | BG85: - | BH85: - | BI85: Afectat sau NU? | BJ85: - | BK85: - | BL85: Afectat sau NU? | BM85: - | BN85: -
A86: 71 | B86: - | C86: X | D86: Pregătire conductă 28” Hetiur - Onești pentru transformare în conductă godevilabilă | E86: 64470 | F86: Lemnia | G86: Covasna | H86: 597464.4554 | I86: 506826.1648 | J86: 597464.4554 | K86: 506826.1648 | L86: - | M86: - | N86: SM0407D0 | O86: Lemnia | P86: - | Q86: - | R86: - | S86: - | T86: SM-SD001 | U86: Cez Vânzare, E.on Energie, Electric Planners, Electrica Furnizare, Electrocentrale București, Enel Energie, Energy Distribution, Engie, Met România, Monsson, Premier Energy Trading, RWE, Aderro GP, Cis Gaz, Conef Gaz, Cyeb, Distrigaz Vest, Electric&Gas, Electrocentrale Constanța, Enel Muntenia, Gas Provider, Entrex, Euro Seven, Gaz Est, Hargaz, Megaconstruct, Next Energy, Nova Power, Oligopol, Petrom, Premier Energy, Renovatio, Restart Energy, Tinmar, Wiee, Romgaz, Transenergo, Veolia | V86: SC Distrigaz Sud Rețele | W86: septembrie 2020 | AB86: Brașov | AD86: Nu se efectuează în anul gazier 2019 - 2020 - Conform Programului de Reparații, Reabilitare și Asigurare a Serviciilor de Mentenanță SNT pentru anul 2020 aprobat | AO86: propunere PRRASM 2020 | AP86: - | BF86: Afectat sau NU? | BG86: - | BH86: - | BI86: Afectat sau NU? | BJ86: - | BK86: - | BL86: Afectat sau NU? | BM86: - | BN86: -
A87: 72 | B87: - | C87: X | D87: Pregătire conductă 28” Hetiur - Onești pentru transformare în conductă godevilabilă | E87: 64103 | F87: Brețcu | G87: Covasna | H87: 600756.0625 | I87: 506224.71 | J87: 600756.0625 | K87: 506224.71 | L87: - | M87: - | N87: SM0408D0 | O87: Brețcu | P87: - | Q87: - | R87: - | S87: - | T87: SM-SD001 | U87: Cez Vânzare, E.on Energie, Electric Planners, Electrica Furnizare, Electrocentrale București, Enel Energie, Energy Distribution, Engie, Met România, Monsson, Premier Energy Trading, RWE, Aderro GP, Cis Gaz, Conef Gaz, Cyeb, Distrigaz Vest, Electric&Gas, Electrocentrale Constanța, Enel Muntenia, Gas Provider, Entrex, Euro Seven, Gaz Est, Hargaz, Megaconstruct, Next Energy, Nova Power, Oligopol, Petrom, Premier Energy, Renovatio, Restart Energy, Tinmar, Wiee, Romgaz, Transenergo, Veolia | V87: SC Distrigaz Sud Rețele | W87: septembrie 2020 | AB87: Brașov | AD87: Nu se efectuează în anul gazier 2019 - 2020 - Conform Programului de Reparații, Reabilitare și Asigurare a Serviciilor de Mentenanță SNT pentru anul 2020 aprobat | AO87: propunere PRRASM 2020 | AP87: - | BF87: Afectat sau NU? | BG87: - | BH87: - | BI87: Afectat sau NU? | BJ87: - | BK87: - | BL87: Afectat sau NU? | BM87: - | BN87: -
A88: 73 | B88: - | C88: X | D88: Pregătire conductă 28” Hetiur - Onești pentru transformare în conductă godevilabilă | E88: 22585 | F88: Filipești | G88: Bacău | H88: 632633.7757 | I88: 526820.4424 | J88: 632633.7757 | K88: 526820.4424 | L88: - | M88: - | N88: SM0128D0 | O88: SC Fabrica de pâine Șerban Filipești | P88: - | Q88: - | R88: - | S88: - | T88: SM-CF001 | U88: E.on Energie | V88: SC Fabrica de pâine Șerban SRL | W88: septembrie 2020 | AB88: Bacău | AD88: Nu se efectuează în anul gazier 2019 - 2020 - Conform Programului de Reparații, Reabilitare și Asigurare a Serviciilor de Mentenanță SNT pentru anul 2020 aprobat | AO88: propunere PRRASM 2020 | AP88: - | BF88: Afectat sau NU? | BG88: - | BH88: - | BI88: Afectat sau NU? | BJ88: - | BK88: - | BL88: Afectat sau NU? | BM88: - | BN88: -
A89: 74 | B89: - | C89: X | D89: Pregătire conductă 28” Hetiur - Onești pentru transformare în conductă godevilabilă | E89: 23859 | F89: Poiana Sărată | G89: Bacău | H89: 610737.309 | I89: 514516.762 | J89: 610737.309 | K89: 514516.762 | L89: - | M89: - | N89: SM0385D0 | O89: SC Pem Turist Poiana Sărată | P89: - | Q89: - | R89: - | S89: - | T89: SM-CF001 | U89: E.on Energie | V89: SC Pem Turist SRL | W89: septembrie 2020 | AB89: Bacău | AD89: Nu se efectuează în anul gazier 2019 - 2020 - Conform Programului de Reparații, Reabilitare și Asigurare a Serviciilor de Mentenanță SNT pentru anul 2020 aprobat | AO89: propunere PRRASM 2020 | AP89: - | BF89: Afectat sau NU? | BG89: - | BH89: - | BI89: Afectat sau NU? | BJ89: - | BK89: - | BL89: Afectat sau NU? | BM89: - | BN89: -
A90: 75 | B90: - | C90: X | D90: Pregătire conductă 28” Hetiur - Onești pentru transformare în conductă godevilabilă | E90: 23804 | F90: Oituz | G90: Bacău | H90: 622831.6223 | I90: 524130.3287 | J90: 622831.6223 | K90: 524130.3287 | L90: - | M90: - | N90: SM0386D0 | O90: Oituz | P90: - | Q90: - | R90: - | S90: - | T90: SM-SD001 | U90: Cez Vânzare, E.on Energie, E.on Furnizare, Electric Planners, Electrica Furnizare, Enel Energie, Energy Distribution, Engie, Met România, Monsson, Premier Energy Trading, RWE, Aderro GP, Cis Gaz, Conef Gaz, CPL Concordia, Cyeb, Design Proiect, Distrigaz Vest, Electric&Gas, Enel Muntenia, Gas Provider, Entrex, Gaz Est, Hargaz, Next Energy, Nova Power, Petrom, Premier Energy, Renovatio, Restart Energy, Tinmar, Wiee, Tetarom, SST Grup, Pado Group, Mihoc Oil, Gaz Vest, Gazmir Iași, Prisma Serv | V90: Delgaz Grid SA | W90: septembrie 2020 | AB90: Bacău | AD90: Nu se efectuează în anul gazier 2019 - 2020 - Conform Programului de Reparații, Reabilitare și Asigurare a Serviciilor de Mentenanță SNT pentru anul 2020 aprobat | AO90: propunere PRRASM 2020 | AP90: - | BF90: Afectat sau NU? | BG90: - | BH90: - | BI90: Afectat sau NU? | BJ90: - | BK90: - | BL90: Afectat sau NU? | BM90: - | BN90: -
A91: 76 | B91: - | C91: X | D91: Pregătire conductă 28” Hetiur - Onești pentru transformare în conductă godevilabilă | E91: 23804 | F91: Oituz | G91: Bacău | H91: 623001.9761 | I91: 524169.2557 | J91: 623001.9761 | K91: 524169.2557 | L91: - | M91: - | N91: SM0387D0 | O91: SC PA&CO Inernațional Oituz | P91: - | Q91: - | R91: - | S91: - | T91: SM-CF001 | V91: SC PA&CO Inernațional SRL | W91: septembrie 2020 | AB91: Bacău | AD91: Nu se efectuează în anul gazier 2019 - 2020 - Conform Programului de Reparații, Reabilitare și Asigurare a Serviciilor de Mentenanță SNT pentru anul 2020 aprobat | AO91: propunere PRRASM 2020 | AP91: - | BF91: Afectat sau NU? | BG91: - | BH91: - | BI91: Afectat sau NU? | BJ91: - | BK91: - | BL91: Afectat sau NU? | BM91: - | BN91: -
A92: 77 | B92: - | C92: X | D92: Pregătire conductă 28” Hetiur - Onești pentru transformare în conductă godevilabilă | E92: 23804 | F92: Oituz | G92: Bacău | H92: 624041.5056 | I92: 524592.2806 | J92: 624041.5056 | K92: 524592.2806 | L92: - | M92: - | N92: SM0909D0 | O92: PA&CO Inernațional Oituz locuință | P92: - | Q92: - | R92: - | S92: - | T92: SM-CF001 | V92: SC PA&CO Inernațional SRL | W92: septembrie 2020 | AB92: Bacău | AD92: Nu se efectuează în anul gazier 2019 - 2020 - Conform Programului de Reparații, Reabilitare și Asigurare a Serviciilor de Mentenanță SNT pentru anul 2020 aprobat | AO92: propunere PRRASM 2020 | AP92: - | BF92: Afectat sau NU? | BG92: - | BH92: - | BI92: Afectat sau NU? | BJ92: - | BK92: - | BL92: Afectat sau NU? | BM92: - | BN92: -
A93: 78 | B93: - | C93: X | D93: Pregătire conductă 20” Ceanu Mare - Cluj I pentru transformare în conductă godevilabilă | E93: 57369 | F93: Cojocna | G93: Cluj | H93: 411637.5465 | I93: 583557.9 | J93: 411637.5465 | K93: 583557.9 | L93: - | M93: - | N93: SM0871D0 | O93: Cojocna | P93: - | Q93: - | R93: - | S93: - | T93: SM-SD001 | U93: Aderro GP, Nova Power, Cez Vânzare, Ciz Gaz, CPL Concordia, Engie, E.On Energie, Electrica Furnizare, Electric&Gas, Enel, Enel Muntenia, E.On Furnizare, Gaz Est, Met România, Petrom, Renovatio, Restart Energy, Tinmar | V93: CPL Concordia Filiala Cluj | W93: mai - iulie 2020 | AB93: Cluj | AD93: Nu se efectuează în anul gazier 2019 - 2020 - În faza de căutare soluție tehnică | AO93: propunere PRRASM 2020 | AP93: - | BF93: Afectat sau NU? | BG93: - | BH93: - | BI93: Afectat sau NU? | BJ93: - | BK93: - | BL93: Afectat sau NU? | BM93: - | BN93: -
A94: 79 | B94: - | C94: X | D94: Reabilitare conductă 32” Afumați - Butimanu | E94: 102179 | F94: Corbeanca | G94: Ilfov | H94: 582899.261 | I94: 344014.59 | J94: 582899.261 | K94: 344014.59 | L94: - | M94: - | N94: SM0148D0 | O94: Corbeanca | P94: - | Q94: - | R94: - | S94: - | T94: SM-SD001 | U94: Cez Vânzare, E.on Energie, Electric Planners, Electrica Furnizare, Electrocentrale București, Enel Energie, Energy Distribution, Engie, Met România, Monsson, Premier Energy Trading, RWE, Aderro GP, Cis Gaz, Conef Gaz, Cyeb, Distrigaz Vest, Electric&Gas, Electrocentrale Constanța, Enel Muntenia, Gas Provider, Entrex, Euro Seven, Gaz Est, Hargaz, Megaconstruct, Next Energy, Nova Power, Oligopol | V94: SC Distrigaz Sud Rețele | W94: aprilie - septembrie 2020 | AB94: București | AD94: Nu se efectuează în anul gazier 2019 - 2020 - În curs de proiectare | AO94: propunere PRRASM 2020 | AP94: - | BF94: Afectat sau NU? | BG94: - | BH94: - | BI94: Afectat sau NU? | BJ94: - | BK94: - | BL94: Afectat sau NU? | BM94: - | BN94: -
A95: 80 | B95: - | C95: X | D95: Reabilitare conductă 32” Afumați - Butimanu | E95: 100978 | F95: Balotești | G95: Ilfov | H95: 589605.2684 | I95: 346450.6578 | J95: 589605.2684 | K95: 346450.6578 | L95: - | M95: - | N95: SM0198D0 | O95: Balotești | P95: - | Q95: - | R95: - | S95: - | T95: SM-SD001 | U95: Cez Vânzare, E.on Energie, Electrica Furnizare, Enel Energie, Engie, Met România, Aderro GP, Enel Muntenia, Entrex, Megaconstruct, Petrom, Restart Energy, Tinmar | V95: SC Megaconstruct SA | W95: aprilie - septembrie 2020 | AB95: București | AD95: Nu se efectuează în anul gazier 2019 - 2020 - În curs de proiectare | AO95: propunere PRRASM 2020 | AP95: - | BF95: Afectat sau NU? | BG95: - | BH95: - | BI95: Afectat sau NU? | BJ95: - | BK95: - | BL95: Afectat sau NU? | BM95: - | BN95: -
A96: 81 | B96: - | C96: X | D96: Reabilitare conductă 32” Afumați - Butimanu | E96: 105179 | F96: Snagov | G96: Ilfov | H96: 589606.4939 | I96: 346458.6352 | J96: 589606.4939 | K96: 346458.6352 | L96: - | M96: - | N96: SM0922D0 | O96: Snagov | P96: - | Q96: - | R96: - | S96: - | T96: SM-SD001 | U96: Cez Vânzare, E.on Energie, Electric Planners, Electrica Furnizare, Enel Energie, Energy Distribution, Engie, Met România, Aderro GP, Cis Gaz, Conef Gaz, Electric&Gas, Enel Muntenia, Gas Provider, Gaz Est, Megaconstruct, Next Energy, Nova Power, Petrom, Premier Energy, Renovatio, Restart Energy, Transenergo, Wiee, Tinmar | V96: SC Premier Energy SRL | W96: aprilie - septembrie 2020 | AB96: București | AD96: Nu se efectuează în anul gazier 2019 - 2020 - În curs de proiectare | AO96: propunere PRRASM 2020 | AP96: - | BF96: Afectat sau NU? | BG96: - | BH96: - | BI96: Afectat sau NU? | BJ96: - | BK96: - | BL96: Afectat sau NU? | BM96: - | BN96: -
A97: 82 | B97: - | C97: X | D97: Reabilitare conductă 20” Hurezani - Oveselu, fir I | E97: 80506 | F97: Hurezani | G97: Gorj | H97: 394212.6896 | I97: 369126.4888 | J97: 394212.6896 | K97: 369126.4888 | L97: - | M97: - | N97: - | O97: - | P97: PM0205 | Q97: Hurezani SU | R97: - | S97: - | T97: PM-PP001 | U97: Romgaz | V97: SNGN Romgaz SA | W97: aprilie - septembrie 2020 | AB97: Craiova | AD97: Nu se efectuează în anul gazier 2019 - 2020 - În curs de proiectare | AO97: propunere PRRASM 2020 | AP97: - | BF97: Afectat sau NU? | BG97: - | BH97: - | BI97: Afectat sau NU? | BJ97: - | BK97: - | BL97: Afectat sau NU? | BM97: - | BN97: -
A98: 83 | B98: - | C98: X | D98: Reabilitare conductă 20” Hurezani - Oveselu, fir I | E98: 80506 | F98: Hurezani | G98: Gorj | H98: 394174.3345 | I98: 369081.6569 | J98: 394174.3345 | K98: 369081.6569 | L98: - | M98: - | N98: - | O98: - | P98: PM0062 | Q98: Hurezani Bulbuceni | R98: - | S98: - | T98: PM-PP001 | U98: Petrom | V98: SC OMV Petrom SA | W98: aprilie - septembrie 2020 | AB98: Craiova | AD98: Nu se efectuează în anul gazier 2019 - 2020 - În curs de proiectare | AO98: propunere PRRASM 2020 | AP98: - | BF98: Afectat sau NU? | BG98: - | BH98: - | BI98: Afectat sau NU? | BJ98: - | BK98: - | BL98: Afectat sau NU? | BM98: - | BN98: -
A99: 84 | B99: - | C99: X | D99: Reabilitare conductă 20” Hurezani - Oveselu, fir I | E99: 82252 | F99: Stejari (Băcești) | G99: Gorj | H99: 396359.6843 | I99: 364898.3753 | J99: 396359.6843 | K99: 364898.3753 | L99: - | M99: - | N99: - | O99: - | P99: PM0206 | Q99: Piscu Stejari SU | R99: - | S99: - | T99: PM-PP001 | U99: Romgaz | V99: SNGN Romgaz SA | W99: aprilie - septembrie 2020 | AB99: Craiova | AD99: Nu se efectuează în anul gazier 2019 - 2020 - În curs de proiectare | AO99: propunere PRRASM 2020 | AP99: - | BF99: Afectat sau NU? | BG99: - | BH99: - | BI99: Afectat sau NU? | BJ99: - | BK99: - | BL99: Afectat sau NU? | BM99: - | BN99: -
A100: 85 | B100: - | C100: X | D100: Reabilitare conductă 20” Hurezani - Oveselu, fir I | E100: 174307 | F100: Zătreni | G100: Vâlcea | H100: 410095.9203 | I100: 362876.8564 | J100: 410095.9203 | K100: 362876.8564 | L100: - | M100: - | N100: - | O100: - | P100: PM0270 | Q100: SU Zătreni | R100: - | S100: - | T100: PM-PP001 | U100: Amromco, Romgaz, Foraj Sonde | V100: SNGN Romgaz SA, SC Amromco Energy SRL, SC Foraj Sonde SA | W100: aprilie - septembrie 2020 | AB100: Craiova | AD100: Nu se efectuează în anul gazier 2019 - 2020 - În curs de proiectare | AO100: propunere PRRASM 2020 | AP100: - | BF100: Afectat sau NU? | BG100: - | BH100: - | BI100: Afectat sau NU? | BJ100: - | BK100: - | BL100: Afectat sau NU? | BM100: - | BN100: -
A101: 86 | B101: - | C101: X | D101: Reabilitare conductă 20” Hurezani - Oveselu, fir I | E101: 174307 | F101: Zătreni | G101: Vâlcea | H101: 410096.0021 | I101: 362876.7523 | J101: 410096.0021 | K101: 362876.7523 | L101: - | M101: - | N101: - | O101: - | P101: PM0054 | Q101: Zătreni | R101: - | S101: - | T101: PM-PP001 | U101: Amromco, Romgaz | V101: SNGN Romgaz SA, SC Amromco Energy SRL | W101: aprilie - septembrie 2020 | AB101: Craiova | AD101: Nu se efectuează în anul gazier 2019 - 2020 - În curs de proiectare | AO101: propunere PRRASM 2020 | AP101: - | BF101: Afectat sau NU? | BG101: - | BH101: - | BI101: Afectat sau NU? | BJ101: - | BK101: - | BL101: Afectat sau NU? | BM101: - | BN101: -
A102: 87 | B102: - | C102: X | D102: Reabilitare conductă 20” Hurezani - Oveselu, fir I | E102: 170355 | F102: Grădiștea | G102: Vâlcea | H102: 408181.079 | I102: 379756.6068 | J102: 408181.079 | K102: 379756.6068 | L102: - | M102: - | N102: - | O102: - | P102: PM0053 | Q102: Grădiștea | R102: - | S102: - | T102: PM-PP001 | U102: Petrom, Romgaz | V102: SNGN Romgaz SA, SC OMV Petrom SA | W102: aprilie - septembrie 2020 | AB102: Craiova | AD102: Nu se efectuează în anul gazier 2019 - 2020 - În curs de proiectare | AO102: propunere PRRASM 2020 | AP102: - | BF102: Afectat sau NU? | BG102: - | BH102: - | BI102: Afectat sau NU? | BJ102: - | BK102: - | BL102: Afectat sau NU? | BM102: - | BN102: -
A103: 88 | B103: - | C103: X | D103: Reabilitare conductă 20” Hurezani - Oveselu, fir I | E103: 170907 | F103: Pârâienii de Jos | G103: Vâlcea | H103: 407916.5342 | I103: 366668.7789 | J103: 407916.5342 | K103: 366668.7789 | L103: - | M103: - | N103: - | O103: - | P103: PM0259 | Q103: Pârâienii de Jos | R103: - | S103: - | T103: PM-PP001 | U103: Petrom | V103: SC OMV Petrom SA | W103: aprilie - septembrie 2020 | AB103: Craiova | AD103: Nu se efectuează în anul gazier 2019 - 2020 - În curs de proiectare | AO103: propunere PRRASM 2020 | AP103: - | BF103: Afectat sau NU? | BG103: - | BH103: - | BI103: Afectat sau NU? | BJ103: - | BK103: - | BL103: Afectat sau NU? | BM103: - | BN103: -
A104: 89 | B104: - | C104: X | D104: Reabilitare conductă 20” Oveselu - Drăgășani, fir I | E104: 80506 | F104: Hurezani | G104: Gorj | H104: 394212.6896 | I104: 369126.4888 | J104: 394212.6896 | K104: 369126.4888 | L104: - | M104: - | N104: - | O104: - | P104: PM0205 | Q104: Hurezani SU | R104: - | S104: - | T104: PM-PP001 | U104: Romgaz | V104: SNGN Romgaz SA | W104: aprilie - septembrie 2020 | AB104: Craiova | AD104: Nu se efectuează în anul gazier 2019 - 2020 - În curs de proiectare | AO104: propunere PRRASM 2020 | AP104: - | BF104: Afectat sau NU? | BG104: - | BH104: - | BI104: Afectat sau NU? | BJ104: - | BK104: - | BL104: Afectat sau NU? | BM104: - | BN104: -
A105: 90 | B105: - | C105: X | D105: Reabilitare conductă 20” Oveselu - Drăgășani, fir I | E105: 80506 | F105: Hurezani | G105: Gorj | H105: 394174.3345 | I105: 369081.6569 | J105: 394174.3345 | K105: 369081.6569 | L105: - | M105: - | N105: - | O105: - | P105: PM0062 | Q105: Hurezani Bulbuceni | R105: - | S105: - | T105: PM-PP001 | U105: Petrom | V105: SC OMV Petrom SA | W105: aprilie - septembrie 2020 | AB105: Craiova | AD105: Nu se efectuează în anul gazier 2019 - 2020 - În curs de proiectare | AO105: propunere PRRASM 2020 | AP105: - | BF105: Afectat sau NU? | BG105: - | BH105: - | BI105: Afectat sau NU? | BJ105: - | BK105: - | BL105: Afectat sau NU? | BM105: - | BN105: -
A106: 91 | B106: - | C106: X | D106: Reabilitare conductă 20” Oveselu - Drăgășani, fir I | E106: 82252 | F106: Stejari (Băcești) | G106: Gorj | H106: 396359.6843 | I106: 364898.3753 | J106: 396359.6843 | K106: 364898.3753 | L106: - | M106: - | N106: - | O106: - | P106: PM0206 | Q106: Piscu Stejari SU | R106: - | S106: - | T106: PM-PP001 | U106: Romgaz | V106: SNGN Romgaz SA | W106: aprilie - septembrie 2020 | AB106: Craiova | AD106: Nu se efectuează în anul gazier 2019 - 2020 - În curs de proiectare | AO106: propunere PRRASM 2020 | AP106: - | BF106: Afectat sau NU? | BG106: - | BH106: - | BI106: Afectat sau NU? | BJ106: - | BK106: - | BL106: Afectat sau NU? | BM106: - | BN106: -
A107: 92 | B107: - | C107: X | D107: Reabilitare conductă 20” Oveselu - Drăgășani, fir I | E107: 174307 | F107: Zătreni | G107: Vâlcea | H107: 410095.9203 | I107: 362876.8564 | J107: 410095.9203 | K107: 362876.8564 | L107: - | M107: - | N107: - | O107: - | P107: PM0270 | Q107: SU Zătreni | R107: - | S107: - | T107: PM-PP001 | U107: Amromco, Romgaz, Foraj Sonde | V107: SNGN Romgaz SA, SC Amromco Energy SRL, SC Foraj Sonde SA | W107: aprilie - septembrie 2020 | AB107: Craiova | AD107: Nu se efectuează în anul gazier 2019 - 2020 - În curs de proiectare | AO107: propunere PRRASM 2020 | AP107: - | BF107: Afectat sau NU? | BG107: - | BH107: - | BI107: Afectat sau NU? | BJ107: - | BK107: - | BL107: Afectat sau NU? | BM107: - | BN107: -
A108: 93 | B108: - | C108: X | D108: Reabilitare conductă 20” Oveselu - Drăgășani, fir I | E108: 174307 | F108: Zătreni | G108: Vâlcea | H108: 410096.0021 | I108: 362876.7523 | J108: 410096.0021 | K108: 362876.7523 | L108: - | M108: - | N108: - | O108: - | P108: PM0054 | Q108: Zătreni | R108: - | S108: - | T108: PM-PP001 | U108: Amromco, Romgaz | V108: SNGN Romgaz SA, SC Amromco Energy SRL | W108: aprilie - septembrie 2020 | AB108: Craiova | AD108: Nu se efectuează în anul gazier 2019 - 2020 - În curs de proiectare | AO108: propunere PRRASM 2020 | AP108: - | BF108: Afectat sau NU? | BG108: - | BH108: - | BI108: Afectat sau NU? | BJ108: - | BK108: - | BL108: Afectat sau NU? | BM108: - | BN108: -
A109: 94 | B109: - | C109: X | D109: Reabilitare conductă 20” Oveselu - Drăgășani, fir I | E109: 170355 | F109: Grădiștea | G109: Vâlcea | H109: 408181.079 | I109: 379756.6068 | J109: 408181.079 | K109: 379756.6068 | L109: - | M109: - | N109: - | O109: - | P109: PM0053 | Q109: Grădiștea | R109: - | S109: - | T109: PM-PP001 | U109: Petrom, Romgaz | V109: SNGN Romgaz SA, SC OMV Petrom SA | W109: aprilie - septembrie 2020 | AB109: Craiova | AD109: Nu se efectuează în anul gazier 2019 - 2020 - În curs de proiectare | AO109: propunere PRRASM 2020 | AP109: - | BF109: Afectat sau NU? | BG109: - | BH109: - | BI109: Afectat sau NU? | BJ109: - | BK109: - | BL109: Afectat sau NU? | BM109: - | BN109: -
A110: 95 | B110: - | C110: X | D110: Reabilitare conductă 20” Oveselu - Drăgășani, fir I | E110: 170907 | F110: Pârâienii de Jos | G110: Vâlcea | H110: 407916.5342 | I110: 366668.7789 | J110: 407916.5342 | K110: 366668.7789 | L110: - | M110: - | N110: - | O110: - | P110: PM0259 | Q110: Pârâienii de Jos | R110: - | S110: - | T110: PM-PP001 | U110: Petrom | V110: SC OMV Petrom SA | W110: aprilie - septembrie 2020 | AB110: Craiova | AD110: Nu se efectuează în anul gazier 2019 - 2020 - În curs de proiectare | AO110: propunere PRRASM 2020 | AP110: - | BF110: Afectat sau NU? | BG110: - | BH110: - | BI110: Afectat sau NU? | BJ110: - | BK110: - | BL110: Afectat sau NU? | BM110: - | BN110: -
A111: 96 | B111: - | C111: X | D111: Reabilitare conductă 20” Oveselu - Drăgășani, fir I | E111: 171263 | F111: Mamu | G111: Vâlcea | H111: 432509.8138 | I111: 353934.1037 | J111: 432509.8138 | K111: 353934.1037 | L111: - | M111: - | N111: - | O111: - | P111: PM0296 | Q111: Mamu (Crețeni) | R111: - | S111: - | T111: PM-PP001 | U111: Petrom | V111: SC OMV Petrom SA | W111: aprilie - septembrie 2020 | AB111: Craiova | AD111: Nu se efectuează în anul gazier 2019 - 2020 - În curs de proiectare | AO111: propunere PRRASM 2020 | AP111: - | BF111: Afectat sau NU? | BG111: - | BH111: - | BI111: Afectat sau NU? | BJ111: - | BK111: - | BL111: Afectat sau NU? | BM111: - | BN111: -
A112: 97 | B112: - | C112: X | D112: Reabilitare conductă 20” Oveselu - Drăgășani, fir I | E112: 171209 | F112: Mădulari | G112: Vâlcea | H112: 428807.9047 | I112: 356611.1101 | J112: 428807.9047 | K112: 356611.1101 | L112: - | M112: - | N112: - | O112: - | P112: PM0191 | Q112: Mădulari | R112: - | S112: - | T112: PM-PP001 | U112: Petrom, Amromco | V112: SC OMV Petrom SA, SC Amromco Energy SRL | W112: aprilie - septembrie 2020 | AB112: Craiova | AD112: Nu se efectuează în anul gazier 2019 - 2020 - În curs de proiectare | AO112: propunere PRRASM 2020 | AP112: - | BF112: Afectat sau NU? | BG112: - | BH112: - | BI112: Afectat sau NU? | BJ112: - | BK112: - | BL112: Afectat sau NU? | BM112: - | BN112: =IF(C112="X",IF(AN112="DA",LEN(TRIM(V112))-LEN(SUBSTITUTE(V112,CHAR(44),""))+1+LEN(TRIM(U112))-LEN(SUBSTITUTE(U112,CHAR(44),""))+1,"-"),"") -> -
A113: =SUM(1,$A112) -> 98 | B113: - | C113: X | D113: Reabilitare conductă 20” Drăgășani - Corbu, fir I | E113: 80506 | F113: Hurezani | G113: Gorj | H113: 394212.6896 | I113: 369126.4888 | J113: 394212.6896 | K113: 369126.4888 | L113: - | M113: - | N113: - | O113: - | P113: PM0205 | Q113: Hurezani SU | R113: - | S113: - | T113: PM-PP001 | U113: Romgaz | V113: SNGN Romgaz SA | W113: aprilie - septembrie 2020 | AB113: Craiova | AD113: Nu se efectuează în anul gazier 2019 - 2020 - În curs de proiectare | AO113: propunere PRRASM 2020 | AP113: - | BF113: Afectat sau NU? | BG113: - | BH113: - | BI113: Afectat sau NU? | BJ113: - | BK113: - | BL113: Afectat sau NU? | BM113: - | BN113: -
A114: 99 | B114: - | C114: X | D114: Reabilitare conductă 20” Drăgășani - Corbu, fir I | E114: 80506 | F114: Hurezani | G114: Gorj | H114: 394174.3345 | I114: 369081.6569 | J114: 394174.3345 | K114: 369081.6569 | L114: - | M114: - | N114: - | O114: - | P114: PM0062 | Q114: Hurezani Bulbuceni | R114: - | S114: - | T114: PM-PP001 | U114: Petrom | V114: SC OMV Petrom SA | W114: aprilie - septembrie 2020 | AB114: Craiova | AD114: Nu se efectuează în anul gazier 2019 - 2020 - În curs de proiectare | AO114: propunere PRRASM 2020 | AP114: - | BF114: Afectat sau NU? | BG114: - | BH114: - | BI114: Afectat sau NU? | BJ114: - | BK114: - | BL114: Afectat sau NU? | BM114: - | BN114: -
A115: 100 | B115: - | C115: X | D115: Reabilitare conductă 20” Drăgășani - Corbu, fir I | E115: 82252 | F115: Stejari (Băcești) | G115: Gorj | H115: 396359.6843 | I115: 364898.3753 | J115: 396359.6843 | K115: 364898.3753 | L115: - | M115: - | N115: - | O115: - | P115: PM0206 | Q115: Piscu Stejari SU | R115: - | S115: - | T115: PM-PP001 | U115: Romgaz | V115: SNGN Romgaz SA | W115: aprilie - septembrie 2020 | AB115: Craiova | AD115: Nu se efectuează în anul gazier 2019 - 2020 - În curs de proiectare | AO115: propunere PRRASM 2020 | AP115: - | BF115: Afectat sau NU? | BG115: - | BH115: - | BI115: Afectat sau NU? | BJ115: - | BK115: - | BL115: Afectat sau NU? | BM115: - | BN115: -
A116: 101 | B116: - | C116: X | D116: Reabilitare conductă 20” Drăgășani - Corbu, fir I | E116: 174307 | F116: Zătreni | G116: Vâlcea | H116: 410095.9203 | I116: 362876.8564 | J116: 410095.9203 | K116: 362876.8564 | L116: - | M116: - | N116: - | O116: - | P116: PM0270 | Q116: SU Zătreni | R116: - | S116: - | T116: PM-PP001 | U116: Amromco, Romgaz, Foraj Sonde | V116: SNGN Romgaz SA, SC Amromco Energy SRL, SC Foraj Sonde SA | W116: aprilie - septembrie 2020 | AB116: Craiova | AD116: Nu se efectuează în anul gazier 2019 - 2020 - În curs de proiectare | AO116: propunere PRRASM 2020 | AP116: - | BF116: Afectat sau NU? | BG116: - | BH116: - | BI116: Afectat sau NU? | BJ116: - | BK116: - | BL116: Afectat sau NU? | BM116: - | BN116: -
A117: 102 | B117: - | C117: X | D117: Reabilitare conductă 20” Drăgășani - Corbu, fir I | E117: 174307 | F117: Zătreni | G117: Vâlcea | H117: 410096.0021 | I117: 362876.7523 | J117: 410096.0021 | K117: 362876.7523 | L117: - | M117: - | N117: - | O117: - | P117: PM0054 | Q117: Zătreni | R117: - | S117: - | T117: PM-PP001 | U117: Amromco, Romgaz | V117: SNGN Romgaz SA, SC Amromco Energy SRL | W117: aprilie - septembrie 2020 | AB117: Craiova | AD117: Nu se efectuează în anul gazier 2019 - 2020 - În curs de proiectare | AO117: propunere PRRASM 2020 | AP117: - | BF117: Afectat sau NU? | BG117: - | BH117: - | BI117: Afectat sau NU? | BJ117: - | BK117: - | BL117: Afectat sau NU? | BM117: - | BN117: -
A118: 103 | B118: - | C118: X | D118: Reabilitare conductă 20” Drăgășani - Corbu, fir I | E118: 170355 | F118: Grădiștea | G118: Vâlcea | H118: 408181.079 | I118: 379756.6068 | J118: 408181.079 | K118: 379756.6068 | L118: - | M118: - | N118: - | O118: - | P118: PM0053 | Q118: Grădiștea | R118: - | S118: - | T118: PM-PP001 | U118: Petrom, Romgaz | V118: SNGN Romgaz SA, SC OMV Petrom SA | W118: aprilie - septembrie 2020 | AB118: Craiova | AD118: Nu se efectuează în anul gazier 2019 - 2020 - În curs de proiectare | AO118: propunere PRRASM 2020 | AP118: - | BF118: Afectat sau NU? | BG118: - | BH118: - | BI118: Afectat sau NU? | BJ118: - | BK118: - | BL118: Afectat sau NU? | BM118: - | BN118: -
A119: 104 | B119: - | C119: X | D119: Reabilitare conductă 20” Drăgășani - Corbu, fir I | E119: 170907 | F119: Pârâienii de Jos | G119: Vâlcea | H119: 407916.5342 | I119: 366668.7789 | J119: 407916.5342 | K119: 366668.7789 | L119: - | M119: - | N119: - | O119: - | P119: PM0259 | Q119: Pârâienii de Jos | R119: - | S119: - | T119: PM-PP001 | U119: Petrom | V119: SC OMV Petrom SA | W119: aprilie - septembrie 2020 | AB119: Craiova | AD119: Nu se efectuează în anul gazier 2019 - 2020 - În curs de proiectare | AO119: propunere PRRASM 2020 | AP119: - | BF119: Afectat sau NU? | BG119: - | BH119: - | BI119: Afectat sau NU? | BJ119: - | BK119: - | BL119: Afectat sau NU? | BM119: - | BN119: -
A120: 105 | B120: - | C120: X | D120: Reabilitare conductă 20” Drăgășani - Corbu, fir I | E120: 171263 | F120: Mamu | G120: Vâlcea | H120: 432509.8138 | I120: 353934.1037 | J120: 432509.8138 | K120: 353934.1037 | L120: - | M120: - | N120: - | O120: - | P120: PM0296 | Q120: Mamu (Crețeni) | R120: - | S120: - | T120: PM-PP001 | U120: Petrom | V120: SC OMV Petrom SA | W120: aprilie - septembrie 2020 | AB120: Craiova | AD120: Nu se efectuează în anul gazier 2019 - 2020 - În curs de proiectare | AO120: propunere PRRASM 2020 | AP120: - | BF120: Afectat sau NU? | BG120: - | BH120: - | BI120: Afectat sau NU? | BJ120: - | BK120: - | BL120: Afectat sau NU? | BM120: - | BN120: -
A121: 106 | B121: - | C121: X | D121: Reabilitare conductă 20” Drăgășani - Corbu, fir I | E121: 171209 | F121: Mădulari | G121: Vâlcea | H121: 428807.9047 | I121: 356611.1101 | J121: 428807.9047 | K121: 356611.1101 | L121: - | M121: - | N121: - | O121: - | P121: PM0191 | Q121: Mădulari | R121: - | S121: - | T121: PM-PP001 | U121: Petrom, Amromco | V121: SC OMV Petrom SA, SC Amromco Energy SRL | W121: aprilie - septembrie 2020 | AB121: Craiova | AD121: Nu se efectuează în anul gazier 2019 - 2020 - În curs de proiectare | AO121: propunere PRRASM 2020 | AP121: - | BF121: Afectat sau NU? | BG121: - | BH121: - | BI121: Afectat sau NU? | BJ121: - | BK121: - | BL121: Afectat sau NU? | BM121: - | BN121: -
A122: 107 | B122: - | C122: X | D122: Reabilitare conductă 20” Drăgășani - Corbu, fir I | E122: 172386 | F122: Popești | G122: Vâlcea | H122: 431868.6333 | I122: 384475.2689 | J122: 431868.6333 | K122: 384475.2689 | L122: - | M122: - | N122: - | O122: - | P122: PM0034 | Q122: Popești Lăpușata | R122: - | S122: - | T122: PM-PP001 | U122: Petrom | V122: SC OMV Petrom SA | W122: aprilie - septembrie 2020 | AB122: Craiova | AD122: Nu se efectuează în anul gazier 2019 - 2020 - În curs de proiectare | AO122: propunere PRRASM 2020 | AP122: - | BF122: Afectat sau NU? | BG122: - | BH122: - | BI122: Afectat sau NU? | BJ122: - | BK122: - | BL122: Afectat sau NU? | BM122: - | BN122: -
A123: 108 | B123: - | C123: X | D123: Reabilitare conductă 20” Drăgășani - Corbu, fir I | E123: 168372 | F123: Tătărani | G123: Vâlcea | H123: 441512.0399 | I123: 388186.2574 | J123: 441512.0399 | K123: 388186.2574 | L123: - | M123: - | N123: - | O123: - | P123: PM0068 | Q123: Tătărani | R123: - | S123: - | T123: PM-PP001 | U123: Petrom | V123: SC OMV Petrom SA | W123: aprilie - septembrie 2020 | AB123: Craiova | AD123: Nu se efectuează în anul gazier 2019 - 2020 - În curs de proiectare | AO123: propunere PRRASM 2020 | AP123: - | BF123: Afectat sau NU? | BG123: - | BH123: - | BI123: Afectat sau NU? | BJ123: - | BK123: - | BL123: Afectat sau NU? | BM123: - | BN123: -
A124: 109 | B124: - | C124: X | D124: Reabilitare conductă 20” Drăgășani - Corbu, fir I | E124: 126326 | F124: Corbu | G124: Olt | H124: 478431.2424 | I124: 331691.6553 | J124: 478431.2424 | K124: 331691.6553 | L124: - | M124: - | N124: - | O124: - | P124: PM0069 | Q124: Corbu | R124: - | S124: - | T124: PM-PP001 | U124: Petrom | V124: SC OMV Petrom SA | W124: aprilie - septembrie 2020 | AB124: Craiova | AD124: Nu se efectuează în anul gazier 2019 - 2020 - În curs de proiectare | AO124: propunere PRRASM 2020 | AP124: - | BF124: Afectat sau NU? | BG124: - | BH124: - | BI124: Afectat sau NU? | BJ124: - | BK124: - | BL124: Afectat sau NU? | BM124: - | BN124: -
A125: =SUM(1,A124) -> 110 | B125: - | C125: X | D125: Reparație conductă 12” ocolire oraș Piatra Neamț | E125: 120735 | F125: Piatra Neamț | G125: Neamț | H125: 602403.6759 | I125: 604575.782 | J125: 602403.6759 | K125: 604575.782 | L125: - | M125: - | N125: SM0454D0 | O125: Piatra Neamț II | P125: - | Q125: - | R125: - | S125: - | T125: SM-SD001 | U125: Cez Vânzare, E.on Energie, E.on Furnizare, Electric Planners, Electrica Furnizare, Enel Energie, Energy Distribution, Engie, Met România, Monsson, Premier Energy Trading, RWE, Aderro GP, Cis Gaz, Conef Gaz, CPL Concordia, Cyeb, Design Proiect, Distrigaz Vest, Electric&Gas, Enel Muntenia, Gas Provider, Entrex, Gaz Est, Hargaz, Next Energy, Nova Power, Petrom, Premier Energy, Renovatio, Restart Energy, Tinmar, Wiee, Tetarom, SST Grup, Pado Group, Mihoc Oil, Gaz Vest, Gazmir Iași, Prisma Serv | V125: Delgaz Grid SA | W125: iunie - septembrie 2020 | AB125: Bacău | AD125: Proiect neautorizat - refacere proiect | AO125: PRRASM 2019_A1_1 | AP125: - | BF125: Afectat sau NU? | BG125: - | BH125: - | BI125: Afectat sau NU? | BJ125: - | BK125: - | BL125: Afectat sau NU? | BM125: - | BN125: -
A126: =SUM(1,$A125) -> 111 | B126: - | C126: X | D126: Reparație conductă 12” ocolire oraș Piatra Neamț | E126: 120735 | F126: Piatra Neamț | G126: Neamț | H126: 602458.5788 | I126: 604700.6761 | J126: 602458.5788 | K126: 604700.6761 | L126: - | M126: - | N126: SM1074D0 | O126: SC Petrocart Piatra Neamț | P126: - | Q126: - | R126: - | S126: - | T126: SM-CF001 | V126: SC Petrocart SA | W126: iunie - septembrie 2020 | AB126: Bacău | AD126: Proiect neautorizat - refacere proiect | AO126: PRRASM 2019_A1_1 | AP126: - | BF126: Afectat sau NU? | BG126: - | BH126: - | BI126: Afectat sau NU? | BJ126: - | BK126: - | BL126: Afectat sau NU? | BM126: - | BN126: -
A127: 112 | B127: - | C127: X | D127: Reparație conductă 12” ocolire oraș Piatra Neamț | E127: 120735 | F127: Piatra Neamț | G127: Neamț | H127: 606028.7905 | I127: 601634.8534 | J127: 606028.7905 | K127: 601634.8534 | L127: - | M127: - | N127: SM1137D0 | O127: Piatra Neamț III | P127: - | Q127: - | R127: - | S127: - | T127: SM-SD001 | U127: Cez Vânzare, E.on Energie, E.on Furnizare, Electric Planners, Electrica Furnizare, Enel Energie, Energy Distribution, Engie, Met România, Monsson, Premier Energy Trading, RWE, Aderro GP, Cis Gaz, Conef Gaz, CPL Concordia, Cyeb, Design Proiect, Distrigaz Vest, Electric&Gas, Enel Muntenia, Gas Provider, Entrex, Gaz Est, Hargaz, Next Energy, Nova Power, Petrom, Premier Energy, Renovatio, Restart Energy, Tinmar, Wiee, Tetarom, SST Grup, Pado Group, Mihoc Oil, Gaz Vest, Gazmir Iași, Prisma Serv | V127: Delgaz Grid SA | W127: iunie - septembrie 2020 | AB127: Bacău | AD127: Proiect neautorizat - refacere proiect | AO127: PRRASM 2019_A1_1 | AP127: - | BF127: Afectat sau NU? | BG127: - | BH127: - | BI127: Afectat sau NU? | BJ127: - | BK127: - | BL127: Afectat sau NU? | BM127: - | BN127: -
A128: 113 | B128: - | C128: X | D128: Reparație conductă 12” ocolire oraș Piatra Neamț | E128: 124974 | F128: Bistrița NT | G128: Neamț | H128: 599003.2425 | I128: 605471.1463 | J128: 599003.2425 | K128: 605471.1463 | L128: - | M128: - | N128: SM0307D0 | O128: SC TLSIT Bistrița NT | P128: - | Q128: - | R128: - | S128: - | T128: SM-CF001 | U128: E.On Energie | V128: SC TLSIT SA | W128: iunie - septembrie 2020 | AB128: Bacău | AD128: Proiect neautorizat - refacere proiect | AO128: PRRASM 2019_A1_1 | AP128: - | BF128: Afectat sau NU? | BG128: - | BH128: - | BI128: Afectat sau NU? | BJ128: - | BK128: - | BL128: Afectat sau NU? | BM128: - | BN128: -
A129: 114 | B129: - | C129: X | D129: Pregătirea conductei 20” Ișalnița - Cruce Ghercești pentru transformarea în conductă godevilabilă, zonele Melinești, CET II Craiova și Ghercești | E129: 72409 | F129: Ghercești | G129: Dolj | H129: 411337.3385 | I129: 315622.4637 | J129: 411337.3385 | K129: 315622.4637 | L129: - | M129: - | N129: - | O129: - | P129: PM0275 | Q129: Stație Centrală Ghercești EXTR | R129: - | S129: - | T129: VPM01 | U129: E.On Energie, E.On Furnizare, Met România, Cez Vânzare, Nova Power, Romgaz | V129: Depogaz Ploiești | W129: mai - septembrie 2020 august - septembrie 2020 | AB129: Craiova | AD129: Conform Programului de Reparații, Reabilitare și Asigurare a Serviciilor de Mentenanță SNT pentru anul 2020 aprobat | AP129: PRRASM 2020_II_A_5 (Anexa 1) | BF129: Afectat sau NU? | BG129: - | BH129: - | BI129: Afectat sau NU? | BJ129: - | BK129: - | BL129: Afectat sau NU? | BM129: - | BN129: -
A130: 115 | B130: - | C130: X | D130: Pregătirea conductei 20” Ișalnița - Cruce Ghercești pentru transformarea în conductă godevilabilă, zonele Melinești, CET II Craiova și Ghercești | E130: 72409 | F130: Ghercești | G130: Dolj | H130: 404873.4365 | I130: 317922.641 | J130: 404873.4365 | K130: 317922.641 | L130: - | M130: - | N130: SM1142D0 | O130: Stație Centrală Ghercești INMA | P130: - | Q130: - | R130: - | S130: - | T130: VSM01 | U130: E.On Energie, E.On Furnizare, Electrica Furnizare, Met România, Cez Vânzare, Nova Power, Romgaz, Axpo Energy, Gaz Est, Nord Gaz, Mehedinți Gaz, Energy Distribution, Petrom | V130: Depogaz Ploiești | W130: mai - septembrie 2020 august - septembrie 2020 | AB130: Craiova | AD130: Conform Programului de Reparații, Reabilitare și Asigurare a Serviciilor de Mentenanță SNT pentru anul 2020 aprobat | AP130: PRRASM 2020_II_A_5 (Anexa 1) | BF130: Afectat sau NU? | BG130: - | BH130: - | BI130: Afectat sau NU? | BJ130: - | BK130: - | BL130: Afectat sau NU? | BM130: - | BN130: -
A131: 116 | B131: - | C131: X | D131: Pregătirea conductei 20” Ișalnița - Cruce Ghercești pentru transformarea în conductă godevilabilă, zonele Melinești, CET II Craiova și Ghercești | E131: 73246 | F131: Mischii | G131: Dolj | H131: 410109.2022 | I131: 320464.259 | J131: 410109.2022 | K131: 320464.259 | L131: - | M131: - | N131: SM1037D0 | O131: Mischii | P131: - | Q131: - | R131: - | S131: - | T131: SM-SD001 | U131: Engie, Electrica Furnizare, Premier Energy Trading, Premier Energy, Restart Energy, Wiee România, E.On Energie, Cez Vânzare, Enel Energie, Gaz Est, Met România, Nova Power, Euro Seven Industry, Oligopol, Energy Distribution, Electrocentrale Constanța, Hargaz, Conef Gaz, Megaconstruct, Distrigaz Vest, Electrocentrale București, Next Energy, Cis Gaz, Transenergo, Aderro, Tinmar, Enel Muntenia, RWE Supply, Romgaz, Cyeb, Entrex, Petrom, Electric&Gas, Energy Gas Provider, Renovatio, Monsson, Electric Planners, Alpha Metal, Veolia | V131: SC Distrigaz Sud Rețele | W131: mai - septembrie 2020 august - septembrie 2020 | AB131: Craiova | AD131: Conform Programului de Reparații, Reabilitare și Asigurare a Serviciilor de Mentenanță SNT pentru anul 2020 aprobat | AP131: PRRASM 2020_II_A_5 (Anexa 1) | BF131: Afectat sau NU? | BG131: - | BH131: - | BI131: Afectat sau NU? | BJ131: - | BK131: - | BL131: Afectat sau NU? | BM131: - | BN131: -
A132: 117 | B132: - | C132: X | D132: Pregătirea conductei 20” Ișalnița - Cruce Ghercești pentru transformarea în conductă godevilabilă, zonele Melinești, CET II Craiova și Ghercești | E132: 72418 | F132: Ghercești | G132: Dolj | H132: 412675.233 | I132: 316838.1307 | J132: 412675.233 | K132: 316838.1307 | L132: - | M132: - | N132: SM1146D0 | O132: Ghercești | P132: - | Q132: - | R132: - | S132: - | T132: SM-SD001 | U132: Energy Distribution, Petrom, Restart Energy, Romgaz | V132: SNGN Romgaz SA - Distribuție | W132: mai - septembrie 2020 august - septembrie 2020 | AB132: Craiova | AD132: Conform Programului de Reparații, Reabilitare și Asigurare a Serviciilor de Mentenanță SNT pentru anul 2020 aprobat | AP132: PRRASM 2020_II_A_5 (Anexa 1) | BF132: Afectat sau NU? | BG132: - | BH132: - | BI132: Afectat sau NU? | BJ132: - | BK132: - | BL132: Afectat sau NU? | BM132: - | BN132: -
A133: 118 | B133: - | C133: X | D133: Pregătirea conductei 20” Ișalnița - Cruce Ghercești pentru transformarea în conductă godevilabilă, zonele Melinești, CET II Craiova și Ghercești | E133: 72409 | F133: Ghercești | G133: Dolj | H133: 409849.8983 | I133: 314332.0136 | J133: 409849.8983 | K133: 314332.0136 | L133: - | M133: - | N133: SM1194D0 | O133: Ghercești II | P133: - | Q133: - | R133: - | S133: - | T133: SM-SD001 | U133: Energy Distribution, Petrom, Restart Energy, Romgaz | V133: SNGN Romgaz SA - Distribuție | W133: mai - septembrie 2020 august - septembrie 2020 | AB133: Craiova | AD133: Conform Programului de Reparații, Reabilitare și Asigurare a Serviciilor de Mentenanță SNT pentru anul 2020 aprobat | AP133: PRRASM 2020_II_A_5 (Anexa 1) | BF133: Afectat sau NU? | BG133: - | BH133: - | BI133: Afectat sau NU? | BJ133: - | BK133: - | BL133: Afectat sau NU? | BM133: - | BN133: -
A134: 119 | B134: - | C134: X | D134: Pregătirea conductei 20” Ișalnița - Cruce Ghercești pentru transformarea în conductă godevilabilă, zonele Melinești, CET II Craiova și Ghercești | E134: 73629 | F134: Pielești | G134: Dolj | H134: 414077.2752 | I134: 316502.8502 | J134: 414077.2752 | K134: 316502.8502 | L134: - | M134: - | N134: SM1187D0 | O134: Pielești | P134: - | Q134: - | R134: - | S134: - | T134: SM-SD001 | U134: Aderro GP, Cez Vânzare, Engie, E.On Energie, Electrica Furnizare, Enel, Enel Muntenia, Met România, Petrom, Restart Energy, Tinmar, Entrex, Megaconstruct | V134: SC Megaconstruct SA | W134: mai - septembrie 2020 august - septembrie 2020 | AB134: Craiova | AD134: Conform Programului de Reparații, Reabilitare și Asigurare a Serviciilor de Mentenanță SNT pentru anul 2020 aprobat | AP134: PRRASM 2020_II_A_5 (Anexa 1) | BF134: Afectat sau NU? | BG134: - | BH134: - | BI134: Afectat sau NU? | BJ134: - | BK134: - | BL134: Afectat sau NU? | BM134: - | BN134: -
A135: 120 | B135: - | C135: X | D135: Pregătirea conductei 20” Ișalnița - Cruce Ghercești pentru transformarea în conductă godevilabilă, zonele Melinești, CET II Craiova și Ghercești | E135: 69900 | F135: Craiova | G135: Dolj | H135: 404921.2652 | I135: 317959.3772 | J135: 404921.2652 | K135: 317959.3772 | L135: - | M135: - | N135: SM1158D0 | O135: CET Craiova II | P135: - | Q135: - | R135: - | S135: - | T135: SM-CF001 | V135: Complexul Energetic Oltenia | W135: mai - septembrie 2020 august - septembrie 2020 | AB135: Craiova | AD135: Conform Programului de Reparații, Reabilitare și Asigurare a Serviciilor de Mentenanță SNT pentru anul 2020 aprobat | AP135: PRRASM 2020_II_A_5 (Anexa 1) | BF135: Afectat sau NU? | BG135: - | BH135: - | BI135: Afectat sau NU? | BJ135: - | BK135: - | BL135: Afectat sau NU? | BM135: - | BN135: -
A136: 121 | B136: - | C136: X | D136: Pregătirea conductei 20” Ișalnița - Cruce Ghercești pentru transformarea în conductă godevilabilă, zonele Melinești, CET II Craiova și Ghercești | E136: 69900 | F136: Craiova | G136: Dolj | H136: 408229.2898 | I136: 311000.1356 | J136: 408229.2898 | K136: 311000.1356 | L136: - | M136: - | N136: SM0209D1 | O136: SC Ford Combinat | P136: - | Q136: - | R136: - | S136: - | T136: SM-CF001 | U136: Engie | V136: SC Ford România SA | W136: mai - septembrie 2020 august - septembrie 2020 | AB136: Craiova | AD136: Conform Programului de Reparații, Reabilitare și Asigurare a Serviciilor de Mentenanță SNT pentru anul 2020 aprobat | AP136: PRRASM 2020_II_A_5 (Anexa 1) | BF136: Afectat sau NU? | BG136: - | BH136: - | BI136: Afectat sau NU? | BJ136: - | BK136: - | BL136: Afectat sau NU? | BM136: - | BN136: -
A137: 122 | B137: - | C137: X | D137: Pregătirea conductei 20” Ișalnița - Cruce Ghercești pentru transformarea în conductă godevilabilă, zonele Melinești, CET II Craiova și Ghercești | E137: 69900 | F137: Craiova | G137: Dolj | H137: 408229.2898 | I137: 311000.1356 | J137: 408229.2898 | K137: 311000.1356 | L137: - | M137: - | N137: SM0209D2 | O137: Ford Craiova Casnici | P137: - | Q137: - | R137: - | S137: - | T137: SM-SD001 | U137: Engie, Electrica Furnizare, Premier Energy Trading, Premier Energy, Restart Energy, Wiee România, E.On Energie, Cez Vânzare, Enel Energie, Gaz Est, Met România, Nova Power, Euro Seven Industry, Oligopol, Energy Distribution, Electrocentrale Constanța, Hargaz, Conef Gaz, Megaconstruct, Distrigaz Vest, Electrocentrale București, Next Energy, Cis Gaz, Transenergo, Aderro, Tinmar, Enel Muntenia, RWE Supply, Romgaz, Cyeb, Entrex, Petrom, Electric&Gas, Energy Gas Provider, Renovatio, Monsson, Electric Planners, Alpha Metal, Veolia | V137: SC Distrigaz Sud Rețele | W137: mai - septembrie 2020 august - septembrie 2020 | AB137: Craiova | AD137: Conform Programului de Reparații, Reabilitare și Asigurare a Serviciilor de Mentenanță SNT pentru anul 2020 aprobat | AP137: PRRASM 2020_II_A_5 (Anexa 1) | BF137: Afectat sau NU? | BG137: - | BH137: - | BI137: Afectat sau NU? | BJ137: - | BK137: - | BL137: Afectat sau NU? | BM137: - | BN137: -
A138: 123 | B138: - | C138: X | D138: Pregătirea conductei 20” Ișalnița - Cruce Ghercești pentru transformarea în conductă godevilabilă, zonele Melinești, CET II Craiova și Ghercești | E138: 69900 | F138: Craiova | G138: Dolj | H138: 404628.8399 | I138: 311354.1039 | J138: 404628.8399 | K138: 311354.1039 | L138: - | M138: - | N138: SM0208D0 | O138: Craiova Sud | P138: - | Q138: - | R138: - | S138: - | T138: SM-SD001 | U138: Engie, Electrica Furnizare, Premier Energy Trading, Premier Energy, Restart Energy, Wiee România, E.On Energie, Cez Vânzare, Enel Energie, Gaz Est, Met România, Nova Power, Euro Seven Industry, Oligopol, Energy Distribution, Electrocentrale Constanța, Hargaz, Conef Gaz, Megaconstruct, Distrigaz Vest, Electrocentrale București, Next Energy, Cis Gaz, Transenergo, Aderro, Tinmar, Enel Muntenia, RWE Supply, Romgaz, Cyeb, Entrex, Petrom, Electric&Gas, Energy Gas Provider, Renovatio, Monsson, Electric Planners, Alpha Metal, Veolia | V138: SC Distrigaz Sud Rețele | W138: mai - septembrie 2020 august - septembrie 2020 | AB138: Craiova | AD138: Conform Programului de Reparații, Reabilitare și Asigurare a Serviciilor de Mentenanță SNT pentru anul 2020 aprobat | AP138: PRRASM 2020_II_A_5 (Anexa 1) | BF138: Afectat sau NU? | BG138: - | BH138: - | BI138: Afectat sau NU? | BJ138: - | BK138: - | BL138: Afectat sau NU? | BM138: - | BN138: -
A139: 124 | B139: - | C139: X | D139: Pregătirea conductei 20” Ișalnița - Cruce Ghercești pentru transformarea în conductă godevilabilă, zonele Melinești, CET II Craiova și Ghercești | E139: 70110 | F139: Podari | G139: Dolj | H139: 404627.6737 | I139: 311347.6397 | J139: 404627.6737 | K139: 311347.6397 | L139: - | M139: - | N139: SM1053D0 | O139: Podari | P139: - | Q139: - | R139: - | S139: - | T139: SM-SD001 | U139: Engie, Electrica Furnizare, Premier Energy Trading, Premier Energy, Restart Energy, Wiee România, E.On Energie, Cez Vânzare, Enel Energie, Gaz Est, Met România, Nova Power, Euro Seven Industry, Oligopol, Energy Distribution, Electrocentrale Constanța, Hargaz, Conef Gaz, Megaconstruct, Distrigaz Vest, Electrocentrale București, Next Energy, Cis Gaz, Transenergo, Aderro, Tinmar, Enel Muntenia, RWE Supply, Romgaz, Cyeb, Entrex, Petrom, Electric&Gas, Energy Gas Provider, Renovatio, Monsson, Electric Planners, Alpha Metal, Veolia | V139: SC Distrigaz Sud Rețele | W139: mai - septembrie 2020 august - septembrie 2020 | AB139: Craiova | AD139: Conform Programului de Reparații, Reabilitare și Asigurare a Serviciilor de Mentenanță SNT pentru anul 2020 aprobat | AP139: PRRASM 2020_II_A_5 (Anexa 1) | BF139: Afectat sau NU? | BG139: - | BH139: - | BI139: Afectat sau NU? | BJ139: - | BK139: - | BL139: Afectat sau NU? | BM139: - | BN139: -
A140: 125 | B140: - | C140: X | D140: Înlocuire 2 tronsoane pe conducta 3” racord alimentare SRM Bisericani, zona Bisericani | E140: 124938 | F140: Bisericani | G140: Neamț | H140: 594524.2825 | I140: 607357.2597 | J140: 594524.2825 | K140: 607357.2597 | L140: - | M140: - | N140: SM0456D0 | O140: Spitalul de Pneumoftiziologie Bisericani | P140: - | Q140: - | R140: - | S140: - | T140: SM-CF001 | U140: Enel Muntenia | V140: Spitalul de Pneumoftiziologie Bisericani | W140: august - septembrie 2020 | AB140: Bacău | AP140: Sucursala_A_2 | BF140: Afectat sau NU? | BG140: - | BH140: - | BI140: Afectat sau NU? | BJ140: - | BK140: - | BL140: Afectat sau NU? | BM140: - | BN140: -
A141: 126 | B141: - | C141: X | D141: Refacere sudură pe 4” racord alimentare SRM Livezi localitate, în zona de cuplare în 20” Helegiu - Racova, fir I, zona Livezi | E141: 23289 | F141: Livezi | G141: Bacău | H141: 633228.87 | I141: 546356.477 | J141: 633228.87 | K141: 546356.477 | L141: - | M141: - | N141: SM0445D0 | O141: SC Olympus Spedition Livezi | P141: - | Q141: - | R141: - | S141: - | T141: SM-CF001 | U141: Tinmar | V141: SC Olympus Spedition SRL | W141: septembrie 2020 | AB141: Bacău | AP141: Forțe proprii | BF141: Afectat sau NU? | BG141: - | BH141: - | BI141: Afectat sau NU? | BJ141: - | BK141: - | BL141: Afectat sau NU? | BM141: - | BN141: -
A142: 127 | B142: - | C142: X | D142: Interconectare 32" Moșu - Podișor cu 16" Gura Șutți, zona Slobozia Moara și relocare Rv16 cu refulator. | E142: 68627 | F142: Răcari | G142: Dâmbovița | H142: 555001.09 | I142: 349955.82 | J142: 569137.31 | K142: 334164.8 | L142: - | M142: - | N142: SM0145D0 | O142: Răcari | P142: - | Q142: - | R142: - | S142: - | T142: SM-SD001 | U142: Cez Vânzare, E.on Energie, Electric Planners, Electrica Furnizare, Electrocentrale București, Enel Energie, Energy Distribution, Engie, Met România, Monsson, Premier Energy Trading, RWE, Aderro GP, Cis Gaz, Conef Gaz, Cyeb, Distrigaz Vest, Electric&Gas, Electrocentrale Constanța, Enel Muntenia, Gas Provider, Entrex, Euro Seven, Gaz Est, Hargaz, Megaconstruct, Next Energy, Nova Power, Oligopol, Petrom, Premier Energy, Renovatio, Restart Energy, Tinmar, Wiee, Romgaz, Transenergo, Veolia | V142: SC Distrigaz Sud Rețele | W142: august - septembrie 2020 | AB142: București | AO142: Conform email de la Ion Istrate din 04.03.2020 | AP142: Forțe proprii | BF142: Afectat sau NU? | BG142: - | BH142: - | BI142: Afectat sau NU? | BJ142: - | BK142: - | BL142: Afectat sau NU? | BM142: - | BN142: -
A143: 128 | B143: - | C143: X | D143: Interconectare 32" Moșu - Podișor cu 16" Gura Șutți, zona Slobozia Moara și relocare Rv16 cu refulator. | E143: 105534 | F143: Tărtășești | G143: Dâmbovița | H143: 555001.09 | I143: 349955.82 | J143: 569137.31 | K143: 334164.8 | L143: - | M143: - | N143: SM0112D0 | O143: Tărtășești | P143: - | Q143: - | R143: - | S143: - | T143: SM-SD001 | U143: Cez Vânzare, E.On Energie, Electric Planners, Electrica Furnizare, Enel Energie, Energy Distribution, Engie, Met România, Aderro GP, Cis Gaz, Conef Gaz, Electric&Gas, Enel Muntenia, Gas Provider, Gaz Est, Megaconstruct, Next Energy, Nova Power, Petrom, Premier Energy, Renovatio, Restart Energy, Tinmar, Wiee, Transenergo | V143: SC Premier Energy SRL | W143: august - septembrie 2020 | AB143: București | AO143: Conform email de la Ion Istrate din 04.03.2020 | AP143: Forțe proprii | BF143: Afectat sau NU? | BG143: - | BH143: - | BI143: Afectat sau NU? | BJ143: - | BK143: - | BL143: Afectat sau NU? | BM143: - | BN143: -
A144: 129 | B144: - | C144: X | D144: Interconectare 32" Moșu - Podișor cu 16" Gura Șutți, zona Slobozia Moara și relocare Rv16 cu refulator. | E144: 103997 | F144: Săbăreni | G144: Giurgiu | H144: 555001.09 | I144: 349955.82 | J144: 569137.31 | K144: 334164.8 | L144: - | M144: - | N144: SM1086D0 | O144: Joița | P144: - | Q144: - | R144: - | S144: - | T144: SM-SD001 | U144: Petrom, Euro Seven, Enel Muntenia, Engie, Enel Energie | V144: EuroSeven | W144: august - septembrie 2020 | AB144: București | AO144: Conform email de la Ion Istrate din 04.03.2020 | AP144: Forțe proprii | AR144: =IF(B144="X",IF(AN144="","Afectat sau NU?",IF(AN144="DA",IF(((AK144+AL144)-(AE144+AF144))*24<-720,"Neinformat",((AK144+AL144)-(AE144+AF144))*24),"Nu a fost afectat producator/consumator")),"") ->  | AS144: =IF(B144="X",IF(AN144="DA",IF(AR144<6,LEN(TRIM(V144))-LEN(SUBSTITUTE(V144,CHAR(44),""))+1,0),"-"),"") ->  | AT144: =IF(B144="X",IF(AN144="DA",LEN(TRIM(V144))-LEN(SUBSTITUTE(V144,CHAR(44),""))+1,"-"),"") ->  | AU144: =IF(B144="X",IF(AN144="","Afectat sau NU?",IF(AN144="DA",IF(((AI144+AJ144)-(AE144+AF144))*24<-720,"Neinformat",((AI144+AJ144)-(AE144+AF144))*24),"Nu a fost afectat producator/consumator")),"") ->  | AV144: =IF(B144="X",IF(AN144="DA",IF(AU144<6,LEN(TRIM(U144))-LEN(SUBSTITUTE(U144,CHAR(44),""))+1,0),"-"),"") ->  | AW144: =IF(B144="X",IF(AN144="DA",LEN(TRIM(U144))-LEN(SUBSTITUTE(U144,CHAR(44),""))+1,"-"),"") ->  | AX144: =IF(B144="X",IF(AN144="","Afectat sau NU?",IF(AN144="DA",((AG144+AH144)-(AE144+AF144))*24,"Nu a fost afectat producator/consumator")),"") ->  | AY144: =IF(B144="X",IF(AN144="DA",IF(AX144>24,IF(BA144="NU",0,LEN(TRIM(V144))-LEN(SUBSTITUTE(V144,CHAR(44),""))+1),0),"-"),"") ->  | AZ144: =IF(B144="X",IF(AN144="DA",IF(AX144>24,LEN(TRIM(V144))-LEN(SUBSTITUTE(V144,CHAR(44),""))+1,0),"-"),"") ->  | BF144: =IF(C144="X",IF(AN144="","Afectat sau NU?",IF(AN144="DA",IF(AK144="","Neinformat",NETWORKDAYS(AK144+AL144,AE144+AF144,$BS$2:$BS$14)-2),"Nu a fost afectat producator/consumator")),"") -> Afectat sau NU? | BG144: =IF(C144="X",IF(AN144="DA",IF(AND(BF144>=5,AK144<>""),LEN(TRIM(V144))-LEN(SUBSTITUTE(V144,CHAR(44),""))+1,0),"-"),"") -> - | BH144: =IF(C144="X",IF(AN144="DA",LEN(TRIM(V144))-LEN(SUBSTITUTE(V144,CHAR(44),""))+1,"-"),"") -> - | BI144: =IF(C144="X",IF(AN144="","Afectat sau NU?",IF(AN144="DA",IF(AI144="","Neinformat",NETWORKDAYS(AI144+AJ144,AE144+AF144,$BS$2:$BS$14)-2),"Nu a fost afectat producator/consumator")),"") -> Afectat sau NU? | BJ144: =IF(C144="X",IF(AN144="DA",IF(AND(BI144>=5,AI144<>""),LEN(TRIM(U144))-LEN(SUBSTITUTE(U144,CHAR(44),""))+1,0),"-"),"") -> - | BK144: =IF(C144="X",IF(AN144="DA",LEN(TRIM(U144))-LEN(SUBSTITUTE(U144,CHAR(44),""))+1,"-"),"") -> - | BL144: =IF(C144="X",IF(AN144="","Afectat sau NU?",IF(AN144="DA",((AG144+AH144)-(Z144+AA144))*24,"Nu a fost afectat producator/consumator")),"") -> Afectat sau NU? | BM144: =IF(C144="X",IF(AN144<>"DA","-",IF(AND(AN144="DA",BL144<=0),LEN(TRIM(V144))-LEN(SUBSTITUTE(V144,CHAR(44),""))+1+LEN(TRIM(U144))-LEN(SUBSTITUTE(U144,CHAR(44),""))+1,0)),"") -> - | BN144: =IF(C144="X",IF(AN144="DA",LEN(TRIM(V144))-LEN(SUBSTITUTE(V144,CHAR(44),""))+1+LEN(TRIM(U144))-LEN(SUBSTITUTE(U144,CHAR(44),""))+1,"-"),"") -> -
A145: 130 | B145: - | C145: X | D145: SRM Clinceni - Eficientizarea sistemului de măsură prin completarea instalației tehnologice cu elemente/echipamente corespunzătoare | E145: 102044 | F145: Clinceni | G145: Ilfov | H145: 574454.519 | I145: 318647.86 | J145: 574454.519 | K145: 318647.86 | L145: - | M145: - | N145: SM0249D1 | O145: Clinceni | P145: - | Q145: - | R145: - | S145: - | T145: SM-SD001 | U145: Cez Vânzare, E.on Energie, Electric Planners, Electrica Furnizare, Electrocentrale București, Enel Energie, Energy Distribution, Engie, Met România, Monsson, Premier Energy Trading, RWE, Aderro GP, Cis Gaz, Conef Gaz, Cyeb, Distrigaz Vest, Electric&Gas, Electrocentrale Constanța, Enel Muntenia, Gas Provider, Entrex, Euro Seven, Gaz Est, Hargaz, Megaconstruct, Next Energy, Nova Power, Oligopol | V145: SC Distrigaz Sud Rețele | W145: iulie - septembrie 2020 anul gazier 2020 - 2021 | AB145: București | AD145: Conform Programului de Modernizare, Dezvoltare și Investiții pe anul 2020 - 2022 aprobat | AP145: PMDI 2020_1 (Anexa 3) | BF145: Afectat sau NU? | BG145: - | BH145: - | BI145: Afectat sau NU? | BJ145: - | BK145: - | BL145: Afectat sau NU? | BM145: - | BN145: -
A146: 131 | B146: - | C146: X | D146: SRM Clinceni - Eficientizarea sistemului de măsură prin completarea instalației tehnologice cu elemente/echipamente corespunzătoare | E146: 102044 | F146: Clinceni | G146: Ilfov | H146: 574454.519 | I146: 318647.86 | J146: 574454.519 | K146: 318647.86 | L146: - | M146: - | N146: SM0249D2 | O146: Cornetu | P146: - | Q146: - | R146: - | S146: - | T146: SM-SD001 | U146: Cez Vânzare, E.On Energie, Electric Planners, Electrica Furnizare, Enel Energie, Energy Distribution, Engie, Met România, Aderro GP, Cis Gaz, Conef Gaz, Electric&Gas, Enel Muntenia, Gas Provider, Gaz Est, Megaconstruct, Next Energy, Nova Power, Petrom, Premier Energy, Renovatio, Restart Energy, Tinmar, Wiee, Transenergo | V146: SC Premier Energy SRL | W146: iulie - septembrie 2020 anul gazier 2020 - 2021 | AB146: București | AD146: Conform Programului de Modernizare, Dezvoltare și Investiții pe anul 2020 - 2022 aprobat | AP146: PMDI 2020_1 (Anexa 3) | BF146: Afectat sau NU? | BG146: - | BH146: - | BI146: Afectat sau NU? | BJ146: - | BK146: - | BL146: Afectat sau NU? | BM146: - | BN146: -
A147: 132 | B147: - | C147: X | D147: SRM Clinceni - Eficientizarea sistemului de măsură prin completarea instalației tehnologice cu elemente/echipamente corespunzătoare | E147: 102044 | F147: Clinceni | G147: Ilfov | H147: 574454.519 | I147: 318647.86 | J147: 574454.519 | K147: 318647.86 | L147: - | M147: - | N147: SM0249D3 | O147: Clinceni Aeroport | P147: - | Q147: - | R147: - | S147: - | T147: SM-SD001 | U147: Cez Vânzare, E.On Energie, Electric Planners, Electrica Furnizare, Enel Energie, Energy Distribution, Engie, Met România, Aderro GP, Cis Gaz, Conef Gaz, Electric&Gas, Enel Muntenia, Gas Provider, Gaz Est, Megaconstruct, Next Energy, Nova Power, Petrom, Premier Energy, Renovatio, Restart Energy, Tinmar, Wiee, Transenergo | V147: SC Premier Energy SRL | W147: iulie - septembrie 2020 anul gazier 2020 - 2021 | AB147: București | AD147: Conform Programului de Modernizare, Dezvoltare și Investiții pe anul 2020 - 2022 aprobat | AP147: PMDI 2020_1 (Anexa 3) | BF147: Afectat sau NU? | BG147: - | BH147: - | BI147: Afectat sau NU? | BJ147: - | BK147: - | BL147: Afectat sau NU? | BM147: - | BN147: -
A148: 133 | B148: - | C148: X | D148: Înlocuit robinet R4 Inel București, zona Chiajna | E148: 179249 | F148: Chiajna | G148: Ilfov | H148: 576417.93 | I148: 328975.27 | J148: 577316.43 | K148: 323592.56 | L148: - | M148: - | N148: SM0170D0 | O148: SC Complex Carrefour Chiajna | P148: - | Q148: - | R148: - | S148: - | T148: SM-SD001 | U148: Cez Vânzare, E.on Energie, Electric Planners, Electrica Furnizare, Electrocentrale București, Enel Energie, Energy Distribution, Engie, Met România, Monsson, Premier Energy Trading, RWE, Aderro GP, Cis Gaz, Conef Gaz, Cyeb, Distrigaz Vest, Electric&Gas, Electrocentrale Constanța, Enel Muntenia, Gas Provider, Entrex, Euro Seven, Gaz Est, Hargaz, Megaconstruct, Next Energy, Nova Power, Oligopol, Petrom, Premier Energy, Renovatio, Restart Energy, Transenergo, Wiee, Romgaz, Tinmar, Veolia | V148: SC Distrigaz Sud Rețele | W148: mai - septembrie 2020 | AB148: București | AO148: Conform email de la Ion Istrate din 04.03.2020 | AP148: Forțe proprii | BF148: Afectat sau NU? | BG148: - | BH148: - | BI148: Afectat sau NU? | BJ148: - | BK148: - | BL148: Afectat sau NU? | BM148: - | BN148: -
A149: 134 | B149: - | C149: X | D149: Înlocuit robinet R4 Inel București, zona Chiajna | E149: 179249 | F149: Chiajna | G149: Ilfov | H149: 576729.73 | I149: 326488.7 | J149: 576726.58 | K149: 326494.16 | L149: - | M149: - | N149: SM0154D0 | O149: SC Linde gaz București | P149: - | Q149: - | R149: - | S149: - | T149: SM-SD001 | U149: Cez Vânzare, E.on Energie, Electric Planners, Electrica Furnizare, Electrocentrale București, Enel Energie, Energy Distribution, Engie, Met România, Monsson, Premier Energy Trading, RWE, Aderro GP, Cis Gaz, Conef Gaz, Cyeb, Distrigaz Vest, Electric&Gas, Electrocentrale Constanța, Enel Muntenia, Gas Provider, Entrex, Euro Seven, Gaz Est, Hargaz, Megaconstruct, Next Energy, Nova Power, Oligopol, Petrom, Premier Energy, Renovatio, Restart Energy, Transenergo, Wiee, Romgaz, Tinmar, Veolia | V149: SC Distrigaz Sud Rețele | W149: mai - septembrie 2020 | AB149: București | AO149: Conform email de la Ion Istrate din 04.03.2020 | AP149: Forțe proprii | BF149: Afectat sau NU? | BG149: - | BH149: - | BI149: Afectat sau NU? | BJ149: - | BK149: - | BL149: Afectat sau NU? | BM149: - | BN149: -
A150: 135 | B150: - | C150: X | D150: Lucrări mentenanță robinete și înlocuit flanță Electroizolantă racord 6" PM Fierbinți | E150: 68903 | F150: Dridu | G150: Ialomița | H150: 617333.46 | I150: 351097.3 | J150: 616539.22 | K150: 351926.88 | L150: - | M150: - | N150: - | O150: - | P150: - | Q150: - | R150: PM0030 | S150: Fierbinți | T150: PM-PP001 | U150: Amromco, Romgaz | V150: SNGN Romgaz SA, SC Amromco Energy SRL | W150: mai - septembrie 2020 | AB150: București | AP150: Forțe proprii | BF150: Afectat sau NU? | BG150: - | BH150: - | BI150: Afectat sau NU? | BJ150: - | BK150: - | BL150: Afectat sau NU? | BM150: - | BN150: -
A151: 136 | B151: - | C151: X | D151: Lucrări mentenanță robinete R39 Fir 20", zona Breaza | E151: 131103 | F151: Nistorești | G151: Prahova | H151: 551743.01 | I151: 412063.37 | J151: 554065.31 | K151: 408540.65 | L151: - | M151: - | N151: SM0087D0 | O151: SC Izvorul Rece Nistorești | P151: - | Q151: - | R151: - | S151: - | T151: SM-CF001 | U151: Engie | V151: SC Izvorul Rece PS SRL | W151: mai - septembrie 2020 | AB151: București | AP151: Forțe proprii | BF151: Afectat sau NU? | BG151: - | BH151: - | BI151: Afectat sau NU? | BJ151: - | BK151: - | BL151: Afectat sau NU? | BM151: - | BN151: -
A152: 137 | B152: - | C152: X | D152: Lucrări mentenanță robinete racord 6" SRM Posada | E152: 131336 | F152: Posada | G152: Prahova | H152: 544314.79 | I152: 424330.17 | J152: 548826.61 | K152: 419945.76 | L152: - | M152: - | N152: SM0081D0 | O152: Posada | P152: - | Q152: - | R152: - | S152: - | T152: SM-SD001 | U152: Cez Vânzare, E.on Energie, Electric Planners, Electrica Furnizare, Electrocentrale București, Enel Energie, Energy Distribution, Engie, Met România, Monsson, Premier Energy Trading, RWE, Aderro GP, Cis Gaz, Conef Gaz, Cyeb, Distrigaz Vest, Electric&Gas, Electrocentrale Constanța, Enel Muntenia, Gas Provider, Entrex, Euro Seven, Gaz Est, Hargaz, Megaconstruct, Next Energy, Nova Power, Oligopol, Petrom, Premier Energy, Renovatio, Restart Energy, Transenergo, Wiee, Romgaz, Tinmar, Veolia | V152: SC Distrigaz Sud Rețele | W152: mai - septembrie 2020 | AB152: București | AP152: Forțe proprii | BF152: Afectat sau NU? | BG152: - | BH152: - | BI152: Afectat sau NU? | BJ152: - | BK152: - | BL152: Afectat sau NU? | BM152: - | BN152: -
A153: 138 | B153: - | C153: X | D153: Lucrări mentenanță robinete contor US 28" Posada | E153: 131336 | F153: Posada | G153: Prahova | H153: 544314.79 | I153: 424330.17 | J153: 548826.61 | K153: 419945.76 | L153: - | M153: - | N153: SM0081D0 | O153: Posada | P153: - | Q153: - | R153: - | S153: - | T153: SM-SD001 | U153: Cez Vânzare, E.on Energie, Electric Planners, Electrica Furnizare, Electrocentrale București, Enel Energie, Energy Distribution, Engie, Met România, Monsson, Premier Energy Trading, RWE, Aderro GP, Cis Gaz, Conef Gaz, Cyeb, Distrigaz Vest, Electric&Gas, Electrocentrale Constanța, Enel Muntenia, Gas Provider, Entrex, Euro Seven, Gaz Est, Hargaz, Megaconstruct, Next Energy, Nova Power, Oligopol, Petrom, Premier Energy, Renovatio, Restart Energy, Transenergo, Wiee, Romgaz, Tinmar, Veolia | V153: SC Distrigaz Sud Rețele | W153: mai - septembrie 2020 anul gazier 2020 - 2021 | AB153: București | AD153: În faza de proiectare | AO153: Conform email de la Ion Istrate din 04.03.2020 | AP153: - | BF153: Afectat sau NU? | BG153: - | BH153: - | BI153: Afectat sau NU? | BJ153: - | BK153: - | BL153: Afectat sau NU? | BM153: - | BN153: -
A154: =A153+1 -> 139 | B154: - | C154: X | D154: Redimensionare racord SRM Ford Craiova | E154: 69900 | F154: Craiova | G154: Dolj | H154: 399121.4 | I154: 320728.24 | J154: 409613.93 | K154: 317372.3 | L154: - | M154: - | N154: SM0209D1 | O154: SC Ford Combinat | P154: - | Q154: - | R154: - | S154: - | T154: SM-CF001 | U154: Engie | V154: Ford România | W154: august - septembrie 2020 iulie - septembrie 2020 | AB154: Craiova | AD154: Conform Programului de Modernizare, Dezvoltare și Investiții pe anul 2020 - 2022 aprobat | AP154: PMDI 2020_2.1.B.5 | BF154: Afectat sau NU? | BG154: - | BH154: - | BI154: Afectat sau NU? | BJ154: - | BK154: - | BL154: Afectat sau NU? | BM154: - | BN154: -
A155: 140 | B155: - | C155: X | D155: Redimensionare racord SRM Ford Craiova | E155: 69900 | F155: Craiova | G155: Dolj | H155: 399121.4 | I155: 320728.24 | J155: 409613.93 | K155: 317372.3 | L155: - | M155: - | N155: SM0209D2 | O155: Ford Craiova Casnici | P155: - | Q155: - | R155: - | S155: - | T155: SM-SD001 | U155: Cez Vânzare, E.on Energie, Electric Planners, Electrica Furnizare, Electrocentrale București, Enel Energie, Energy Distribution, Engie, Met România, Monsson, Premier Energy Trading, RWE, Aderro GP, Cis Gaz, Conef Gaz, Cyeb, Distrigaz Vest, Electric&Gas, Electrocentrale Constanța, Enel Muntenia, Gas Provider, Entrex, Euro Seven, Gaz Est, Hargaz, Megaconstruct, Next Energy, Nova Power, Oligopol, Petrom, Premier Energy, Renovatio, Restart Energy, Transenergo, Wiee, Romgaz, Tinmar, Veolia | V155: Distrigaz Sud Rețele | W155: august - septembrie 2020 iulie - septembrie 2020 | AB155: Craiova | AD155: Conform Programului de Modernizare, Dezvoltare și Investiții pe anul 2020 - 2022 aprobat | AP155: PMDI 2020_2.1.B.5 | BF155: Afectat sau NU? | BG155: - | BH155: - | BI155: Afectat sau NU? | BJ155: - | BK155: - | BL155: Afectat sau NU? | BM155: - | BN155: -
A156: 141 | B156: - | C156: X | D156: Redimensionare racord SRM Ford Craiova | E156: 69900 | F156: Craiova | G156: Dolj | H156: 399121.4 | I156: 320728.24 | J156: 409613.93 | K156: 317372.3 | L156: - | M156: - | N156: SM0208D0 | O156: Craiova Sud | P156: - | Q156: - | R156: - | S156: - | T156: SM-SD001 | U156: Cez Vânzare, E.on Energie, Electric Planners, Electrica Furnizare, Electrocentrale București, Enel Energie, Energy Distribution, Engie, Met România, Monsson, Premier Energy Trading, RWE, Aderro GP, Cis Gaz, Conef Gaz, Cyeb, Distrigaz Vest, Electric&Gas, Electrocentrale Constanța, Enel Muntenia, Gas Provider, Entrex, Euro Seven, Gaz Est, Hargaz, Megaconstruct, Next Energy, Nova Power, Oligopol, Petrom, Premier Energy, Renovatio, Restart Energy, Transenergo, Wiee, Romgaz, Tinmar, Veolia | V156: Distrigaz Sud Rețele | W156: august - septembrie 2020 iulie - septembrie 2020 | AB156: Craiova | AD156: Conform Programului de Modernizare, Dezvoltare și Investiții pe anul 2020 - 2022 aprobat | AP156: PMDI 2020_2.1.B.5 | BF156: Afectat sau NU? | BG156: - | BH156: - | BI156: Afectat sau NU? | BJ156: - | BK156: - | BL156: Afectat sau NU? | BM156: - | BN156: -
A157: 142 | B157: - | C157: X | D157: Redimensionare racord SRM Ford Craiova | E157: 70110 | F157: Podari | G157: Dolj | H157: 399121.4 | I157: 320728.24 | J157: 409613.93 | K157: 317372.3 | L157: - | M157: - | N157: SM1053D0 | O157: Podari | P157: - | Q157: - | R157: - | S157: - | T157: SM-SD001 | U157: Cez Vânzare, E.on Energie, Electric Planners, Electrica Furnizare, Electrocentrale București, Enel Energie, Energy Distribution, Engie, Met România, Monsson, Premier Energy Trading, RWE, Aderro GP, Cis Gaz, Conef Gaz, Cyeb, Distrigaz Vest, Electric&Gas, Electrocentrale Constanța, Enel Muntenia, Gas Provider, Entrex, Euro Seven, Gaz Est, Hargaz, Megaconstruct, Next Energy, Nova Power, Oligopol, Petrom, Premier Energy, Renovatio, Restart Energy, Transenergo, Wiee, Romgaz, Tinmar, Veolia | V157: Distrigaz Sud Rețele | W157: august - septembrie 2020 iulie - septembrie 2020 | AB157: Craiova | AD157: Conform Programului de Modernizare, Dezvoltare și Investiții pe anul 2020 - 2022 aprobat | AP157: PMDI 2020_2.1.B.5 | BF157: Afectat sau NU? | BG157: - | BH157: - | BI157: Afectat sau NU? | BJ157: - | BK157: - | BL157: Afectat sau NU? | BM157: - | BN157: -
A158: 143 | B158: - | C158: X | D158: 20” Schitu Golești - Tigveni - refacere traversare râu Argeș, zona Valea Danului, et.I și et.II | E158: 13917 | F158: Albești | G158: Argeș | H158: 474126.09 | I158: 410441.12 | J158: 474126.09 | K158: 410441.12 | L158: - | M158: - | N158: SM1244D0 | O158: Albești de Argeș | P158: - | Q158: - | R158: - | S158: - | T158: SM-SD001 | U158: Cez Vânzare, E.on Energie, Electric Planners, Electrica Furnizare, Electrocentrale București, Enel Energie, Energy Distribution, Engie, Met România, Monsson, Premier Energy Trading, RWE, Aderro GP, Alpha Metal, Cis Gaz, Conef Gaz, Cyeb, Distrigaz Vest, Electric&Gas, Electrocentrale Constanța, Enel Muntenia, Gas Provider, Entrex, Euro Seven, Gaz Est, Hargaz, Megaconstruct, Next Energy, Nova Power, Oligopol, Petrom, Premier Energy, Renivatio, Restart Energy, Transenergo, Wiee, Romgaz, Tinmar, Veolia | V158: Distrigaz Sud Rețele | W158: octombrie - decembrie 2019 aprilie - iunie 2020 iulie - septembrie 2020 | X158: 2020-08-12 | Y158: 08:30:00 | Z158: 2020-08-13 | AA158: 20:00:00 | AB158: Craiova | AD158: Este necesară obţinerea unei autorizaţii noi de construire | AI158: 2020-08-03 | AJ158: 14:00:00 | AK158: 2020-08-03 | AL158: 13:48:00 | AP158: PMDI 2020_2.1.A.8 | BF158: Afectat sau NU? | BG158: - | BH158: - | BI158: Afectat sau NU? | BJ158: - | BK158: - | BL158: Afectat sau NU? | BM158: - | BN158: -
A159: 144 | B159: - | C159: X | D159: 20” Schitu Golești - Tigveni - refacere traversare râu Argeș, zona Valea Danului, et.I și et.II | E159: 19310 | F159: Blaju | G159: Argeș | H159: 468947.11 | I159: 406691.69 | J159: 468947.11 | K159: 406691.69 | L159: - | M159: - | N159: - | O159: - | P159: - | Q159: - | R159: PM0288 | S159: Ciofrângeni | T159: PM-PP001 | U159: Amromco | V159: Amromco | W159: octombrie - decembrie 2019 aprilie - iunie 2020 iulie - septembrie 2020 | X159: 2020-08-12 | Y159: 08:30:00 | Z159: 2020-08-13 | AA159: 20:00:00 | AB159: Craiova | AD159: Este necesară obţinerea unei autorizaţii noi de construire | AI159: 2020-08-03 | AJ159: 14:07:00 | AK159: 2020-08-03 | AL159: 13:53:00 | AP159: PMDI 2020_2.1.A.8 | BF159: Afectat sau NU? | BG159: - | BH159: - | BI159: Afectat sau NU? | BJ159: - | BK159: - | BL159: Afectat sau NU? | BM159: - | BN159: -
A160: 145 | B160: - | C160: X | D160: Reparație 6" racord alimentare ELSID Titu, zona SRM Elsid | E160: 66081 | F160: Titu | G160: Dâmbovița | H160: 540271.56 | I160: 360541.04 | J160: 540271.56 | K160: 360541.04 | L160: - | M160: - | N160: SM0147D0 | O160: SC Elsid Titu | P160: - | Q160: - | R160: - | S160: - | T160: SM-CF001 | U160: E.on Energie | V160: Elsid Titu | W160: aprilie - septembrie 2020 august - septembrie 2020 | AB160: București | AD160: Conform Programului de Reparații, Reabilitare și Asigurare a Serviciilor de Mentenanță SNT pentru anul 2020 aprobat | AP160: PRRASM 2020_I_A_1 (Anexa 1) | BF160: Afectat sau NU? | BG160: - | BH160: - | BI160: Afectat sau NU? | BJ160: - | BK160: - | BL160: Afectat sau NU? | BM160: - | BN160: -
A161: 146 | B161: - | C161: X | D161: Punere în siguranță a conductei 12" Vlădeni - Mănești, zona Vlădeni | E161: 67256 | F161: Vlădeni | G161: Dâmbovița | H161: 561830.12 | I161: 373144.01 | J161: 567501.55 | K161: 372878.02 | L161: - | M161: - | N161: SM0137D0 | O161: Vlădeni | P161: - | Q161: - | R161: - | S161: - | T161: SM-SD001 | U161: Engie, Electrica Furnizare, Premier Energy Trading, Premier Energy, Restart Energy, Wiee România, E.On Energie, Cez Vânzare, Enel Energie, Gaz Est, Met România, Nova Power, Euro Seven Industry, Oligopol, Energy Distribution, Electrocentrale Constanța, Hargaz, Conef Gaz, Megaconstruct, Distrigaz Vest, Electrocentrale București, Next Energy, Cis Gaz, Transenergo, Aderro, Tinmar, Enel Muntenia, RWE Supply, Romgaz, Cyeb, Entrex, Petrom, Electric&Gas, Energy Gas Provider, Renovatio, Monsson, Electric Planners, Alpha Metal, Veolia | V161: Distrigaz Sud Rețele | W161: aprilie - septembrie 2020 mai - septembrie 2020 anul gazier 2020 - 2021 | AB161: București | AD161: Conform Programului de Reparații, Reabilitare și Asigurare a Serviciilor de Mentenanță SNT pentru anul 2020 aprobat Întârzieri în achiziționarea robinetelor, anunțate de către executant. | AP161: PRRASM 2020_I_A_7 (Anexa 1) | BF161: Afectat sau NU? | BG161: - | BH161: - | BI161: Afectat sau NU? | BJ161: - | BK161: - | BL161: Afectat sau NU? | BM161: - | BN161: -
A162: 147 | B162: - | C162: X | D162: Punere în siguranță a conductei 12" Vlădeni - Mănești, zona Vlădeni | E162: 134194 | F162: Coada Izvorului | G162: Prahova | H162: 561830.12 | I162: 373144.01 | J162: 567501.55 | K162: 372878.02 | L162: - | M162: - | N162: SM0033D0 | O162: Coada Izvorului | P162: - | Q162: - | R162: - | S162: - | T162: SM-SD001 | U162: Engie, Electrica Furnizare, Premier Energy Trading, Premier Energy, Restart Energy, Wiee România, E.On Energie, Cez Vânzare, Enel Energie, Gaz Est, Met România, Nova Power, Euro Seven Industry, Oligopol, Energy Distribution, Electrocentrale Constanța, Hargaz, Conef Gaz, Megaconstruct, Distrigaz Vest, Electrocentrale București, Next Energy, Cis Gaz, Transenergo, Aderro, Tinmar, Enel Muntenia, RWE Supply, Romgaz, Cyeb, Entrex, Petrom, Electric&Gas, Energy Gas Provider, Renovatio, Monsson, Electric Planners, Alpha Metal, Veolia | V162: Distrigaz Sud Rețele | W162: aprilie - septembrie 2020 mai - septembrie 2020 anul gazier 2020 - 2021 | AB162: București | AD162: Conform Programului de Reparații, Reabilitare și Asigurare a Serviciilor de Mentenanță SNT pentru anul 2020 aprobat Întârzieri în achiziționarea robinetelor, anunțate de către executant. | AP162: PRRASM 2020_I_A_7 (Anexa 1) | BF162: Afectat sau NU? | BG162: - | BH162: - | BI162: Afectat sau NU? | BJ162: - | BK162: - | BL162: Afectat sau NU? | BM162: - | BN162: -
A163: 148 | B163: - | C163: X | D163: Punere în siguranță a conductei 12" Vlădeni - Mănești, zona Vlădeni | E163: 67256 | F163: Vlădeni | G163: Dâmbovița | H163: 561830.12 | I163: 373144.01 | J163: 567501.55 | K163: 372878.02 | L163: - | M163: - | N163: - | O163: - | P163: - | Q163: - | R163: PM0014 | S163: Vlădeni | T163: PM-PP001 | U163: Romgaz, Amromco | V163: Romgaz, Amromco | W163: aprilie - septembrie 2020 mai - septembrie 2020 anul gazier 2020 - 2021 | AB163: București | AD163: Conform Programului de Reparații, Reabilitare și Asigurare a Serviciilor de Mentenanță SNT pentru anul 2020 aprobat Întârzieri în achiziționarea robinetelor, anunțate de către executant. | AP163: PRRASM 2020_I_A_7 (Anexa 1) | BF163: Afectat sau NU? | BG163: - | BH163: - | BI163: Afectat sau NU? | BJ163: - | BK163: - | BL163: Afectat sau NU? | BM163: - | BN163: -
A164: 149 | B164: - | C164: X | D164: Punere în siguranță a conductei 6” racord alimentare SRM Măgureni, zona Măgureni | E164: 134050 | F164: Măgureni | G164: Prahova | H164: 554239.9 | I164: 400506.9 | J164: 561557.84 | K164: 386871.14 | L164: - | M164: - | N164: SM0506D0 | O164: Măgureni | P164: - | Q164: - | R164: - | S164: - | T164: SM-SD001 | U164: Enel Muntenia, Engie, Enel, MM Data | V164: MMDATA | W164: aprilie - septembrie 2020 iulie - septembrie 2020 | AB164: București | AD164: Conform Programului de Reparații, Reabilitare și Asigurare a Serviciilor de Mentenanță SNT pentru anul 2020 aprobat | AP164: PRRASM 2020_I_A_9 (Anexa 1) | BF164: Afectat sau NU? | BG164: - | BH164: - | BI164: Afectat sau NU? | BJ164: - | BK164: - | BL164: Afectat sau NU? | BM164: - | BN164: -
A165: 150 | B165: - | C165: X | D165: Modernizare alimentare cu gaze naturale a municipiului Ploiești | E165: 130892 | F165: Strejnic | G165: Prahova | H165: 582017.66 | I165: 384857.52 | J165: 580681.36 | K165: 385825.57 | L165: - | M165: - | N165: SM0124D0 | O165: Strejnic | P165: - | Q165: - | R165: - | S165: - | T165: SM-SD001 | U165: Cez Vânzare, E.on Energie, Electric Planners, Electrica Furnizare, Electrocentrale București, Enel Energie, Energy Distribution, Engie, Met România, Monsson, Premier Energy Trading, RWE, Aderro GP, Cis Gaz, Conef Gaz, Cyeb, Distrigaz Vest, Electric&Gas, Electrocentrale Constanța, Enel Muntenia, Gas Provider, Entrex, Euro Seven, Gaz Est, Hargaz, Megaconstruct, Next Energy, Nova Power, Oligopol | V165: Distrigaz Sud Rețele | W165: aprilie - septembrie 2020 anul gazier 2021 - 2022 | AB165: București | AD165: Reziliere contract cu constructorul. Fază de proiect tehnic a lucrărilor rămase de executat. | AO165: Conform email de la Sorin Deac din 19.03.2020 | AP165: PMDI 2019_B_2.1.A.3 | BF165: Afectat sau NU? | BG165: - | BH165: - | BI165: Afectat sau NU? | BJ165: - | BK165: - | BL165: Afectat sau NU? | BM165: - | BN165: -
A166: 151 | B166: - | C166: X | D166: Modernizare alimentare cu gaze naturale a municipiului Ploiești | E166: 130534 | F166: Ploiești | G166: Prahova | H166: 582017.66 | I166: 384857.52 | J166: 580681.36 | K166: 385825.57 | L166: - | M166: - | N166: SM0130D1 | O166: SC VEGA Ploiești | P166: - | Q166: - | R166: - | S166: - | T166: SM-CF001 | U166: Petrom | V166: Rompetrol Vega Ploiești | W166: aprilie - septembrie 2020 anul gazier 2021 - 2022 | AB166: București | AD166: Reziliere contract cu constructorul. Fază de proiect tehnic a lucrărilor rămase de executat. | AO166: Conform email de la Sorin Deac din 19.03.2020 | AP166: PMDI 2019_B_2.1.A.3 | BF166: Afectat sau NU? | BG166: - | BH166: - | BI166: Afectat sau NU? | BJ166: - | BK166: - | BL166: Afectat sau NU? | BM166: - | BN166: -
A167: 152 | B167: - | C167: X | D167: Modernizare alimentare cu gaze naturale a municipiului Ploiești | E167: 130534 | F167: Ploiești | G167: Prahova | H167: 582017.66 | I167: 384857.52 | J167: 580681.36 | K167: 385825.57 | L167: - | M167: - | N167: SM0130D0 | O167: Ploiești Nord Colonie | P167: - | Q167: - | R167: - | S167: - | T167: SM-SD001 | U167: Cez Vânzare, E.on Energie, Electric Planners, Electrica Furnizare, Electrocentrale București, Enel Energie, Energy Distribution, Engie, Met România, Monsson, Premier Energy Trading, RWE, Aderro GP, Cis Gaz, Conef Gaz, Cyeb, Distrigaz Vest, Electric&Gas, Electrocentrale Constanța, Enel Muntenia, Gas Provider, Entrex, Euro Seven, Gaz Est, Hargaz, Megaconstruct, Next Energy, Nova Power, Oligopol | V167: Distrigaz Sud Rețele | W167: aprilie - septembrie 2020 anul gazier 2021 - 2022 | AB167: București | AD167: Reziliere contract cu constructorul. Fază de proiect tehnic a lucrărilor rămase de executat. | AO167: Conform email de la Sorin Deac din 19.03.2020 | AP167: PMDI 2019_B_2.1.A.3 | BF167: Afectat sau NU? | BG167: - | BH167: - | BI167: Afectat sau NU? | BJ167: - | BK167: - | BL167: Afectat sau NU? | BM167: - | BN167: -
A168: 153 | B168: - | C168: X | D168: Modernizare alimentare cu gaze naturale a municipiului Ploiești | E168: 132075 | F168: Stoenești | G168: Prahova | H168: 582017.66 | I168: 384857.52 | J168: 580681.36 | K168: 385825.57 | L168: - | M168: - | N168: SM0121D0 | O168: Stoienești | P168: - | Q168: - | R168: - | S168: - | T168: SM-SD001 | U168: Cez Vânzare, E.on Energie, Electric Planners, Electrica Furnizare, Electrocentrale București, Enel Energie, Energy Distribution, Engie, Met România, Monsson, Premier Energy Trading, RWE, Aderro GP, Cis Gaz, Conef Gaz, Cyeb, Distrigaz Vest, Electric&Gas, Electrocentrale Constanța, Enel Muntenia, Gas Provider, Entrex, Euro Seven, Gaz Est, Hargaz, Megaconstruct, Next Energy, Nova Power, Oligopol | V168: Distrigaz Sud Rețele | W168: aprilie - septembrie 2020 anul gazier 2021 - 2022 | AB168: București | AD168: Reziliere contract cu constructorul. Fază de proiect tehnic a lucrărilor rămase de executat. | AO168: Conform email de la Sorin Deac din 19.03.2020 | AP168: PMDI 2019_B_2.1.A.3 | BF168: Afectat sau NU? | BG168: - | BH168: - | BI168: Afectat sau NU? | BJ168: - | BK168: - | BL168: Afectat sau NU? | BM168: - | BN168: -
A169: 154 | B169: - | C169: X | D169: Modernizare alimentare cu gaze naturale a municipiului Ploiești | E169: 132075 | F169: Aricești Rahtivani | G169: Prahova | H169: 582017.66 | I169: 384857.52 | J169: 580681.36 | K169: 385825.57 | L169: - | M169: - | N169: SM0120D0 | O169: Aricești | P169: - | Q169: - | R169: - | S169: - | T169: SM-SD001 | U169: AIK Energy, Engie, Electrica Furnizare, Premier Energy Trading, Premier Energy, Restart Energy, Wiee România, E.On Energie, Cez Vânzare, Enel Energie, Gaz Est, Met România, Nova Power, Euro Seven Industry, Oligopol, Energy Distribution, Electrocentrale Constanța, Hargaz, Conef Gaz, Megaconstruct, Distrigaz Vest, Electrocentrale București, Next Energy, Cis Gaz, Transenergo, Aderro, Tinmar, Enel Muntenia, Gas&Power, RWE Supply, Romgaz, Cyeb, Entrex, Petrom, Electric&Gas, Energy Gas Provider, Renovatio, Monsson, Electric Planners, Alpha Metal, Veolia, Crest Energy, Termo Calor | V169: Distrigaz Sud Rețele | W169: aprilie - septembrie 2020 20 martie - septembrie | X169: 2020-05-12 | Y169: 09:00:00 | Z169: 2020-05-12 | AA169: 13:00:00 | AB169: București | AC169: Efectuată | AD169: Finalizarea lucrărilor de modernizare la conducta de racord SRM Aricești | AE169: 2020-05-12 | AF169: 09:00:00 | AG169: 2020-05-12 | AH169: 12:50:00 | AI169: 2020-05-04 | AJ169: 19:43:00 | AK169: 2020-04-30 | AL169: 16:01:00 | AM169: 1873/08.05.2020 | AN169: DA | AP169: Sucursala A_20 | BF169: 6 | BG169: 1 | BH169: 1 | BI169: 5 | BJ169: 43 | BK169: 43 | BL169: -0.1666666667 | BM169: 44 | BN169: 44
A170: 155 | B170: - | C170: X | D170: Modernizare alimentare cu gaze naturale a municipiului Ploiești | E170: 130534 | F170: Ploiești | G170: Prahova | H170: 582017.66 | I170: 384857.52 | J170: 580681.36 | K170: 385825.57 | L170: - | M170: - | N170: SM0122D0 | O170: Crângul lui Bot | P170: - | Q170: - | R170: - | S170: - | T170: SM-SD001 | U170: Cez Vânzare, E.on Energie, Electric Planners, Electrica Furnizare, Electrocentrale București, Enel Energie, Energy Distribution, Engie, Met România, Monsson, Premier Energy Trading, RWE, Aderro GP, Cis Gaz, Conef Gaz, Cyeb, Distrigaz Vest, Electric&Gas, Electrocentrale Constanța, Enel Muntenia, Gas Provider, Entrex, Euro Seven, Gaz Est, Hargaz, Megaconstruct, Next Energy, Nova Power, Oligopol | V170: Distrigaz Sud Rețele | W170: aprilie - septembrie 2020 anul gazier 2021 - 2022 | AB170: București | AD170: Reziliere contract cu constructorul. Fază de proiect tehnic a lucrărilor rămase de executat. | AO170: Conform email de la Sorin Deac din 19.03.2020 | AP170: PMDI 2019_B_2.1.A.3 | BF170: Afectat sau NU? | BG170: - | BH170: - | BI170: Afectat sau NU? | BJ170: - | BK170: - | BL170: Afectat sau NU? | BM170: - | BN170: -
A171: 156 | B171: - | C171: X | D171: Subtraversare râu Dâmbovița cu conducta Inel București, zona Bălăceanca | E171: 101742 | F171: Cernica | G171: Ilfov | H171: 589779.55 | I171: 323979.3 | J171: 600995.25 | K171: 320576.43 | L171: - | M171: - | N171: SM1133D0 | O171: Cernica II (Bălăceanca) | P171: - | Q171: - | R171: - | S171: - | T171: SM-SD001 | U171: Cez Vânzare, E.On Energie, Electric Planners, Electrica Furnizare, Enel Energie, Energy Distribution, Engie, Met România, Aderro GP, Cis Gaz, Conef Gaz, Electric&Gas, Enel Muntenia, Gas Provider, Gaz Est, Megaconstruct, Next Energy, Nova Power, Petrom, Premier Energy, Renovatio, Restart Energy, Tinmar, Wiee, Transenergo | V171: Premier Energy | W171: aprilie - septembrie 2020 aprilie - iunie 2020 anul gazier 2020 - 2021 | AB171: București | AD171: Aprovizionarea cu materiale specifice punerii în siguranță a conductei a avut întârzieri | AO171: Conform email de la Liliana Moise din 11.06.2020 | AP171: PMDI 2020_2.1.B.13 | BF171: Afectat sau NU? | BG171: - | BH171: - | BI171: Afectat sau NU? | BJ171: - | BK171: - | BL171: Afectat sau NU? | BM171: - | BN171: -
A172: 157 | B172: - | C172: X | D172: Relocare instalație mecanică veche de la Aricești II la Stăncești | E172: 130892 | F172: Ploiești | G172: Prahova | H172: 571593.42 | I172: 373696.77 | J172: 571593.42 | K172: 373696.77 | L172: - | M172: - | N172: SM0140D0 | O172: Stâncești | P172: - | Q172: - | R172: - | S172: - | T172: SM-SD001 | U172: Cez Vânzare, E.on Energie, Electric Planners, Electrica Furnizare, Electrocentrale București, Enel Energie, Energy Distribution, Engie, Met România, Monsson, Premier Energy Trading, RWE, Aderro GP, Cis Gaz, Conef Gaz, Cyeb, Distrigaz Vest, Electric&Gas, Electrocentrale Constanța, Enel Muntenia, Gas Provider, Entrex, Euro Seven, Gaz Est, Hargaz, Megaconstruct, Next Energy, Nova Power, Oligopol | V172: Distrigaz Sud Rețele | W172: aprilie - septembrie 2020 | AB172: București | AP172: Forțe proprii | BF172: Afectat sau NU? | BG172: - | BH172: - | BI172: Afectat sau NU? | BJ172: - | BK172: - | BL172: Afectat sau NU? | BM172: - | BN172: -
A173: 158 | B173: - | C173: X | D173: Montare/înlocuire îmbinare electroizolantă pe conducta de racord SRM Videle | E173: 151905 | F173: Videle | G173: Teleorman | H173: 543744.14 | I173: 321212.96 | J173: 543274.57 | K173: 310044.62 | L173: - | M173: - | N173: SM1111D0 | O173: Videle | P173: - | Q173: - | R173: - | S173: - | T173: SM-SD001 | U173: Cez Vânzare, E.On Energie, Electric Planners, Electrica Furnizare, Enel Energie, Energy Distribution, Engie, Met România, Aderro GP, Cis Gaz, Conef Gaz, Electric&Gas, Enel Muntenia, Gas Provider, Gaz Est, Megaconstruct, Next Energy, Nova Power, Petrom, Premier Energy, Renovatio, Restart Energy, Tinmar, Wiee, Transenergo | V173: Premier Energy | W173: aprilie - septembrie 2020 | AB173: București | AP173: Forțe proprii | BF173: Afectat sau NU? | BG173: - | BH173: - | BI173: Afectat sau NU? | BJ173: - | BK173: - | BL173: Afectat sau NU? | BM173: - | BN173: -
A174: 159 | B174: - | C174: X | D174: Montare/înlocuire îmbinare electroizolantă pe conducta de racord SRM Videle | E174: 104225 | F174: Mârșa | G174: Giurgiu | H174: 543744.14 | I174: 321212.96 | J174: 543274.57 | K174: 310044.62 | L174: - | M174: - | N174: SM1165D0 | O174: Depozit 160 Videle | P174: - | Q174: - | R174: - | S174: - | T174: SM-SD001 | U174: Cez Vânzare, E.On Energie, Electric&Gas, Enel, Petrom, Restart Energy | V174: Petrom | W174: aprilie - septembrie 2020 | AB174: București | AP174: Forțe proprii | BF174: Afectat sau NU? | BG174: - | BH174: - | BI174: Afectat sau NU? | BJ174: - | BK174: - | BL174: Afectat sau NU? | BM174: - | BN174: -
A175: 160 | B175: - | C175: X | D175: Lucrări de mentenanță în SRM Valea Călugărească | E175: 135949 | F175: Valea Călugărească | G175: Prahova | H175: 591733.46 | I175: 384306.79 | J175: 591733.46 | K175: 384306.79 | L175: - | M175: - | N175: SM0136D1 | O175: Valea Călugărească | P175: - | Q175: - | R175: - | S175: - | T175: SM-SD001 | U175: Cez Vânzare, E.on Energie, Electric Planners, Electrica Furnizare, Electrocentrale București, Enel Energie, Energy Distribution, Engie, Met România, Monsson, Premier Energy Trading, RWE, Aderro GP, Cis Gaz, Conef Gaz, Cyeb, Distrigaz Vest, Electric&Gas, Electrocentrale Constanța, Enel Muntenia, Gas Provider, Entrex, Euro Seven, Gaz Est, Hargaz, Megaconstruct, Next Energy, Nova Power, Oligopol | V175: Distrigaz Sud Rețele | W175: aprilie - septembrie 2020 | AB175: București | AP175: Forțe proprii | BF175: Afectat sau NU? | BG175: - | BH175: - | BI175: Afectat sau NU? | BJ175: - | BK175: - | BL175: Afectat sau NU? | BM175: - | BN175: -
A176: 161 | B176: - | C176: X | D176: Lucrări de mentenanță în SRM Valea Călugărească | E176: 135949 | F176: Valea Călugărească | G176: Prahova | H176: 591733.46 | I176: 384306.79 | J176: 591733.46 | K176: 384306.79 | L176: - | M176: - | N176: SM1112D0 | O176: Urlați | P176: - | Q176: - | R176: - | S176: - | T176: SM-SD001 | U176: Cez Vânzare, E.on Energie, Electric Planners, Electrica Furnizare, Electrocentrale București, Enel Energie, Energy Distribution, Engie, Met România, Monsson, Premier Energy Trading, RWE, Aderro GP, Cis Gaz, Conef Gaz, Cyeb, Distrigaz Vest, Electric&Gas, Electrocentrale Constanța, Enel Muntenia, Gas Provider, Entrex, Euro Seven, Gaz Est, Hargaz, Megaconstruct, Next Energy, Nova Power, Oligopol | V176: Distrigaz Sud Rețele | W176: aprilie - septembrie 2020 | AB176: București | AP176: Forțe proprii | BF176: Afectat sau NU? | BG176: - | BH176: - | BI176: Afectat sau NU? | BJ176: - | BK176: - | BL176: Afectat sau NU? | BM176: - | BN176: =IF(C176="X",IF(AN176="DA",LEN(TRIM(V176))-LEN(SUBSTITUTE(V176,CHAR(44),""))+1+LEN(TRIM(U176))-LEN(SUBSTITUTE(U176,CHAR(44),""))+1,"-"),"") -> -
A177: 162 | B177: X | C177: - | D177: Demontare instalație de odorizare prin evaporare SRM Ghiroda | E177: 155289 | F177: Ghiroda | G177: Timiș | H177: 213312 | I177: 480707 | J177: 213312 | K177: 480707 | L177: - | M177: - | N177: SM0344D0 | O177: Ghiroda | P177: - | Q177: - | R177: - | S177: - | T177: SM-SD001 | U177: Engie, Electrica Furnizare, Premier Energy Trading, Premier Energy, Restart Energy, Wiee, E.on Energie, E.On Gaz Furnizare, Cez Vânzare, Enel Energie, Gas&Power, Gaz Est, Met România, Nova Power, Energy Distribution, CPL Concordia, Hargaz, Prisma Serv, Conef Gaz, Distrigaz Vest, Next Energy, Cis Gaz, Aderro GP, Tinmar, Enel Muntenia, RWE, Cyeb, Entrex, Petrom, Electric&Gas, Pado Group, Design Proiect, Gazmir, SST Grup, Tetarom, Gas Provider, Renovatio, Electric Planners, Monsson, Mihoc Oil | V177: Delgaz Grid | W177: - | X177: 2019-10-01 | Y177: 10:10:00 | Z177: 2019-10-01 | AA177: 14:00:00 | AB177: Arad | AC177: Efectuată | AD177: - | AE177: 2019-10-01 | AF177: 10:10:00 | AG177: 2019-10-01 | AH177: 11:00:00 | AI177: 2019-10-01 | AJ177: 10:39:00 | AK177: 2019-10-01 | AL177: 10:25:00 | AM177: 10041/30.09.2019 | AN177: DA | AP177: - | AR177: 0.2500000001 | AS177: 1 | AT177: 1 | AU177: 0.4833333333 | AV177: 40 | AW177: 40 | AX177: 0.8333333334 | AY177: 0 | AZ177: 0
A178: 163 | B178: X | C178: - | D178: Remediere defect pe conducta 20” Ișalnița - PM402 | E178: 72418 | F178: Ghercești | G178: Dolj | H178: 404868.97 | I178: 317927.2 | J178: 404868.97 | K178: 317927.2 | L178: - | M178: - | N178: - | O178: - | P178: PM0275 | Q178: Stația Centrală Ghercești Extracție | R178: - | S178: - | T178: VPM01 | U178: E.On Energie, E.On Furnizare, Cez Vânzare, Nova Power, Met România, Romgaz, Engie, Alpha Metal, Hargaz, Petrom, Wirom Gas | V178: Romgaz Depogaz Ploiești | W178: - | X178: 2019-10-09 | Y178: 08:47:00 | Z178: 2019-10-09 | AA178: 20:00:00 | AB178: Craiova | AC178: Efectuată | AD178: - | AE178: 2019-10-09 | AF178: 08:47:00 | AG178: 2019-10-09 | AH178: 14:50:00 | AI178: 2019-10-09 | AJ178: 09:25:00 | AK178: 2019-10-09 | AL178: 09:12:00 | AM178: 2355/09.10.2019 | AN178: DA | AP178: - | AR178: 0.4166666666 | AS178: 1 | AT178: 1 | AU178: 0.6333333333 | AV178: 11 | AW178: 11 | AX178: 6.05 | AY178: 0 | AZ178: 0
A179: 164 | B179: X | C179: - | D179: Înlocuire robinet R10 pană defect în SRM Orțișoara | E179: 158029 | F179: Orțișoara | G179: Timiș | H179: 106237 | I179: 502974 | J179: 106237 | K179: 502974 | L179: - | M179: - | N179: SM0116D0 | O179: Orțișoara | P179: - | Q179: - | R179: - | S179: - | T179: SM-SD001 | U179: Nova Power, Cez Vânzare, Distrigaz Vest, Engie, E.on Energie, E.On Furnizare, Electric&Gas, Energy Distribution, Enel Energie, Enel Muntenia, Premier Energy Trading, Premier Energy, Gaz Est, Gaz Vest, Met România, Petrom, Gas Provider, Renovatio, Restart Energy, Tinmar | V179: Gaz Vest | W179: - | X179: 2019-10-22 | Y179: 10:00:00 | Z179: 2019-10-22 | AA179: 11:30:00 | AB179: Arad | AC179: Efectuată | AD179: - | AE179: 2019-10-22 | AF179: 10:00:00 | AG179: 2019-10-22 | AH179: 10:30:00 | AI179: 2019-10-22 | AJ179: 10:26:00 | AK179: 2019-10-22 | AL179: 10:16:00 | AM179: 10769/17.10.2019 | AN179: DA | AP179: - | AR179: 0.2666666667 | AS179: 1 | AT179: 1 | AU179: 0.4333333333 | AV179: 20 | AW179: 20 | AX179: 0.5000000001 | AY179: 0 | AZ179: 0
A180: 165 | B180: X | C180: - | D180: Remediere defect pe conducta magistrala 20” Sărmășel - Ceanu Mare | E180: 56853 | F180: Ceanu Mare | G180: Cluj | H180: 422564.66 | I180: 573752.26 | J180: 422564.66 | K180: 573752.26 | L180: - | M180: - | N180: SM0631D0 | O180: Ceanu Mare - Cătun | P180: - | Q180: - | R180: - | S180: - | T180: SM-SD001 | U180: Engie, Electrica Furnizare, Premier Energy Trading, Premier Energy, Restart Energy, Wiee, E.on Energie, E.On Gaz Furnizare, Petrom, Cez Vânzare, Enel Energie, Gas&Power, Gaz Est, Met România, Nova Power, Energy Distribution, CPL Concordia, Hargaz, Prisma Serv, Conef Gaz, Distrigaz Vest, Next Energy, Cis Gaz, Aderro GP, Tinmar, Enel Muntenia, RWE, Cyeb, Entrex, Electric&Gas, Pado Group, Design Proiect, Gazmir, SST Grup, Tetarom, Gas Provider, Renovatio, Electric Planners, Monsson, Gaz Vest, Mihoc Oil | V180: Delgaz Grid | W180: - | X180: 2019-10-24 | Y180: 08:00:00 | Z180: 2019-10-24 | AA180: 17:00:00 | AB180: Cluj | AC180: Efectuată | AD180: - | AE180: 2019-10-24 | AF180: 08:00:00 | AG180: 2019-10-24 | AH180: 16:43:00 | AI180: 2019-10-24 | AJ180: 08:29:00 | AK180: 2019-10-24 | AL180: 08:02:00 | AM180: 11334/23.10.2019 | AN180: DA | AP180: - | AR180: 0.03333333327 | AS180: 1 | AT180: 1 | AU180: 0.4833333333 | AV180: 41 | AW180: 41 | AX180: 8.716666667 | AY180: 0 | AZ180: 0
A181: 166 | B181: X | C181: - | D181: Remediere defect pe conducta magistrala 20” Sărmășel - Ceanu Mare | E181: 56933 | F181: Iacobeni | G181: Cluj | H181: 496796.78 | I181: 576407.13 | J181: 496796.78 | K181: 576407.13 | L181: - | M181: - | N181: SM0634D0 | O181: Iacobeni | P181: - | Q181: - | R181: - | S181: - | T181: SM-SD001 | U181: Engie, Electrica Furnizare, Premier Energy Trading, Premier Energy, Restart Energy, Wiee, E.on Energie, E.On Gaz Furnizare, Petrom, Cez Vânzare, Enel Energie, Gas&Power, Gaz Est, Met România, Nova Power, Energy Distribution, CPL Concordia, Hargaz, Prisma Serv, Conef Gaz, Distrigaz Vest, Next Energy, Cis Gaz, Aderro GP, Tinmar, Enel Muntenia, RWE, Cyeb, Entrex, Electric&Gas, Pado Group, Design Proiect, Gazmir, SST Grup, Tetarom, Gas Provider, Renovatio, Electric Planners, Monsson, Gaz Vest, Mihoc Oil | V181: Delgaz Grid | W181: - | X181: 2019-10-24 | Y181: 08:10:00 | Z181: 2019-10-24 | AA181: 17:00:00 | AB181: Cluj | AC181: Efectuată | AD181: - | AE181: 2019-10-24 | AF181: 08:10:00 | AG181: 2019-10-24 | AH181: 16:55:00 | AI181: 2019-10-24 | AJ181: 08:39:00 | AK181: 2019-10-24 | AL181: 08:23:00 | AM181: 11334/23.10.2019 | AN181: DA | AP181: - | AR181: 0.2166666667 | AS181: 1 | AT181: 1 | AU181: 0.4833333333 | AV181: 41 | AW181: 41 | AX181: 8.75 | AY181: 0 | AZ181: 0
A182: 167 | B182: X | C182: - | D182: Remediere defect pe conducta magistrala 20” Sărmășel - Ceanu Mare | E182: 56933 | F182: Iacobeni | G182: Cluj | H182: 423542.38 | I182: 575969.28 | J182: 423542.38 | K182: 575969.28 | L182: - | M182: - | N182: SM0633D0 | O182: Iacobeni Moara | P182: - | Q182: - | R182: - | S182: - | T182: SM-SD001 | U182: Engie, Electrica Furnizare, Premier Energy Trading, Premier Energy, Restart Energy, Wiee, E.on Energie, E.On Gaz Furnizare, Petrom, Cez Vânzare, Enel Energie, Gas&Power, Gaz Est, Met România, Nova Power, Energy Distribution, CPL Concordia, Hargaz, Prisma Serv, Conef Gaz, Distrigaz Vest, Next Energy, Cis Gaz, Aderro GP, Tinmar, Enel Muntenia, RWE, Cyeb, Entrex, Electric&Gas, Pado Group, Design Proiect, Gazmir, SST Grup, Tetarom, Gas Provider, Renovatio, Electric Planners, Monsson, Gaz Vest, Mihoc Oil | V182: Delgaz Grid | W182: - | X182: 2019-10-24 | Y182: 08:10:00 | Z182: 2019-10-24 | AA182: 17:00:00 | AB182: Cluj | AC182: Efectuată | AD182: - | AE182: 2019-10-24 | AF182: 08:10:00 | AG182: 2019-10-24 | AH182: 16:50:00 | AI182: 2019-10-24 | AJ182: 08:44:00 | AK182: 2019-10-24 | AL182: 08:25:00 | AM182: 11334/23.10.2019 | AN182: DA | AP182: - | AR182: 0.2499999999 | AS182: 1 | AT182: 1 | AU182: 0.5666666666 | AV182: 41 | AW182: 41 | AX182: 8.666666667 | AY182: 0 | AZ182: 0
A183: 168 | B183: X | C183: - | D183: Remediere defect pe conducta magistrala 20” Sărmășel - Ceanu Mare | E183: 57822 | F183: Soporu de Câmpie | G183: Cluj | H183: 424723.37 | I183: 577407.955 | J183: 424723.37 | K183: 577407.955 | L183: - | M183: - | N183: SM0635D0 | O183: Sopor | P183: - | Q183: - | R183: - | S183: - | T183: SM-SD001 | U183: Engie, Electrica Furnizare, Premier Energy Trading, Premier Energy, Restart Energy, Wiee, E.on Energie, E.On Gaz Furnizare, Petrom, Cez Vânzare, Enel Energie, Gas&Power, Gaz Est, Met România, Nova Power, Energy Distribution, CPL Concordia, Hargaz, Prisma Serv, Conef Gaz, Distrigaz Vest, Next Energy, Cis Gaz, Aderro GP, Tinmar, Enel Muntenia, RWE, Cyeb, Entrex, Electric&Gas, Pado Group, Design Proiect, Gazmir, SST Grup, Tetarom, Gas Provider, Renovatio, Electric Planners, Monsson, Gaz Vest, Mihoc Oil | V183: Delgaz Grid | W183: - | X183: 2019-10-24 | Y183: 08:15:00 | Z183: 2019-10-24 | AA183: 17:00:00 | AB183: Cluj | AC183: Efectuată | AD183: - | AE183: 2019-10-24 | AF183: 08:15:00 | AG183: 2019-10-24 | AH183: 17:00:00 | AI183: 2019-10-24 | AJ183: 08:47:00 | AK183: 2019-10-24 | AL183: 08:27:00 | AM183: 11334/23.10.2019 | AN183: DA | AP183: - | AR183: 0.2 | AS183: 1 | AT183: 1 | AU183: 0.5333333333 | AV183: 41 | AW183: 41 | AX183: 8.75 | AY183: 0 | AZ183: 0
A184: 169 | B184: X | C184: - | D184: Înlocuire robinet R9 de pe interconectarea conductei 6” racord SRM Orlat cu conducta 16” Vinț - Sibiu | E184: 145211 | F184: Orlat | G184: Sibiu | H184: 419808.83 | I184: 473980.92 | J184: 419808.83 | K184: 473980.92 | L184: - | M184: - | N184: SM0889D0 | O184: Orlat | P184: - | Q184: - | R184: - | S184: - | T184: SM-SD001 | U184: Engie, Electrica Furnizare, Premier Energy Trading, Premier Energy, Restart Energy, Wiee, E.on Energie, E.On Gaz Furnizare, Petrom, Cez Vânzare, Enel Energie, Gas&Power, Gaz Est, Met România, Nova Power, Energy Distribution, CPL Concordia, Hargaz, Prisma Serv, Conef Gaz, Distrigaz Vest, Next Energy, Cis Gaz, Aderro GP, Tinmar, Enel Muntenia, RWE, Cyeb, Entrex, Electric&Gas, Pado Group, Design Proiect, Gazmir, SST Grup, Tetarom, Gas Provider, Renovatio, Electric Planners, Monsson, Gaz Vest, Mihoc Oil | V184: Delgaz Grid | W184: - | X184: 2019-10-31 | Y184: 08:13:00 | Z184: 2019-10-31 | AA184: 16:00:00 | AB184: Mediaș | AC184: Efectuată | AD184: - | AE184: 2019-10-31 | AF184: 08:13:00 | AG184: 2019-10-31 | AH184: 16:00:00 | AI184: 2019-10-31 | AJ184: 09:03:00 | AK184: 2019-10-31 | AL184: 08:23:00 | AM184: 8324/30.10.20019 | AN184: DA | AP184: - | AR184: 0.1666666667 | AS184: 1 | AT184: 1 | AU184: 0.8333333333 | AV184: 41 | AW184: 41 | AX184: 7.783333333 | AY184: 0 | AZ184: 0
A185: 170 | B185: X | C185: - | D185: Deviere și protejare conductă de transport gaze 4” Racord SRM Tămășeu | E185: 27490 | F185: Tămășeu | G185: Bihor | H185: 266439.79 | I185: 640357.18 | J185: 266439.79 | K185: 640357.18 | L185: - | M185: - | N185: SM1100D0 | O185: Tămășeu | P185: - | Q185: - | R185: - | S185: - | T185: SM-SD001 | U185: Nova Power, Cez Vânzare, Distrigaz Vest, Engie, E.on Energie, Electric&Gas, Energy Distribution, Enel Energie, Enel Muntenia, Premier Energy Trading, Premier Energy, Gaz Est, Gaz Vest, Met România, Petrom, Gas Provider, Renovatio, Restart Energy, Tinmar, Electrica Furnizare | V185: Gaz Vest | W185: - | X185: 2019-11-06 | Y185: 08:10:00 | Z185: 2019-11-06 | AA185: 17:00:00 | AB185: Cluj | AC185: Efectuată | AD185: - | AE185: 2019-11-06 | AF185: 08:10:00 | AG185: 2019-11-06 | AH185: 16:55:00 | AI185: 2019-11-06 | AJ185: 08:48:00 | AK185: 2019-11-06 | AL185: 08:12:00 | AM185: 11842/04.11.2019 | AN185: DA | AP185: - | AR185: 0.03333333327 | AS185: 1 | AT185: 1 | AU185: 0.6333333333 | AV185: 20 | AW185: 20 | AX185: 8.75 | AY185: 0 | AZ185: 0
A186: 171 | B186: X | C186: - | D186: Înlocuire conductă de gaze naturale 3" Racord SRM Săcălășeni | E186: 108801 | F186: Săcălășeni | G186: Maramureș | H186: 391083.006 | I186: 678964.409 | J186: 391083.006 | K186: 678964.409 | L186: - | M186: - | N186: SM0559D0 | O186: Săcălășeni | P186: - | Q186: - | R186: - | S186: - | T186: SM-SD001 | U186: Engie, Electrica Furnizare, Premier Energy Trading, Premier Energy, Restart Energy, Wiee, E.on Energie, E.On Gaz Furnizare, Petrom, Cez Vânzare, Enel Energie, Gas&Power, Gaz Est, Met România, Nova Power, Energy Distribution, CPL Concordia, Hargaz, Prisma Serv, Conef Gaz, Distrigaz Vest, Next Energy, Cis Gaz, Aderro GP, Tinmar, Enel Muntenia, RWE, Cyeb, Entrex, Electric&Gas, Pado Group, Design Proiect, Gazmir, SST Grup, Tetarom, Gas Provider, Renovatio, Electric Planners, Monsson, Gaz Vest, Mihoc Oil | V186: Delgaz Grid | W186: - | X186: 2019-11-07 | Y186: 08:10:00 | Z186: 2019-11-07 | AA186: 16:00:00 | AB186: Cluj | AC186: Efectuată | AD186: - | AE186: 2019-11-07 | AF186: 08:10:00 | AG186: 2019-11-07 | AH186: 11:30:00 | AI186: 2019-11-07 | AJ186: 08:44:00 | AK186: 2019-11-07 | AL186: 08:21:00 | AM186: 11928/05.11.2019 | AN186: DA | AP186: - | AR186: 0.1833333332 | AS186: 1 | AT186: 1 | AU186: 0.5666666666 | AV186: 41 | AW186: 41 | AX186: 3.333333333 | AY186: 0 | AZ186: 0
A187: 172 | B187: X | C187: - | D187: Înlocuire contor cu turbina 4” G400 în SRM HAI Sântana | E187: 12108 | F187: Sântana | G187: Arad | H187: 227820 | I187: 541815 | J187: 227820 | K187: 541815 | L187: SM1115D0 | M187: SC Hammerer Aluminium Industries Sântana | N187: - | O187: - | P187: - | Q187: - | R187: - | S187: - | T187: SM-CF001 | U187: Petrom | V187: SC HAMMERER ALUMINIUM INDUSTRIES Sântana SRL | W187: - | X187: 2019-11-12 | Y187: 09:33:00 | Z187: 2019-11-12 | AA187: 11:30:00 | AB187: Arad | AC187: Efectuată | AD187: - | AE187: 2019-11-12 | AF187: 09:33:00 | AG187: 2019-11-12 | AH187: 10:15:00 | AI187: 2019-11-12 | AJ187: 10:24:00 | AK187: 2019-11-12 | AL187: 10:00:00 | AM187: 11844/11.11.2019 | AN187: DA | AP187: - | AR187: 0.4499999999 | AS187: 0 | AT187: 0 | AU187: 0.85 | AV187: 1 | AW187: 1 | AX187: 0.7 | AY187: 0 | AZ187: 0
A188: 173 | B188: X | C188: - | D188: Cuplare tronson deviat la conducta Dn200 racord SRM Turnu Roșu, în zona localității Racovița (Jud. Sibiu), la cererea SC Hidroelectrica SA | E188: 145943 | F188: Turnu Roșu | G188: Sibiu | H188: 445946.3 | I188: 460780.88 | J188: 445946.3 | K188: 460780.88 | L188: - | M188: - | N188: SM0805D0 | O188: Turnu Roșu | P188: - | Q188: - | R188: - | S188: - | T188: SM-SD001 | U188: Engie, Electrica Furnizare, Premier Energy Trading, Premier Energy, Restart Energy, Wiee, E.on Energie, E.On Gaz Furnizare, Petrom, Cez Vânzare, Enel Energie, Gas&Power, Gaz Est, Met România, Nova Power, Energy Distribution, CPL Concordia, Hargaz, Prisma Serv, Conef Gaz, Distrigaz Vest, Next Energy, Cis Gaz, Aderro GP, Tinmar, Enel Muntenia, RWE, Cyeb, Entrex, Electric&Gas, Pado Group, Design Proiect, Gazmir, SST Grup, Tetarom, Gas Provider, Renovatio, Electric Planners, Monsson, Gaz Vest, Mihoc Oil | V188: Delgaz Grid | W188: - | X188: 2019-11-20 | Y188: 08:00:00 | Z188: 2019-11-20 | AA188: 15:00:00 | AB188: Mediaș | AC188: Efectuată | AD188: - | AE188: 2019-11-20 | AF188: 08:00:00 | AG188: 2019-11-20 | AH188: 15:00:00 | AI188: 2019-11-20 | AJ188: 08:51:00 | AK188: 2019-11-20 | AL188: 08:37:00 | AM188: 8898/18.11.2019 | AN188: DA | AP188: - | AR188: 0.6166666666 | AS188: 1 | AT188: 1 | AU188: 0.85 | AV188: 41 | AW188: 41 | AX188: 7 | AY188: 0 | AZ188: 0
A189: 174 | B189: X | C189: - | D189: Cuplare tronson deviat la conducta Dn200 racord SRM Turnu Roșu, în zona localității Racovița (Jud. Sibiu), la cererea SC Hidroelectrica SA | E189: 145364 | F189: Racovița | G189: Sibiu | H189: 448446.04 | I189: 465253.76 | J189: 448446.04 | K189: 465253.76 | L189: - | M189: - | N189: SM0876D0 | O189: Racovița | P189: - | Q189: - | R189: - | S189: - | T189: SM-SD001 | U189: Engie, Electrica Furnizare, Premier Energy Trading, Premier Energy, Restart Energy, Wiee, E.on Energie, E.On Gaz Furnizare, Petrom, Cez Vânzare, Enel Energie, Gas&Power, Gaz Est, Met România, Nova Power, Energy Distribution, CPL Concordia, Hargaz, Prisma Serv, Conef Gaz, Distrigaz Vest, Next Energy, Cis Gaz, Aderro GP, Tinmar, Enel Muntenia, RWE, Cyeb, Entrex, Electric&Gas, Pado Group, Design Proiect, Gazmir, SST Grup, Tetarom, Gas Provider, Renovatio, Electric Planners, Monsson, Gaz Vest, Mihoc Oil | V189: Delgaz Grid | W189: - | X189: 2019-11-20 | Y189: 08:00:00 | Z189: 2019-11-20 | AA189: 15:00:00 | AB189: Mediaș | AC189: Efectuată | AD189: - | AE189: 2019-11-20 | AF189: 08:00:00 | AG189: 2019-11-20 | AH189: 15:00:00 | AI189: 2019-11-20 | AJ189: 08:51:00 | AK189: 2019-11-20 | AL189: 08:37:00 | AM189: 8898/18.11.2019 | AN189: DA | AP189: - | AR189: 0.6166666666 | AS189: 1 | AT189: 1 | AU189: 0.85 | AV189: 41 | AW189: 41 | AX189: 7 | AY189: 0 | AZ189: 0
A190: 175 | B190: X | C190: - | D190: Cuplare tronson deviat la conducta Dn200 racord SRM Turnu Roșu, în zona localității Racovița (Jud. Sibiu), la cererea SC Hidroelectrica SA | E190: 145373 | F190: Sebeșu de Sus | G190: Sibiu | H190: 449519.77 | I190: 462472.45 | J190: 449519.77 | K190: 462472.45 | L190: - | M190: - | N190: SM0903D0 | O190: Sebeșu de Sus | P190: - | Q190: - | R190: - | S190: - | T190: SM-SD001 | U190: Engie, Electrica Furnizare, Premier Energy Trading, Premier Energy, Restart Energy, Wiee, E.on Energie, E.On Gaz Furnizare, Petrom, Cez Vânzare, Enel Energie, Gas&Power, Gaz Est, Met România, Nova Power, Energy Distribution, CPL Concordia, Hargaz, Prisma Serv, Conef Gaz, Distrigaz Vest, Next Energy, Cis Gaz, Aderro GP, Tinmar, Enel Muntenia, RWE, Cyeb, Entrex, Electric&Gas, Pado Group, Design Proiect, Gazmir, SST Grup, Tetarom, Gas Provider, Renovatio, Electric Planners, Monsson, Gaz Vest, Mihoc Oil | V190: Delgaz Grid | W190: - | X190: 2019-11-20 | Y190: 08:00:00 | Z190: 2019-11-20 | AA190: 15:00:00 | AB190: Mediaș | AC190: Efectuată | AD190: - | AE190: 2019-11-20 | AF190: 08:00:00 | AG190: 2019-11-20 | AH190: 15:00:00 | AI190: 2019-11-20 | AJ190: 08:51:00 | AK190: 2019-11-20 | AL190: 08:37:00 | AM190: 8898/18.11.2019 | AN190: DA | AP190: - | AR190: 0.6166666666 | AS190: 1 | AT190: 1 | AU190: 0.85 | AV190: 41 | AW190: 41 | AX190: 7 | AY190: 0 | AZ190: 0
A191: 176 | B191: X | C191: - | D191: Cuplare tronson deviat la conducta Dn200 racord SRM Turnu Roșu, în zona localității Racovița (Jud. Sibiu), la cererea SC Hidroelectrica SA | E191: 145952 | F191: Sebeșu de Jos | G191: Sibiu | H191: 448293.93 | I191: 461839.23 | J191: 448293.93 | K191: 461839.23 | L191: - | M191: - | N191: SM1041D0 | O191: Sebeșu de Jos | P191: - | Q191: - | R191: - | S191: - | T191: SM-SD001 | U191: Engie, Electrica Furnizare, Premier Energy Trading, Premier Energy, Restart Energy, Wiee, E.on Energie, E.On Gaz Furnizare, Petrom, Cez Vânzare, Enel Energie, Gas&Power, Gaz Est, Met România, Nova Power, Energy Distribution, CPL Concordia, Hargaz, Prisma Serv, Conef Gaz, Distrigaz Vest, Next Energy, Cis Gaz, Aderro GP, Tinmar, Enel Muntenia, RWE, Cyeb, Entrex, Electric&Gas, Pado Group, Design Proiect, Gazmir, SST Grup, Tetarom, Gas Provider, Renovatio, Electric Planners, Monsson, Gaz Vest, Mihoc Oil | V191: Delgaz Grid | W191: - | X191: 2019-11-20 | Y191: 08:00:00 | Z191: 2019-11-20 | AA191: 15:00:00 | AB191: Mediaș | AC191: Efectuată | AD191: - | AE191: 2019-11-20 | AF191: 08:00:00 | AG191: 2019-11-20 | AH191: 15:00:00 | AI191: 2019-11-20 | AJ191: 08:51:00 | AK191: 2019-11-20 | AL191: 08:37:00 | AM191: 8898/18.11.2019 | AN191: DA | AP191: - | AR191: 0.6166666666 | AS191: 1 | AT191: 1 | AU191: 0.85 | AV191: 41 | AW191: 41 | AX191: 7 | AY191: 0 | AZ191: 0
A192: 177 | B192: X | C192: - | D192: Crearea condițiilor necesare reparării defectelor identificate în urma inspecției cu PIG inteligent pe conducta Dn 500 Abramuț-Arad II | E192: 28674 | F192: Ciumeghiu | G192: Bihor | H192: 240312.3848 | I192: 589580.0638 | J192: 240312.3848 | K192: 589580.0638 | L192: - | M192: - | N192: SM0372D0 | O192: Nutrientul Palota | P192: - | Q192: - | R192: - | S192: - | T192: SM-CF001 | U192: Petrom | V192: SC Nutrientul SA | W192: - | X192: 2019-11-26 | Y192: 09:03:00 | Z192: 2019-11-26 | AA192: 16:00:00 | AB192: Cluj | AC192: Efectuată | AD192: - | AE192: 2019-11-26 | AF192: 09:03:00 | AG192: 2019-11-26 | AH192: 15:25:00 | AI192: 2019-11-26 | AJ192: 09:18:00 | AK192: 2019-11-26 | AL192: 09:11:00 | AM192: 12607/22.11.2019 | AN192: DA | AP192: - | AR192: 0.1333333334 | AS192: 1 | AT192: 1 | AU192: 0.2499999999 | AV192: 1 | AW192: 1 | AX192: 6.366666667 | AY192: 0 | AZ192: 0
A193: 178 | B193: X | C193: - | D193: Întrerupere accidentală datorită unei fluctuații de presiune care a dus la blocarea regulatorului | E193: 115691 | F193: Senereuș | G193: Mureș | H193: 473158.7 | I193: 537724.03 | J193: 473158.7 | K193: 537724.03 | L193: - | M193: - | N193: SM0007D0 | O193: Senereuș | P193: - | Q193: - | R193: - | S193: - | T193: SM-SD001 | U193: Engie, Electrica Furnizare, Premier Energy Trading, Premier Energy, Restart Energy, Wiee, E.on Energie, E.On Gaz Furnizare, Petrom, Cez Vânzare, Enel Energie, Gas&Power, Gaz Est, Met România, Nova Power, Energy Distribution, CPL Concordia, Hargaz, Prisma Serv, Conef Gaz, Distrigaz Vest, Next Energy, Cis Gaz, Aderro GP, Tinmar, Enel Muntenia, RWE, Cyeb, Entrex, Electric&Gas, Pado Group, Design Proiect, Gazmir, SST Grup, Tetarom, Gas Provider, Renovatio, Electric Planners, Monsson, Gaz Vest, Mihoc Oil | V193: Delgaz Grid | W193: - | X193: 2019-12-02 | Y193: 12:36:00 | Z193: 2019-12-02 | AA193: 16:00:00 | AB193: Mediaș | AC193: Efectuată | AD193: - | AE193: 2019-12-02 | AF193: 12:36:00 | AG193: 2019-12-02 | AH193: 16:00:00 | AI193: 2019-12-02 | AJ193: 15:04:00 | AK193: 2019-12-02 | AL193: 14:48:00 | AM193: - | AN193: DA | AP193: - | AR193: 2.2 | AS193: 1 | AT193: 1 | AU193: 2.466666667 | AV193: 41 | AW193: 41 | AX193: 3.4 | AY193: 0 | AZ193: 0
A194: 179 | B194: X | C194: - | D194: Întrerupere accidentală a serviciului de transport gaze naturale datorită unei fisuri apărute pe conducta 12” Sibiu - Cisnădie - Tălmaciu | E194: 143744 | F194: Cisnădie | G194: Sibiu | H194: 433908.29 | I194: 472159 | J194: 433908.29 | K194: 472159 | L194: - | M194: - | N194: SM0727D0 | O194: Cisnădie II (Seviș) | P194: - | Q194: - | R194: - | S194: - | T194: SM-SD001 | U194: Engie, Electrica Furnizare, Premier Energy Trading, Premier Energy, Restart Energy, Wiee, E.on Energie, E.On Gaz Furnizare, Petrom, Cez Vânzare, Enel Energie, Gas&Power, Gaz Est, Met România, Nova Power, Energy Distribution, CPL Concordia, Hargaz, Prisma Serv, Conef Gaz, Distrigaz Vest, Next Energy, Cis Gaz, Aderro GP, Tinmar, Enel Muntenia, RWE, Cyeb, Entrex, Electric&Gas, Pado Group, Design Proiect, Gazmir, SST Grup, Tetarom, Gas Provider, Renovatio, Electric Planners, Monsson, Gaz Vest, Mihoc Oil | V194: Delgaz Grid | W194: - | X194: 2019-12-10 | Y194: 12:15:00 | Z194: 2019-12-10 | AA194: 16:00:00 | AB194: Mediaș | AC194: Efectuată | AD194: - | AE194: 2019-12-10 | AF194: 12:15:00 | AG194: 2019-12-10 | AH194: 16:00:00 | AI194: 2019-12-10 | AJ194: 12:38:00 | AK194: 2019-12-10 | AL194: 12:33:00 | AM194: 9578/10.12.2019 | AN194: DA | AP194: - | AR194: 0.3000000001 | AS194: 1 | AT194: 1 | AU194: 0.3833333334 | AV194: 41 | AW194: 41 | AX194: 3.75 | AY194: 0 | AZ194: 0
A195: 180 | B195: X | C195: - | D195: Întrerupere accidentală a serviciului de transport gaze naturale datorită blocării regulatoarelor din instalația tehnologică a SRM Marga | E195: 53229 | F195: Marga | G195: Caraș-Severin | H195: 305432.92 | I195: 449028.45 | J195: 305432.92 | K195: 449028.45 | L195: - | M195: - | N195: SM0316D0 | O195: Marga | P195: - | Q195: - | R195: - | S195: - | T195: SM-SD001 | U195: Engie, Electrica Furnizare, Premier Energy Trading, Premier Energy, Restart Energy, Wiee, E.on Energie, E.On Gaz Furnizare, Petrom, Cez Vânzare, Enel Energie, Gas&Power, Gaz Est, Met România, Nova Power, Energy Distribution, CPL Concordia, Hargaz, Prisma Serv, Conef Gaz, Distrigaz Vest, Next Energy, Cis Gaz, Aderro GP, Tinmar, Enel Muntenia, RWE, Cyeb, Entrex, Electric&Gas, Pado Group, Design Proiect, Gazmir, SST Grup, Tetarom, Gas Provider, Renovatio, Electric Planners, Monsson, Gaz Vest, Mihoc Oil | V195: Delgaz Grid | W195: - | X195: 2019-12-12 | Y195: 08:09:00 | Z195: 2019-12-12 | AA195: 10:00:00 | AB195: Arad | AC195: Efectuată | AD195: - | AE195: 2019-12-12 | AF195: 08:09:00 | AG195: 2019-12-12 | AH195: 11:33:00 | AI195: 2019-12-12 | AJ195: 09:13:00 | AK195: 2019-12-12 | AL195: 08:39:00 | AM195: - | AN195: DA | AP195: - | AR195: 0.5000000001 | AS195: 1 | AT195: 1 | AU195: 1.066666667 | AV195: 41 | AW195: 41 | AX195: 3.4 | AY195: 0 | AZ195: 0
A196: 181 | B196: - | C196: X | D196: Punere în siguranță a conductelor 8” și 10” Ocna Mureș - Aiud, zona Mirăslău | E196: 1222 | F196: Aiud | G196: Alba | H196: 402538.94 | I196: 536457.09 | J196: 402538.94 | K196: 536457.09 | L196: - | M196: - | N196: SM0620D0 | O196: Aiud | P196: - | Q196: - | R196: - | S196: - | T196: SM-SD001 | U196: Aderro GP, Nova Power, Cez Vânzare, Cis Gaz, Conef Gaz, CPL Concordia, Crest Energy, Cyeb, Design Proiect, Distrigaz Vest, Engie, E.on Energie, Electrica Furnizare, Electric Planners, Electric&Gas, Energy Distribution, Enel Energie, Enel Muntenia, Gas&Power, Entrex, E.On Gaz Furnizare, Premier Energy Trading, Gaz Est, Hargaz, Gazmir, Gaz Vest, Mihoc Oil, Met România, Monsson, Next Energy, Pado Group, Premier Energy, Petrom, Prisma Serv, Gas Provider, Renovatio, Restart Energy, RWE, SST Grup, Tetarom, Tinmar, AIK România, Veolia, Wiee | V196: Delgaz Grid | W196: iulie - septembrie 2020 26.03. - 26.04.2020 25.05. - 25.07.2020 | X196: 2020-07-07 | Y196: 21:00:00 | Z196: 2020-07-08 | AA196: 12:00:00 | AB196: Cluj | AC196: Efectuată | AD196: Conform Programului de Modernizare, Dezvoltare și Investiții pe anul 2020 - 2022 aprobat Finalizare lucrări la sfârșitul lunii martie Datorita decretării stării de urgență, în vederea limitării efectelor pandemiei de Covid-19 | AE196: 2020-07-07 | AF196: 22:10:00 | AG196: 2020-07-08 | AH196: 12:00:00 | AI196: 2020-06-26 | AJ196: 12:30:00 | AK196: 2020-06-26 | AL196: 12:07:00 | AM196: 6320/01.07.2020 | AN196: DA | AO196: cf adresă ETCj 1979/26.02.2020 (DEX 355/26.02.2020) | AP196: PMDI 2020_2.1.A.1 | BF196: 6 | BG196: 1 | BH196: 1 | BI196: 6 | BJ196: 44 | BK196: 44 | BL196: 0 | BM196: 45 | BN196: 45
A197: 182 | B197: - | C197: X | D197: Punere în siguranță a conductelor 8” și 10” Ocna Mureș - Aiud, zona Mirăslău | E197: 5764 | F197: Mirăslău | G197: Alba | H197: 401152.79 | I197: 540766.78 | J197: 401152.79 | K197: 540766.78 | L197: - | M197: - | N197: SM0638D0 | O197: Mirăslău | P197: - | Q197: - | R197: - | S197: - | T197: SM-SD001 | U197: Aderro GP, Nova Power, Cez Vânzare, Cis Gaz, Conef Gaz, CPL Concordia, Crest Energy, Cyeb, Design Proiect, Distrigaz Vest, Engie, E.on Energie, Electrica Furnizare, Electric Planners, Electric&Gas, Energy Distribution, Enel Energie, Enel Muntenia, Gas&Power, Entrex, E.On Gaz Furnizare, Premier Energy Trading, Gaz Est, Hargaz, Gazmir, Gaz Vest, Mihoc Oil, Met România, Monsson, Next Energy, Pado Group, Premier Energy, Petrom, Prisma Serv, Gas Provider, Renovatio, Restart Energy, RWE, SST Grup, Tetarom, Tinmar, AIK România, Veolia, Wiee | V197: Delgaz Grid | W197: iulie - septembrie 2020 26.03. - 26.04.2020 25.05. - 25.07.2020 | X197: 2020-07-07 | Y197: 21:00:00 | Z197: 2020-07-08 | AA197: 12:00:00 | AB197: Cluj | AC197: Efectuată | AD197: Conform Programului de Modernizare, Dezvoltare și Investiții pe anul 2020 - 2022 aprobat Finalizare lucrări la sfârșitul lunii martie Datorita decretării stării de urgență, în vederea limitării efectelor pandemiei de Covid-19 | AE197: 2020-07-07 | AF197: 21:14:00 | AG197: 2020-07-08 | AH197: 11:55:00 | AI197: 2020-06-26 | AJ197: 12:26:00 | AK197: 2020-06-26 | AL197: 12:08:00 | AM197: 6320/01.07.2020 | AN197: DA | AO197: cf adresă ETCj 1979/26.02.2020 (DEX 355/26.02.2020) | AP197: PMDI 2020_2.1.A.1 | BF197: 6 | BG197: 1 | BH197: 1 | BI197: 6 | BJ197: 44 | BK197: 44 | BL197: -0.08333333326 | BM197: 45 | BN197: 45
A198: =A197+1 -> 183 | B198: - | C198: X | D198: 12” Drăgănești Olt - Caracal, subtraversare râu Olt | E198: 125481 | F198: Caracal | G198: Olt | H198: 449764.91 | I198: 290090.97 | J198: 449764.91 | K198: 290090.97 | L198: SM0934D0 | M198: Caracal | N198: - | O198: - | P198: - | Q198: - | R198: - | S198: - | T198: SM-SD001 | U198: Aderro GP, AIK LTD Londra, Alpha Metal, Nova Power, Cez Vânzare, Cis Gaz, Conef Gaz, Crest Energy, Cyeb, Distrigaz Vest, Engie, E.On Energie, Electrocentrale București, Electrocentrale Constanța, Electrica Furnizare, Electric Planners, Electric&Gas, Energy Distribution, Enel Energie, Enel Muntenia, Gas&Power, Entrex, Euro Seven Industry, Premier Energy Trading, Gaz Est, Hargaz, Gaz Vest, Megaconstruct, Met România, Monsson, Next Energy, Nord Gaz, Oligopol, Premier Energy, Petrom, Energy Gas Provider, Renovatio, Restart Energy, Romgaz, RWE Supply, Termo Calor, Tinmar, Transenergo, AIK România, Veolia, Wiee România | V198: Distrigaz Sud Rețele | W198: aprilie - iunie 2020 iunie - august 2020 | X198: 2020-06-23 | Y198: 09:00:00 | Z198: 2020-06-23 | AA198: 18:00:00 | AB198: Craiova | AC198: Efectuată | AD198: În curs de emitere a Ordinului de reîncepere a lucrării | AE198: 2020-06-23 | AF198: 09:00:00 | AG198: 2020-06-23 | AH198: 17:15:00 | AI198: 2020-06-12 | AJ198: 15:14:00 | AK198: 2020-06-12 | AL198: 15:08:00 | AM198: 1452/19.06.2020 | AN198: DA | AP198: PMDI 2020_2.1.A.7 | BF198: 6 | BG198: 1 | BH198: 1 | BI198: 6 | BJ198: 46 | BK198: 46 | BL198: -0.75 | BM198: 47 | BN198: 47
A199: 184 | B199: - | C199: X | D199: Sistematizare conducte în zona NT Moșu | E199: 101564 | F199: Butimanu | G199: Dâmbovița | H199: 575362.143 | I199: 342970.907 | J199: 571035.058 | K199: 354388.152 | L199: - | M199: - | N199: SM1066D0 | O199: Butimanu Înmagazinat | P199: - | Q199: - | R199: - | S199: - | T199: VSM01 | U199: Cez Vânzare, CPL Concordia, E.on Energie, E.On Furnizare, Electric Planners, Electrica Furnizare, Enel, Energy Distribution, Engie, Gazmir, Met România, Premier Energy Trading, Aderro, Alpha Metal, Axpo Energy, Cordun Gaz, Cyeb, Design Proiect, Distrigaz Vest, Electric&Gaz, Enel Muntenia, Gas Provider, Entrex, Euro Seven Industry, Gaz Est, Gaz Nord Est, Gaz Vest, Gecabuild, Macin Gaz, Mehedinți Gaz, MM Data, Nord Gaz, Nova Power, Petrom, Pado Group, Premier Energy, Prisma Serv, Renovatio, Restart Energy, Salgaz, SST Grup, Vega 93, Wiee, Romgaz, Tinmar, Veolia | V199: Depogaz Ploiești | W199: aprilie - iunie 2020 | X199: 2020-06-10 | Y199: 09:00:00 | Z199: 2020-06-12 | AA199: 12:00:00 | AB199: București | AC199: Efectuată | AD199: - | AE199: 2020-06-10 | AF199: 07:00:00 | AG199: 2020-06-12 | AH199: 11:56:00 | AI199: 2020-05-25 | AJ199: 15:50:00 | AK199: 2020-05-25 | AL199: 14:38:00 | AM199: 2292/04.06.2020 | AN199: DA | AP199: PMDI 2020_2.1.A.10 | BF199: 9 | BG199: 1 | BH199: 1 | BI199: 9 | BJ199: 46 | BK199: 46 | BL199: -0.06666666671 | BM199: 47 | BN199: 47
A200: 185 | B200: - | C200: X | D200: Punere în siguranță a conductei 8” Cornățel - Avrig, zona Cornățel - Săcădate | E200: 145408 | F200: Cornățel | G200: Sibiu | H200: 449316.58 | I200: 478333.83 | J200: 451910.84 | K200: 473447.86 | L200: - | M200: - | N200: SM0795D0 | O200: Cornățel | P200: - | Q200: - | R200: - | S200: - | T200: SM-SD001 | U200: Engie, Electrica Furnizare, Premier Energy Trading, Premier Energy, Restart Energy, Wiee, E.on Energie, E.On Gaz Furnizare, Petrom, Cez Vânzare, Enel Energie, Gaz Est, Met România, Nova Power, Energy Distribution, CPL Concordia, Hargaz, Prisma Serv, Conef Gaz, Distrigaz Vest, Next Energy, Cis Gaz, Aderro GP, Tinmar, Enel Muntenia, RWE, Cyeb, Entrex, Electric&Gas, Pado Group, Design Proiect, Gazmir, SST Grup, Tetarom, Gas Provider, Renovatio, Electric Planners, Monsson, Gaz Vest, Mihoc Oil | V200: Delgaz Grid | W200: aprilie - iunie 2020 anul gazier 2020 - 2021 | AB200: Mediaș | AD200: Conform emiterii Ordinului de începere a lucrării cu termenul de finalizare 30.11.2020 | AP200: PMDI 2020_2.1.B.6 | BF200: Afectat sau NU? | BG200: - | BH200: - | BI200: Afectat sau NU? | BJ200: - | BK200: - | BL200: Afectat sau NU? | BM200: - | BN200: -
... 244 more rows
